{"text_format":"3","workbook":"xlsx","n_sheets":5,"sheets":["BAŞLANGIÇ","PLANLANAN GİDERLER","FİİLİ GİDERLER","GİDER VARYANSLARI","GİDER ANALİZİ"],"not_rendered":{"charts":3,"images":3,"defined_names":1},"read":"whole","date_system":"1900"}

{"sheet":"BAŞLANGIÇ","index":0,"n_rows":8,"n_cols":2,"rows_kept":8}
[null,"BU ŞABLON HAKKINDA"]
[null,"Planlanan ve Fiili Giderlerle Varyansları izlemek için bu İş Gideri Bütçesi çalışma kitabını kullanın."]
[null,"Şirket Adını girin ve Logo ekleyin."]
[null,"Planlanan Giderler ve Fiili Giderler çalışma sayfalarındaki tablolara ayrıntıları girin."]
[null,"Tablolar, Gider Varyansları çalışma sayfası ve Gider Analizi çalışma sayfasındaki grafiklerde otomatik olarak güncelleştirilir"]
[null,"Not: "]
[null,"Her çalışma sayfasının A sütununda ek yönergeler sağlanmıştır. Bu metin özellikle gizlendi. Metni kaldırmak için A sütununu ve ardından SİL seçeneğini belirleyin. Metni göstermek için A sütununu seçin ve yazı tipi rengini değiştirin."]
[null,"Tablolar hakkında daha fazla bilgi edinmek için bir tabloda SHIFT ve F10 tuşlarına basın, TABLO seçeneğini ve ardından ALTERNATİF METİN seçeneğini belirleyin"]

{"sheet":"PLANLANAN GİDERLER","index":1,"n_rows":37,"n_cols":18,"rows_kept":37,"merged":[[1,1,2,3],[1,10,1,12],[1,13,2,14],[2,10,2,12],[3,17,12,19],[8,1,8,2],[19,1,19,2],[28,1,28,2],[33,1,33,2]]}
["Bu çalışma sayfasındaki ilgili tablolara Planlanan Çalışan Maliyetleri, Ofis Maliyetleri, Pazarlama Maliyetleri ve Eğitim veya Seyahat Maliyetini girin. Ara toplam otomatik olarak hesaplanır. Bu çalışma sayfasının nasıl kullanılacağına yönelik yardımcı yönergeler bu sütundaki hücrelerdedir. Başlamak için aşağı oka basın.",{"$nulls":14}," "]
["Sağdaki hücreye Şirket Adını ve N2 hücresine Logoyu girin. Bu çalışma sayfasının başlığı K2 hücresindedir.","Şirket Adını",{"$nulls":8},"Ayrıntılı Gider Tahminleri",null,null,"Logo yer tutucusu bu hücrededir."]
["İpucu, K3 hücresindedir.",{"$nulls":9},"Gölgeli hücreler hesaplamalardır."]
["Planlanan Giderler etiketi sağdaki hücrede, aylar C4 ve N4 arasındaki hücrelerde, Yıl etiketi O4’te ve Bu şablonu kullanma yönergeleri ise R4 hücresindedir.","PLANLANAN GİDERLER","OCA","ŞUB","MAR","NİS","MAY","HAZ","TEM","AĞU","EYL","EKİ","KAS","ARA","YIL",null,null,"İpucu: BU ŞABLONU KULLANMA\nPLANLANAN GİDERLER ve FİİLİ GİDERLER çalışma sayfalarındaki beyaz hücrelerde yer alan giriş verileri ve GİDER VARYANSLARI ile GİDER ANALİZİ sizin için hesaplanır. Bir sayfaya satır eklediğinizde diğer sayfaların eşleşmesi gerekir."]
["Çalışan Planı tablosunda sağdaki hücreden başlayarak Çalışan Maliyetleri girin. Sonraki yönerge A10 hücresindedir.","Çalışan Maliyetleri","Oca","Şub","Mar","Nis","May","Haz","Tem","Ağu","Eyl","Eki","Kas","Ara","YIL"]
[null,"Maaşlar",{"v":85000,"d":"85,000.00 ₺"},{"v":85000,"d":"85,000.00 ₺"},{"v":85000,"d":"85,000.00 ₺"},{"v":87500,"d":"87,500.00 ₺"},{"v":87500,"d":"87,500.00 ₺"},{"v":87500,"d":"87,500.00 ₺"},{"v":87500,"d":"87,500.00 ₺"},{"v":92400,"d":"92,400.00 ₺"},{"v":92400,"d":"92,400.00 ₺"},{"v":92400,"d":"92,400.00 ₺"},{"v":92400,"d":"92,400.00 ₺"},{"v":92400,"d":"92,400.00 ₺"},{"$f":"SUM(C6:N6)","v":{"v":1067000,"d":"1,067,000.00 ₺"}}]
[null,"Kazançlar",{"$f":"C6*0.27","v":{"v":22950,"d":"22,950.00 ₺"}},{"$f":"D6*0.27","v":{"v":22950,"d":"22,950.00 ₺"}},{"$f":"E6*0.27","v":{"v":22950,"d":"22,950.00 ₺"}},{"$f":"F6*0.27","v":{"v":23625,"d":"23,625.00 ₺"}},{"$f":"G6*0.27","v":{"v":23625,"d":"23,625.00 ₺"}},{"$f":"H6*0.27","v":{"v":23625,"d":"23,625.00 ₺"}},{"$f":"I6*0.27","v":{"v":23625,"d":"23,625.00 ₺"}},{"$f":"J6*0.27","v":{"v":24948,"d":"24,948.00 ₺"}},{"$f":"K6*0.27","v":{"v":24948,"d":"24,948.00 ₺"}},{"$f":"L6*0.27","v":{"v":24948,"d":"24,948.00 ₺"}},{"$f":"M6*0.27","v":{"v":24948,"d":"24,948.00 ₺"}},{"$f":"N6*0.27","v":{"v":24948,"d":"24,948.00 ₺"}},{"$f":"SUM(C7:N7)","v":{"v":288090,"d":"288,090.00 ₺"}}]
[null,"Ara toplam",{"$f":"SUBTOTAL(109,ÇalışanPlanı[Oca])","v":{"v":107950,"d":"107,950.00 ₺"}},{"$f":"SUBTOTAL(109,ÇalışanPlanı[Şub])","v":{"v":107950,"d":"107,950.00 ₺"}},{"$f":"SUBTOTAL(109,ÇalışanPlanı[Mar])","v":{"v":107950,"d":"107,950.00 ₺"}},{"$f":"SUBTOTAL(109,ÇalışanPlanı[Nis])","v":{"v":111125,"d":"111,125.00 ₺"}},{"$f":"SUBTOTAL(109,ÇalışanPlanı[May])","v":{"v":111125,"d":"111,125.00 ₺"}},{"$f":"SUBTOTAL(109,ÇalışanPlanı[Haz])","v":{"v":111125,"d":"111,125.00 ₺"}},{"$f":"SUBTOTAL(109,ÇalışanPlanı[Tem])","v":{"v":111125,"d":"111,125.00 ₺"}},{"$f":"SUBTOTAL(109,ÇalışanPlanı[Ağu])","v":{"v":117348,"d":"117,348.00 ₺"}},{"$f":"SUBTOTAL(109,ÇalışanPlanı[Eyl])","v":{"v":117348,"d":"117,348.00 ₺"}},{"$f":"SUBTOTAL(109,ÇalışanPlanı[Eki])","v":{"v":117348,"d":"117,348.00 ₺"}},{"$f":"SUBTOTAL(109,ÇalışanPlanı[Kas])","v":{"v":117348,"d":"117,348.00 ₺"}},{"$f":"SUBTOTAL(109,ÇalışanPlanı[Ara])","v":{"v":117348,"d":"117,348.00 ₺"}},{"$f":"SUBTOTAL(109,ÇalışanPlanı[YIL])","v":{"v":1355090,"d":"1,355,090.00 ₺"}}]
[]
["Ofis Planı tablosunda sağdaki hücreden başlayarak Ofis Maliyetleri girin. Sonraki yönerge A21 hücresindedir.","Ofis Maliyetleri","Oca","Şub","Mar","Nis","May","Haz","Tem","Ağu","Eyl","Eki","Kas","Ara","YIL"]
[null,"Ofis kirası",{"v":9800,"d":"9,800.00 ₺"},{"v":9800,"d":"9,800.00 ₺"},{"v":9800,"d":"9,800.00 ₺"},{"v":9800,"d":"9,800.00 ₺"},{"v":9800,"d":"9,800.00 ₺"},{"v":9800,"d":"9,800.00 ₺"},{"v":9800,"d":"9,800.00 ₺"},{"v":9800,"d":"9,800.00 ₺"},{"v":9800,"d":"9,800.00 ₺"},{"v":9800,"d":"9,800.00 ₺"},{"v":9800,"d":"9,800.00 ₺"},{"v":9800,"d":"9,800.00 ₺"},{"$f":"SUM(C11:N11)","v":{"v":117600,"d":"117,600.00 ₺"}}]
[null,"Doğalgaz",null,{"v":400,"d":"400.00 ₺"},{"v":400,"d":"400.00 ₺"},{"v":100,"d":"100.00 ₺"},{"v":100,"d":"100.00 ₺"},{"v":100,"d":"100.00 ₺"},{"v":100,"d":"100.00 ₺"},{"v":100,"d":"100.00 ₺"},{"v":100,"d":"100.00 ₺"},{"v":100,"d":"100.00 ₺"},{"v":400,"d":"400.00 ₺"},{"v":400,"d":"400.00 ₺"},{"v":2300,"d":"2,300.00 ₺"}]
[null,"Elektrik",{"v":300,"d":"300.00 ₺"},{"v":300,"d":"300.00 ₺"},{"v":300,"d":"300.00 ₺"},{"v":300,"d":"300.00 ₺"},{"v":300,"d":"300.00 ₺"},{"v":300,"d":"300.00 ₺"},{"v":300,"d":"300.00 ₺"},{"v":300,"d":"300.00 ₺"},{"v":300,"d":"300.00 ₺"},{"v":300,"d":"300.00 ₺"},{"v":300,"d":"300.00 ₺"},{"v":300,"d":"300.00 ₺"},{"v":3600,"d":"3,600.00 ₺"}]
[null,"Su",{"v":40,"d":"40.00 ₺"},{"v":40,"d":"40.00 ₺"},{"v":40,"d":"40.00 ₺"},{"v":40,"d":"40.00 ₺"},{"v":40,"d":"40.00 ₺"},{"v":40,"d":"40.00 ₺"},{"v":40,"d":"40.00 ₺"},{"v":40,"d":"40.00 ₺"},{"v":40,"d":"40.00 ₺"},{"v":40,"d":"40.00 ₺"},{"v":40,"d":"40.00 ₺"},{"v":40,"d":"40.00 ₺"},{"v":480,"d":"480.00 ₺"}]
[null,"Telefon",{"v":250,"d":"250.00 ₺"},{"v":250,"d":"250.00 ₺"},{"v":250,"d":"250.00 ₺"},{"v":250,"d":"250.00 ₺"},{"v":250,"d":"250.00 ₺"},{"v":250,"d":"250.00 ₺"},{"v":250,"d":"250.00 ₺"},{"v":250,"d":"250.00 ₺"},{"v":250,"d":"250.00 ₺"},{"v":250,"d":"250.00 ₺"},{"v":250,"d":"250.00 ₺"},{"v":250,"d":"250.00 ₺"},{"v":3000,"d":"3,000.00 ₺"}]
[null,"İnternet erişimi",{"v":180,"d":"180.00 ₺"},{"v":180,"d":"180.00 ₺"},{"v":180,"d":"180.00 ₺"},{"v":180,"d":"180.00 ₺"},{"v":180,"d":"180.00 ₺"},{"v":180,"d":"180.00 ₺"},{"v":180,"d":"180.00 ₺"},{"v":180,"d":"180.00 ₺"},{"v":180,"d":"180.00 ₺"},{"v":180,"d":"180.00 ₺"},{"v":180,"d":"180.00 ₺"},{"v":180,"d":"180.00 ₺"},{"v":2160,"d":"2,160.00 ₺"}]
[null,"Ofis malzemeleri",{"v":200,"d":"200.00 ₺"},{"v":200,"d":"200.00 ₺"},{"v":200,"d":"200.00 ₺"},{"v":200,"d":"200.00 ₺"},{"v":200,"d":"200.00 ₺"},{"v":200,"d":"200.00 ₺"},{"v":200,"d":"200.00 ₺"},{"v":200,"d":"200.00 ₺"},{"v":200,"d":"200.00 ₺"},{"v":200,"d":"200.00 ₺"},{"v":200,"d":"200.00 ₺"},{"v":200,"d":"200.00 ₺"},{"v":2400,"d":"2,400.00 ₺"}]
[null,"Güvenlik",{"v":600,"d":"600.00 ₺"},{"v":600,"d":"600.00 ₺"},{"v":600,"d":"600.00 ₺"},{"v":600,"d":"600.00 ₺"},{"v":600,"d":"600.00 ₺"},{"v":600,"d":"600.00 ₺"},{"v":600,"d":"600.00 ₺"},{"v":600,"d":"600.00 ₺"},{"v":600,"d":"600.00 ₺"},{"v":600,"d":"600.00 ₺"},{"v":600,"d":"600.00 ₺"},{"v":600,"d":"600.00 ₺"},{"v":7200,"d":"7,200.00 ₺"}]
[null,"Ara toplam",{"$f":"SUBTOTAL(109,OfisPlanı[Oca])","v":{"v":11370,"d":"11,370.00 ₺"}},{"$f":"SUBTOTAL(109,OfisPlanı[Şub])","v":{"v":11770,"d":"11,770.00 ₺"}},{"$f":"SUBTOTAL(109,OfisPlanı[Mar])","v":{"v":11770,"d":"11,770.00 ₺"}},{"$f":"SUBTOTAL(109,OfisPlanı[Nis])","v":{"v":11470,"d":"11,470.00 ₺"}},{"$f":"SUBTOTAL(109,OfisPlanı[May])","v":{"v":11470,"d":"11,470.00 ₺"}},{"$f":"SUBTOTAL(109,OfisPlanı[Haz])","v":{"v":11470,"d":"11,470.00 ₺"}},{"$f":"SUBTOTAL(109,OfisPlanı[Tem])","v":{"v":11470,"d":"11,470.00 ₺"}},{"$f":"SUBTOTAL(109,OfisPlanı[Ağu])","v":{"v":11470,"d":"11,470.00 ₺"}},{"$f":"SUBTOTAL(109,OfisPlanı[Eyl])","v":{"v":11470,"d":"11,470.00 ₺"}},{"$f":"SUBTOTAL(109,OfisPlanı[Eki])","v":{"v":11470,"d":"11,470.00 ₺"}},{"$f":"SUBTOTAL(109,OfisPlanı[Kas])","v":{"v":11770,"d":"11,770.00 ₺"}},{"$f":"SUBTOTAL(109,OfisPlanı[Ara])","v":{"v":11770,"d":"11,770.00 ₺"}},{"$f":"SUBTOTAL(109,OfisPlanı[YIL])","v":{"v":138740,"d":"138,740.00 ₺"}}]
[]
["Pazarlama Planı tablosunda sağdaki hücreden başlayarak Pazarlama Maliyetleri girin. Sonraki yönerge A30 hücresindedir.","Pazarlama Maliyetleri","Oca","Şub","Mar","Nis","May","Haz","Tem","Ağu","Eyl","Eki","Kas","Ara","YIL"]
[null,"Web sitesi barındırma",{"v":500,"d":"500.00 ₺"},{"v":500,"d":"500.00 ₺"},{"v":500,"d":"500.00 ₺"},{"v":500,"d":"500.00 ₺"},{"v":500,"d":"500.00 ₺"},{"v":500,"d":"500.00 ₺"},{"v":500,"d":"500.00 ₺"},{"v":500,"d":"500.00 ₺"},{"v":500,"d":"500.00 ₺"},{"v":500,"d":"500.00 ₺"},{"v":500,"d":"500.00 ₺"},{"v":500,"d":"500.00 ₺"},{"$f":"SUM(C22:N22)","v":{"v":6000,"d":"6,000.00 ₺"}}]
[null,"Web sitesi güncelleştirmeleri",{"v":200,"d":"200.00 ₺"},{"v":200,"d":"200.00 ₺"},{"v":200,"d":"200.00 ₺"},{"v":200,"d":"200.00 ₺"},{"v":200,"d":"200.00 ₺"},{"v":1000,"d":"1,000.00 ₺"},{"v":200,"d":"200.00 ₺"},{"v":200,"d":"200.00 ₺"},{"v":200,"d":"200.00 ₺"},{"v":200,"d":"200.00 ₺"},{"v":200,"d":"200.00 ₺"},{"v":1000,"d":"1,000.00 ₺"},{"v":4000,"d":"4,000.00 ₺"}]
[null,"Yardımcı malzeme hazırlığı",{"v":5000,"d":"5,000.00 ₺"},{"v":0,"d":"0.00 ₺"},{"v":0,"d":"0.00 ₺"},{"v":5000,"d":"5,000.00 ₺"},{"v":0,"d":"0.00 ₺"},{"v":0,"d":"0.00 ₺"},{"v":5000,"d":"5,000.00 ₺"},{"v":0,"d":"0.00 ₺"},{"v":0,"d":"0.00 ₺"},{"v":5000,"d":"5,000.00 ₺"},{"v":0,"d":"0.00 ₺"},{"v":0,"d":"0.00 ₺"},{"v":20000,"d":"20,000.00 ₺"}]
[null,"Yardımcı malzemeleri yazdırma",{"v":200,"d":"200.00 ₺"},{"v":200,"d":"200.00 ₺"},{"v":200,"d":"200.00 ₺"},{"v":200,"d":"200.00 ₺"},{"v":200,"d":"200.00 ₺"},{"v":200,"d":"200.00 ₺"},{"v":200,"d":"200.00 ₺"},{"v":200,"d":"200.00 ₺"},{"v":200,"d":"200.00 ₺"},{"v":200,"d":"200.00 ₺"},{"v":200,"d":"200.00 ₺"},{"v":200,"d":"200.00 ₺"},{"v":2400,"d":"2,400.00 ₺"}]
[null,"Pazarlama etkinlikleri",{"v":2000,"d":"2,000.00 ₺"},{"v":2000,"d":"2,000.00 ₺"},{"v":2000,"d":"2,000.00 ₺"},{"v":5000,"d":"5,000.00 ₺"},{"v":2000,"d":"2,000.00 ₺"},{"v":2000,"d":"2,000.00 ₺"},{"v":2000,"d":"2,000.00 ₺"},{"v":5000,"d":"5,000.00 ₺"},{"v":2000,"d":"2,000.00 ₺"},{"v":2000,"d":"2,000.00 ₺"},{"v":2000,"d":"2,000.00 ₺"},{"v":5000,"d":"5,000.00 ₺"},{"v":33000,"d":"33,000.00 ₺"}]
[null,"Sair giderler",{"v":200,"d":"200.00 ₺"},{"v":200,"d":"200.00 ₺"},{"v":200,"d":"200.00 ₺"},{"v":200,"d":"200.00 ₺"},{"v":200,"d":"200.00 ₺"},{"v":200,"d":"200.00 ₺"},{"v":200,"d":"200.00 ₺"},{"v":200,"d":"200.00 ₺"},{"v":200,"d":"200.00 ₺"},{"v":200,"d":"200.00 ₺"},{"v":200,"d":"200.00 ₺"},{"v":200,"d":"200.00 ₺"},{"v":2400,"d":"2,400.00 ₺"}]
[null,"Ara toplam",{"$f":"SUBTOTAL(109,PazarlamaPlanı[Oca])","v":{"v":8100,"d":"8,100.00 ₺"}},{"$f":"SUBTOTAL(109,PazarlamaPlanı[Şub])","v":{"v":3100,"d":"3,100.00 ₺"}},{"$f":"SUBTOTAL(109,PazarlamaPlanı[Mar])","v":{"v":3100,"d":"3,100.00 ₺"}},{"$f":"SUBTOTAL(109,PazarlamaPlanı[Nis])","v":{"v":11100,"d":"11,100.00 ₺"}},{"$f":"SUBTOTAL(109,PazarlamaPlanı[May])","v":{"v":3100,"d":"3,100.00 ₺"}},{"$f":"SUBTOTAL(109,PazarlamaPlanı[Haz])","v":{"v":3900,"d":"3,900.00 ₺"}},{"$f":"SUBTOTAL(109,PazarlamaPlanı[Tem])","v":{"v":8100,"d":"8,100.00 ₺"}},{"$f":"SUBTOTAL(109,PazarlamaPlanı[Ağu])","v":{"v":6100,"d":"6,100.00 ₺"}},{"$f":"SUBTOTAL(109,PazarlamaPlanı[Eyl])","v":{"v":3100,"d":"3,100.00 ₺"}},{"$f":"SUBTOTAL(109,PazarlamaPlanı[Eki])","v":{"v":8100,"d":"8,100.00 ₺"}},{"$f":"SUBTOTAL(109,PazarlamaPlanı[Kas])","v":{"v":3100,"d":"3,100.00 ₺"}},{"$f":"SUBTOTAL(109,PazarlamaPlanı[Ara])","v":{"v":6900,"d":"6,900.00 ₺"}},{"$f":"SUBTOTAL(109,PazarlamaPlanı[YIL])","v":{"v":67800,"d":"67,800.00 ₺"}}]
[]
["Eğitim ve Seyahat Planı tablosunda sağdaki hücreden başlayarak Eğitim ve Seyahat Maliyetlerini girin. Sonraki yönerge A35 hücresindedir.","Eğitim/Seyahat","Oca","Şub","Mar","Nis","May","Haz","Tem","Ağu","Eyl","Eki","Kas","Ara","YIL"]
[null,"Eğitim sınıfları",{"v":2000,"d":"2,000.00 ₺"},{"v":2000,"d":"2,000.00 ₺"},{"v":2000,"d":"2,000.00 ₺"},{"v":2000,"d":"2,000.00 ₺"},{"v":2000,"d":"2,000.00 ₺"},{"v":2000,"d":"2,000.00 ₺"},{"v":2000,"d":"2,000.00 ₺"},{"v":2000,"d":"2,000.00 ₺"},{"v":2000,"d":"2,000.00 ₺"},{"v":2000,"d":"2,000.00 ₺"},{"v":2000,"d":"2,000.00 ₺"},{"v":2000,"d":"2,000.00 ₺"},{"$f":"SUM(C31:N31)","v":{"v":24000,"d":"24,000.00 ₺"}}]
[null,"Eğitimle ilgili seyahat maliyetleri",{"v":2000,"d":"2,000.00 ₺"},{"v":2000,"d":"2,000.00 ₺"},{"v":2000,"d":"2,000.00 ₺"},{"v":2000,"d":"2,000.00 ₺"},{"v":2000,"d":"2,000.00 ₺"},{"v":2000,"d":"2,000.00 ₺"},{"v":2000,"d":"2,000.00 ₺"},{"v":2000,"d":"2,000.00 ₺"},{"v":2000,"d":"2,000.00 ₺"},{"v":2000,"d":"2,000.00 ₺"},{"v":2000,"d":"2,000.00 ₺"},{"v":2000,"d":"2,000.00 ₺"},{"$f":"SUM(C32:N32)","v":{"v":24000,"d":"24,000.00 ₺"}}]
[null,"Ara toplam",{"$f":"SUBTOTAL(109,EğitimVeSeyahatPlanı[Oca])","v":{"v":4000,"d":"4,000.00 ₺"}},{"$f":"SUBTOTAL(109,EğitimVeSeyahatPlanı[Şub])","v":{"v":4000,"d":"4,000.00 ₺"}},{"$f":"SUBTOTAL(109,EğitimVeSeyahatPlanı[Mar])","v":{"v":4000,"d":"4,000.00 ₺"}},{"$f":"SUBTOTAL(109,EğitimVeSeyahatPlanı[Nis])","v":{"v":4000,"d":"4,000.00 ₺"}},{"$f":"SUBTOTAL(109,EğitimVeSeyahatPlanı[May])","v":{"v":4000,"d":"4,000.00 ₺"}},{"$f":"SUBTOTAL(109,EğitimVeSeyahatPlanı[Haz])","v":{"v":4000,"d":"4,000.00 ₺"}},{"$f":"SUBTOTAL(109,EğitimVeSeyahatPlanı[Tem])","v":{"v":4000,"d":"4,000.00 ₺"}},{"$f":"SUBTOTAL(109,EğitimVeSeyahatPlanı[Ağu])","v":{"v":4000,"d":"4,000.00 ₺"}},{"$f":"SUBTOTAL(109,EğitimVeSeyahatPlanı[Eyl])","v":{"v":4000,"d":"4,000.00 ₺"}},{"$f":"SUBTOTAL(109,EğitimVeSeyahatPlanı[Eki])","v":{"v":4000,"d":"4,000.00 ₺"}},{"$f":"SUBTOTAL(109,EğitimVeSeyahatPlanı[Kas])","v":{"v":4000,"d":"4,000.00 ₺"}},{"$f":"SUBTOTAL(109,EğitimVeSeyahatPlanı[Ara])","v":{"v":4000,"d":"4,000.00 ₺"}},{"$f":"SUBTOTAL(109,EğitimVeSeyahatPlanı[YIL])","v":{"v":48000,"d":"48,000.00 ₺"}}]
[]
["Toplamlar, Planlanan Toplam tablosunda sağdaki hücreden başlayarak otomatik olarak hesaplanır.","TOPLAMLAR","Oca","Şub","Mar","Nis","May","Haz","Tem","Ağu","Eyl","Eki","Kas","Ara","Yıl"]
[null,"Aylık Planlanan Giderler",{"$f":"EğitimVeSeyahatPlanı[[#Totals],[Oca]]+PazarlamaPlanı[[#Totals],[Oca]]+OfisPlanı[[#Totals],[Oca]]+ÇalışanPlanı[[#Totals],[Oca]]","v":{"v":131420,"d":"131,420.00 ₺"}},{"$f":"EğitimVeSeyahatPlanı[[#Totals],[Şub]]+PazarlamaPlanı[[#Totals],[Şub]]+OfisPlanı[[#Totals],[Şub]]+ÇalışanPlanı[[#Totals],[Şub]]","v":{"v":126820,"d":"126,820.00 ₺"}},{"$f":"EğitimVeSeyahatPlanı[[#Totals],[Mar]]+PazarlamaPlanı[[#Totals],[Mar]]+OfisPlanı[[#Totals],[Mar]]+ÇalışanPlanı[[#Totals],[Mar]]","v":{"v":126820,"d":"126,820.00 ₺"}},{"$f":"EğitimVeSeyahatPlanı[[#Totals],[Nis]]+PazarlamaPlanı[[#Totals],[Nis]]+OfisPlanı[[#Totals],[Nis]]+ÇalışanPlanı[[#Totals],[Nis]]","v":{"v":137695,"d":"137,695.00 ₺"}},{"$f":"EğitimVeSeyahatPlanı[[#Totals],[May]]+PazarlamaPlanı[[#Totals],[May]]+OfisPlanı[[#Totals],[May]]+ÇalışanPlanı[[#Totals],[May]]","v":{"v":129695,"d":"129,695.00 ₺"}},{"$f":"EğitimVeSeyahatPlanı[[#Totals],[Haz]]+PazarlamaPlanı[[#Totals],[Haz]]+OfisPlanı[[#Totals],[Haz]]+ÇalışanPlanı[[#Totals],[Haz]]","v":{"v":130495,"d":"130,495.00 ₺"}},{"$f":"EğitimVeSeyahatPlanı[[#Totals],[Tem]]+PazarlamaPlanı[[#Totals],[Tem]]+OfisPlanı[[#Totals],[Tem]]+ÇalışanPlanı[[#Totals],[Tem]]","v":{"v":134695,"d":"134,695.00 ₺"}},{"$f":"EğitimVeSeyahatPlanı[[#Totals],[Ağu]]+PazarlamaPlanı[[#Totals],[Ağu]]+OfisPlanı[[#Totals],[Ağu]]+ÇalışanPlanı[[#Totals],[Ağu]]","v":{"v":138918,"d":"138,918.00 ₺"}},{"$f":"EğitimVeSeyahatPlanı[[#Totals],[Eyl]]+PazarlamaPlanı[[#Totals],[Eyl]]+OfisPlanı[[#Totals],[Eyl]]+ÇalışanPlanı[[#Totals],[Eyl]]","v":{"v":135918,"d":"135,918.00 ₺"}},{"$f":"EğitimVeSeyahatPlanı[[#Totals],[Eki]]+PazarlamaPlanı[[#Totals],[Eki]]+OfisPlanı[[#Totals],[Eki]]+ÇalışanPlanı[[#Totals],[Eki]]","v":{"v":140918,"d":"140,918.00 ₺"}},{"$f":"EğitimVeSeyahatPlanı[[#Totals],[Kas]]+PazarlamaPlanı[[#Totals],[Kas]]+OfisPlanı[[#Totals],[Kas]]+ÇalışanPlanı[[#Totals],[Kas]]","v":{"v":136218,"d":"136,218.00 ₺"}},{"$f":"EğitimVeSeyahatPlanı[[#Totals],[Ara]]+PazarlamaPlanı[[#Totals],[Ara]]+OfisPlanı[[#Totals],[Ara]]+ÇalışanPlanı[[#Totals],[Ara]]","v":{"v":140018,"d":"140,018.00 ₺"}},{"$f":"EğitimVeSeyahatPlanı[[#Totals],[YIL]]+PazarlamaPlanı[[#Totals],[YIL]]+OfisPlanı[[#Totals],[YIL]]+ÇalışanPlanı[[#Totals],[YIL]]","v":{"v":1609630,"d":"1,609,630.00 ₺"}}]
[null,"TOPLAM Planlanan Giderler",{"$f":"SUM($C$36:C36)","v":{"v":131420,"d":"131,420.00 ₺"}},{"$f":"SUM($C$36:D36)","v":{"v":258240,"d":"258,240.00 ₺"}},{"$f":"SUM($C$36:E36)","v":{"v":385060,"d":"385,060.00 ₺"}},{"$f":"SUM($C$36:F36)","v":{"v":522755,"d":"522,755.00 ₺"}},{"$f":"SUM($C$36:G36)","v":{"v":652450,"d":"652,450.00 ₺"}},{"$f":"SUM($C$36:H36)","v":{"v":782945,"d":"782,945.00 ₺"}},{"$f":"SUM($C$36:I36)","v":{"v":917640,"d":"917,640.00 ₺"}},{"$f":"SUM($C$36:J36)","v":{"v":1056558,"d":"1,056,558.00 ₺"}},{"$f":"SUM($C$36:K36)","v":{"v":1192476,"d":"1,192,476.00 ₺"}},{"$f":"SUM($C$36:L36)","v":{"v":1333394,"d":"1,333,394.00 ₺"}},{"$f":"SUM($C$36:M36)","v":{"v":1469612,"d":"1,469,612.00 ₺"}},{"$f":"SUM($C$36:N36)","v":{"v":1609630,"d":"1,609,630.00 ₺"}}]

{"sheet":"FİİLİ GİDERLER","index":2,"n_rows":37,"n_cols":16,"rows_kept":37,"merged":[[1,1,2,3],[1,10,1,12],[1,13,2,14],[2,10,2,12],[8,1,8,2],[19,1,19,2],[28,1,28,2],[33,1,33,2]]}
["Bu çalışma sayfasındaki ilgili tablolara Fiili Çalışan Maliyetleri, Ofis Maliyetleri, Pazarlama Maliyetleri ve Eğitim veya Seyahat Maliyetini girin. Toplamlar otomatik olarak hesaplanır. Bu çalışma sayfasının nasıl kullanılacağına yönelik yardımcı yönergeler bu sütundaki hücrelerdedir. Başlamak için aşağı oka basın.",{"$nulls":14}," "]
["Şirket Adını sağdaki hücrede otomatik olarak güncelleştirilir. Bu çalışma sayfasının başlığı K2 hücresindedir. N2 hücresine Logoyu girin.",{"$f":"'PLANLANAN GİDERLER'!B2:D3","v":"Şirket Adını"},{"$nulls":8},{"$f":"worksheet_title","v":"Ayrıntılı Gider Tahminleri"},null,null,"Logo yer tutucusu bu hücrededir."]
["İpucu, K3 hücresindedir.",{"$nulls":9},"Gölgeli hücreler hesaplamalardır."]
["Fiili Giderler etiketi sağdaki hücrede, aylar C4 ile N4 arasındaki hücrelerde ve Yıl etiketi ise O4’tedir.","FİİLİ GİDERLER","OCA","ŞUB","MAR","NİS","MAY","HAZ","TEM","AĞU","EYL","EKİ","KAS","ARA","YIL"]
["Çalışan Fiili tablosunda sağdaki hücreden başlayarak Çalışan Maliyetleri girin. Sonraki yönerge A10 hücresindedir.","Çalışan Maliyetleri","Oca","Şub","Mar","Nis","May","Haz","Tem","Ağu","Eyl","Eki","Kas","Ara","YIL"]
[null,"Maaşlar",{"v":85000,"d":"85,000.00 ₺"},{"v":85000,"d":"85,000.00 ₺"},{"v":85000,"d":"85,000.00 ₺"},{"v":88000,"d":"88,000.00 ₺"},{"v":88000,"d":"88,000.00 ₺"},{"v":88000,"d":"88,000.00 ₺"},{"$nulls":6},{"$f":"SUM(C6:N6)","v":{"v":519000,"d":"519,000.00 ₺"}}]
[null,"Kazançlar",{"$f":"C6*0.27","v":{"v":22950,"d":"22,950.00 ₺"}},{"$f":"D6*0.27","v":{"v":22950,"d":"22,950.00 ₺"}},{"$f":"E6*0.27","v":{"v":22950,"d":"22,950.00 ₺"}},{"$f":"F6*0.27","v":{"v":23760,"d":"23,760.00 ₺"}},{"$f":"G6*0.27","v":{"v":23760,"d":"23,760.00 ₺"}},{"$f":"H6*0.27","v":{"v":23760,"d":"23,760.00 ₺"}},{"$f":"I6*0.27","v":{"v":0,"d":"0.00 ₺"}},{"$f":"J6*0.27","v":{"v":0,"d":"0.00 ₺"}},{"$f":"K6*0.27","v":{"v":0,"d":"0.00 ₺"}},{"$f":"L6*0.27","v":{"v":0,"d":"0.00 ₺"}},{"$f":"M6*0.27","v":{"v":0,"d":"0.00 ₺"}},{"$f":"N6*0.27","v":{"v":0,"d":"0.00 ₺"}},{"$f":"SUM(C7:N7)","v":{"v":140130,"d":"140,130.00 ₺"}}]
[null,"Ara toplam",{"$f":"SUBTOTAL(109,ÇalışanFiili[Oca])","v":{"v":107950,"d":"107,950.00 ₺"}},{"$f":"SUBTOTAL(109,ÇalışanFiili[Şub])","v":{"v":107950,"d":"107,950.00 ₺"}},{"$f":"SUBTOTAL(109,ÇalışanFiili[Mar])","v":{"v":107950,"d":"107,950.00 ₺"}},{"$f":"SUBTOTAL(109,ÇalışanFiili[Nis])","v":{"v":111760,"d":"111,760.00 ₺"}},{"$f":"SUBTOTAL(109,ÇalışanFiili[May])","v":{"v":111760,"d":"111,760.00 ₺"}},{"$f":"SUBTOTAL(109,ÇalışanFiili[Haz])","v":{"v":111760,"d":"111,760.00 ₺"}},{"$f":"SUBTOTAL(109,ÇalışanFiili[Tem])","v":{"v":0,"d":"0.00 ₺"}},{"$f":"SUBTOTAL(109,ÇalışanFiili[Ağu])","v":{"v":0,"d":"0.00 ₺"}},{"$f":"SUBTOTAL(109,ÇalışanFiili[Eyl])","v":{"v":0,"d":"0.00 ₺"}},{"$f":"SUBTOTAL(109,ÇalışanFiili[Eki])","v":{"v":0,"d":"0.00 ₺"}},{"$f":"SUBTOTAL(109,ÇalışanFiili[Kas])","v":{"v":0,"d":"0.00 ₺"}},{"$f":"SUBTOTAL(109,ÇalışanFiili[Ara])","v":{"v":0,"d":"0.00 ₺"}},{"$f":"SUBTOTAL(109,ÇalışanFiili[YIL])","v":{"v":659130,"d":"659,130.00 ₺"}}]
[]
["Ofis Fiili tablosunda sağdaki hücreden başlayarak Ofis Maliyetleri girin. Sonraki yönerge A21 hücresindedir.","Ofis Maliyetleri","Oca","Şub","Mar","Nis","May","Haz","Tem","Ağu","Eyl","Eki","Kas","Ara","YIL"]
[null,"Ofis kirası",{"v":9800,"d":"9,800.00 ₺"},{"v":9800,"d":"9,800.00 ₺"},{"v":9800,"d":"9,800.00 ₺"},{"v":9800,"d":"9,800.00 ₺"},{"v":9800,"d":"9,800.00 ₺"},{"v":9800,"d":"9,800.00 ₺"},{"$nulls":6},{"$f":"SUM(C11:N11)","v":{"v":58800,"d":"58,800.00 ₺"}}]
[null,"Doğalgaz",{"v":4,"d":"4.00 ₺"},{"v":430,"d":"430.00 ₺"},{"v":385,"d":"385.00 ₺"},{"v":230,"d":"230.00 ₺"},{"v":87,"d":"87.00 ₺"},{"v":88,"d":"88.00 ₺"},{"$nulls":6},{"v":1224,"d":"1,224.00 ₺"}]
[null,"Elektrik",{"v":288,"d":"288.00 ₺"},{"v":278,"d":"278.00 ₺"},{"v":268,"d":"268.00 ₺"},{"v":299,"d":"299.00 ₺"},{"v":306,"d":"306.00 ₺"},{"v":290,"d":"290.00 ₺"},{"$nulls":6},{"v":1729,"d":"1,729.00 ₺"}]
[null,"Su",{"v":35,"d":"35.00 ₺"},{"v":33,"d":"33.00 ₺"},{"v":34,"d":"34.00 ₺"},{"v":36,"d":"36.00 ₺"},{"v":34,"d":"34.00 ₺"},{"v":36,"d":"36.00 ₺"},{"$nulls":6},{"v":208,"d":"208.00 ₺"}]
[null,"Telefon",{"v":224,"d":"224.00 ₺"},{"v":235,"d":"235.00 ₺"},{"v":265,"d":"265.00 ₺"},{"v":245,"d":"245.00 ₺"},{"v":245,"d":"245.00 ₺"},{"v":220,"d":"220.00 ₺"},{"$nulls":6},{"v":1434,"d":"1,434.00 ₺"}]
[null,"İnternet erişimi",{"v":180,"d":"180.00 ₺"},{"v":180,"d":"180.00 ₺"},{"v":180,"d":"180.00 ₺"},{"v":180,"d":"180.00 ₺"},{"v":180,"d":"180.00 ₺"},{"v":180,"d":"180.00 ₺"},{"$nulls":6},{"v":1080,"d":"1,080.00 ₺"}]
[null,"Ofis malzemeleri",{"v":256,"d":"256.00 ₺"},{"v":142,"d":"142.00 ₺"},{"v":160,"d":"160.00 ₺"},{"v":221,"d":"221.00 ₺"},{"v":256,"d":"256.00 ₺"},{"v":240,"d":"240.00 ₺"},{"$nulls":6},{"v":1275,"d":"1,275.00 ₺"}]
[null,"Güvenlik",{"v":600,"d":"600.00 ₺"},{"v":600,"d":"600.00 ₺"},{"v":600,"d":"600.00 ₺"},{"v":600,"d":"600.00 ₺"},{"v":600,"d":"600.00 ₺"},{"v":600,"d":"600.00 ₺"},{"$nulls":6},{"v":3600,"d":"3,600.00 ₺"}]
[null,"Ara toplam",{"$f":"SUBTOTAL(109,OfisFiili[Oca])","v":{"v":11387,"d":"11,387.00 ₺"}},{"$f":"SUBTOTAL(109,OfisFiili[Şub])","v":{"v":11698,"d":"11,698.00 ₺"}},{"$f":"SUBTOTAL(109,OfisFiili[Mar])","v":{"v":11692,"d":"11,692.00 ₺"}},{"$f":"SUBTOTAL(109,OfisFiili[Nis])","v":{"v":11611,"d":"11,611.00 ₺"}},{"$f":"SUBTOTAL(109,OfisFiili[May])","v":{"v":11508,"d":"11,508.00 ₺"}},{"$f":"SUBTOTAL(109,OfisFiili[Haz])","v":{"v":11454,"d":"11,454.00 ₺"}},{"$f":"SUBTOTAL(109,OfisFiili[Tem])","v":{"v":0,"d":"0.00 ₺"}},{"$f":"SUBTOTAL(109,OfisFiili[Ağu])","v":{"v":0,"d":"0.00 ₺"}},{"$f":"SUBTOTAL(109,OfisFiili[Eyl])","v":{"v":0,"d":"0.00 ₺"}},{"$f":"SUBTOTAL(109,OfisFiili[Eki])","v":{"v":0,"d":"0.00 ₺"}},{"$f":"SUBTOTAL(109,OfisFiili[Kas])","v":{"v":0,"d":"0.00 ₺"}},{"$f":"SUBTOTAL(109,OfisFiili[Ara])","v":{"v":0,"d":"0.00 ₺"}},{"$f":"SUBTOTAL(109,OfisFiili[YIL])","v":{"v":69350,"d":"69,350.00 ₺"}}]
[]
["Pazarlama Fiili tablosunda sağdaki hücreden başlayarak Pazarlama Maliyetleri girin. Sonraki yönerge A30 hücresindedir.","Pazarlama Maliyetleri","Oca","Şub","Mar","Nis","May","Haz","Tem","Ağu","Eyl","Eki","Kas","Ara","YIL"]
[null,"Web sitesi barındırma",{"v":500,"d":"500.00 ₺"},{"v":500,"d":"500.00 ₺"},{"v":500,"d":"500.00 ₺"},{"v":500,"d":"500.00 ₺"},{"v":500,"d":"500.00 ₺"},{"v":500,"d":"500.00 ₺"},{"$nulls":6},{"$f":"SUM(C22:N22)","v":{"v":3000,"d":"3,000.00 ₺"}}]
[null,"Web sitesi güncelleştirmeleri",{"v":200,"d":"200.00 ₺"},{"v":200,"d":"200.00 ₺"},{"v":200,"d":"200.00 ₺"},{"v":200,"d":"200.00 ₺"},{"v":200,"d":"200.00 ₺"},{"v":1500,"d":"1,500.00 ₺"},{"$nulls":6},{"v":2500,"d":"2,500.00 ₺"}]
[null,"Yardımcı malzeme hazırlığı",{"v":4800,"d":"4,800.00 ₺"},{"v":0,"d":"0.00 ₺"},{"v":0,"d":"0.00 ₺"},{"v":5500,"d":"5,500.00 ₺"},{"v":0,"d":"0.00 ₺"},{"v":0,"d":"0.00 ₺"},{"$nulls":6},{"v":10300,"d":"10,300.00 ₺"}]
[null,"Yardımcı malzemeleri yazdırma",{"v":100,"d":"100.00 ₺"},{"v":500,"d":"500.00 ₺"},{"v":100,"d":"100.00 ₺"},{"v":100,"d":"100.00 ₺"},{"v":600,"d":"600.00 ₺"},{"v":180,"d":"180.00 ₺"},{"$nulls":6},{"v":1580,"d":"1,580.00 ₺"}]
[null,"Pazarlama etkinlikleri",{"v":1800,"d":"1,800.00 ₺"},{"v":2200,"d":"2,200.00 ₺"},{"v":2200,"d":"2,200.00 ₺"},{"v":4700,"d":"4,700.00 ₺"},{"v":1500,"d":"1,500.00 ₺"},{"v":2300,"d":"2,300.00 ₺"},{"$nulls":6},{"v":14700,"d":"14,700.00 ₺"}]
[null,"Sair giderler",{"v":145,"d":"145.00 ₺"},{"v":156,"d":"156.00 ₺"},{"v":123,"d":"123.00 ₺"},{"v":223,"d":"223.00 ₺"},{"v":187,"d":"187.00 ₺"},{"v":245,"d":"245.00 ₺"},{"$nulls":6},{"v":1079,"d":"1,079.00 ₺"}]
[null,"Ara toplam",{"$f":"SUBTOTAL(109,PazarlamaFiili[Oca])","v":{"v":7545,"d":"7,545.00 ₺"}},{"$f":"SUBTOTAL(109,PazarlamaFiili[Şub])","v":{"v":3556,"d":"3,556.00 ₺"}},{"$f":"SUBTOTAL(109,PazarlamaFiili[Mar])","v":{"v":3123,"d":"3,123.00 ₺"}},{"$f":"SUBTOTAL(109,PazarlamaFiili[Nis])","v":{"v":11223,"d":"11,223.00 ₺"}},{"$f":"SUBTOTAL(109,PazarlamaFiili[May])","v":{"v":2987,"d":"2,987.00 ₺"}},{"$f":"SUBTOTAL(109,PazarlamaFiili[Haz])","v":{"v":4725,"d":"4,725.00 ₺"}},{"$f":"SUBTOTAL(109,PazarlamaFiili[Tem])","v":{"v":0,"d":"0.00 ₺"}},{"$f":"SUBTOTAL(109,PazarlamaFiili[Ağu])","v":{"v":0,"d":"0.00 ₺"}},{"$f":"SUBTOTAL(109,PazarlamaFiili[Eyl])","v":{"v":0,"d":"0.00 ₺"}},{"$f":"SUBTOTAL(109,PazarlamaFiili[Eki])","v":{"v":0,"d":"0.00 ₺"}},{"$f":"SUBTOTAL(109,PazarlamaFiili[Kas])","v":{"v":0,"d":"0.00 ₺"}},{"$f":"SUBTOTAL(109,PazarlamaFiili[Ara])","v":{"v":0,"d":"0.00 ₺"}},{"$f":"SUBTOTAL(109,PazarlamaFiili[YIL])","v":{"v":33159,"d":"33,159.00 ₺"}}]
[]
["Eğitim ve Seyahat Fiili tablosunda sağdaki hücreden başlayarak Eğitim ve Seyahat Maliyetlerini girin. Sonraki yönerge A35 hücresindedir.","Eğitim/Seyahat","Oca","Şub","Mar","Nis","May","Haz","Tem","Ağu","Eyl","Eki","Kas","Ara","YIL"]
[null,"Eğitim sınıfları",{"v":1600,"d":"1,600.00 ₺"},{"v":2400,"d":"2,400.00 ₺"},{"v":1400,"d":"1,400.00 ₺"},{"v":1600,"d":"1,600.00 ₺"},{"v":1200,"d":"1,200.00 ₺"},{"v":2800,"d":"2,800.00 ₺"},{"$nulls":6},{"$f":"SUM(C31:N31)","v":{"v":11000,"d":"11,000.00 ₺"}}]
[null,"Eğitimle ilgili seyahat maliyetleri",{"v":1200,"d":"1,200.00 ₺"},{"v":2200,"d":"2,200.00 ₺"},{"v":1400,"d":"1,400.00 ₺"},{"v":1200,"d":"1,200.00 ₺"},{"v":800,"d":"800.00 ₺"},{"v":3500,"d":"3,500.00 ₺"},{"$nulls":6},{"$f":"SUM(C32:N32)","v":{"v":10300,"d":"10,300.00 ₺"}}]
[null,"Ara toplam",{"$f":"SUBTOTAL(109,EğitimVeSeyahatFiili[Oca])","v":{"v":2800,"d":"2,800.00 ₺"}},{"$f":"SUBTOTAL(109,EğitimVeSeyahatFiili[Şub])","v":{"v":4600,"d":"4,600.00 ₺"}},{"$f":"SUBTOTAL(109,EğitimVeSeyahatFiili[Mar])","v":{"v":2800,"d":"2,800.00 ₺"}},{"$f":"SUBTOTAL(109,EğitimVeSeyahatFiili[Nis])","v":{"v":2800,"d":"2,800.00 ₺"}},{"$f":"SUBTOTAL(109,EğitimVeSeyahatFiili[May])","v":{"v":2000,"d":"2,000.00 ₺"}},{"$f":"SUBTOTAL(109,EğitimVeSeyahatFiili[Haz])","v":{"v":6300,"d":"6,300.00 ₺"}},{"$f":"SUBTOTAL(109,EğitimVeSeyahatFiili[Tem])","v":{"v":0,"d":"0.00 ₺"}},{"$f":"SUBTOTAL(109,EğitimVeSeyahatFiili[Ağu])","v":{"v":0,"d":"0.00 ₺"}},{"$f":"SUBTOTAL(109,EğitimVeSeyahatFiili[Eyl])","v":{"v":0,"d":"0.00 ₺"}},{"$f":"SUBTOTAL(109,EğitimVeSeyahatFiili[Eki])","v":{"v":0,"d":"0.00 ₺"}},{"$f":"SUBTOTAL(109,EğitimVeSeyahatFiili[Kas])","v":{"v":0,"d":"0.00 ₺"}},{"$f":"SUBTOTAL(109,EğitimVeSeyahatFiili[Ara])","v":{"v":0,"d":"0.00 ₺"}},{"$f":"SUBTOTAL(109,EğitimVeSeyahatFiili[YIL])","v":{"v":21300,"d":"21,300.00 ₺"}}]
[]
["Toplam Fiili Giderler, Toplam Fiili tablosunda sağdaki hücreden başlayarak otomatik olarak hesaplanır.","TOPLAM Planlanan Giderler","Oca","Şub","Mar","Nis","May","Haz","Tem","Ağu","Eyl","Eki","Kas","Ara","Yıl"]
[null,"Aylık Fiili Giderler",{"$f":"EğitimVeSeyahatFiili[[#Totals],[Oca]]+PazarlamaFiili[[#Totals],[Oca]]+OfisFiili[[#Totals],[Oca]]+ÇalışanFiili[[#Totals],[Oca]]","v":{"v":129682,"d":"129,682.00 ₺"}},{"$f":"EğitimVeSeyahatFiili[[#Totals],[Şub]]+PazarlamaFiili[[#Totals],[Şub]]+OfisFiili[[#Totals],[Şub]]+ÇalışanFiili[[#Totals],[Şub]]","v":{"v":127804,"d":"127,804.00 ₺"}},{"$f":"EğitimVeSeyahatFiili[[#Totals],[Mar]]+PazarlamaFiili[[#Totals],[Mar]]+OfisFiili[[#Totals],[Mar]]+ÇalışanFiili[[#Totals],[Mar]]","v":{"v":125565,"d":"125,565.00 ₺"}},{"$f":"EğitimVeSeyahatFiili[[#Totals],[Nis]]+PazarlamaFiili[[#Totals],[Nis]]+OfisFiili[[#Totals],[Nis]]+ÇalışanFiili[[#Totals],[Nis]]","v":{"v":137394,"d":"137,394.00 ₺"}},{"$f":"EğitimVeSeyahatFiili[[#Totals],[May]]+PazarlamaFiili[[#Totals],[May]]+OfisFiili[[#Totals],[May]]+ÇalışanFiili[[#Totals],[May]]","v":{"v":128255,"d":"128,255.00 ₺"}},{"$f":"EğitimVeSeyahatFiili[[#Totals],[Haz]]+PazarlamaFiili[[#Totals],[Haz]]+OfisFiili[[#Totals],[Haz]]+ÇalışanFiili[[#Totals],[Haz]]","v":{"v":134239,"d":"134,239.00 ₺"}},{"$f":"EğitimVeSeyahatFiili[[#Totals],[Tem]]+PazarlamaFiili[[#Totals],[Tem]]+OfisFiili[[#Totals],[Tem]]+ÇalışanFiili[[#Totals],[Tem]]","v":{"v":0,"d":"0.00 ₺"}},{"$f":"EğitimVeSeyahatFiili[[#Totals],[Ağu]]+PazarlamaFiili[[#Totals],[Ağu]]+OfisFiili[[#Totals],[Ağu]]+ÇalışanFiili[[#Totals],[Ağu]]","v":{"v":0,"d":"0.00 ₺"}},{"$f":"EğitimVeSeyahatFiili[[#Totals],[Eyl]]+PazarlamaFiili[[#Totals],[Eyl]]+OfisFiili[[#Totals],[Eyl]]+ÇalışanFiili[[#Totals],[Eyl]]","v":{"v":0,"d":"0.00 ₺"}},{"$f":"EğitimVeSeyahatFiili[[#Totals],[Eki]]+PazarlamaFiili[[#Totals],[Eki]]+OfisFiili[[#Totals],[Eki]]+ÇalışanFiili[[#Totals],[Eki]]","v":{"v":0,"d":"0.00 ₺"}},{"$f":"EğitimVeSeyahatFiili[[#Totals],[Kas]]+PazarlamaFiili[[#Totals],[Kas]]+OfisFiili[[#Totals],[Kas]]+ÇalışanFiili[[#Totals],[Kas]]","v":{"v":0,"d":"0.00 ₺"}},{"$f":"EğitimVeSeyahatFiili[[#Totals],[Ara]]+PazarlamaFiili[[#Totals],[Ara]]+OfisFiili[[#Totals],[Ara]]+ÇalışanFiili[[#Totals],[Ara]]","v":{"v":0,"d":"0.00 ₺"}},{"$f":"EğitimVeSeyahatFiili[[#Totals],[YIL]]+PazarlamaFiili[[#Totals],[YIL]]+OfisFiili[[#Totals],[YIL]]+ÇalışanFiili[[#Totals],[YIL]]","v":{"v":782939,"d":"782,939.00 ₺"}}]
[null,"TOPLAM Fiili Giderler",{"$f":"SUM($C$36:C36)","v":{"v":129682,"d":"129,682.00 ₺"}},{"$f":"SUM($C$36:D36)","v":{"v":257486,"d":"257,486.00 ₺"}},{"$f":"SUM($C$36:E36)","v":{"v":383051,"d":"383,051.00 ₺"}},{"$f":"SUM($C$36:F36)","v":{"v":520445,"d":"520,445.00 ₺"}},{"$f":"SUM($C$36:G36)","v":{"v":648700,"d":"648,700.00 ₺"}},{"$f":"SUM($C$36:H36)","v":{"v":782939,"d":"782,939.00 ₺"}},{"$f":"SUM($C$36:I36)","v":{"v":782939,"d":"782,939.00 ₺"}},{"$f":"SUM($C$36:J36)","v":{"v":782939,"d":"782,939.00 ₺"}},{"$f":"SUM($C$36:K36)","v":{"v":782939,"d":"782,939.00 ₺"}},{"$f":"SUM($C$36:L36)","v":{"v":782939,"d":"782,939.00 ₺"}},{"$f":"SUM($C$36:M36)","v":{"v":782939,"d":"782,939.00 ₺"}},{"$f":"SUM($C$36:N36)","v":{"v":782939,"d":"782,939.00 ₺"}}]

{"sheet":"GİDER VARYANSLARI","index":3,"n_rows":37,"n_cols":16,"rows_kept":37,"merged":[[1,1,2,3],[1,10,1,12],[1,13,2,14],[2,10,2,12],[8,1,8,2],[19,1,19,2],[28,1,28,2],[33,1,33,2]]}
["Çalışan Maliyetleri, Ofis Maliyetleri, Pazarlama Maliyetleri ve Eğitim veya Seyahat Maliyetine ilişkin bu çalışma sayfasındaki ilgili tablolarda Gider Varyansı otomatik olarak hesaplanır. Bu çalışma sayfasının nasıl kullanılacağına yönelik yardımcı yönergeler bu sütundaki hücrelerdedir. Başlamak için aşağı oka basın.",{"$nulls":14}," "]
["Şirket Adını sağdaki hücrede otomatik olarak güncelleştirilir. Bu çalışma sayfasının başlığı K2 hücresindedir. N2 hücresine Logoyu girin.",{"$f":"'PLANLANAN GİDERLER'!B2:D3","v":"Şirket Adını"},{"$nulls":8},{"$f":"worksheet_title","v":"Ayrıntılı Gider Tahminleri"},null,null,"Logo yer tutucusu bu hücrededir."]
["İpucu, K3 hücresindedir.",{"$nulls":9},"Gölgeli hücreler hesaplamalardır."]
["Gider Varyansları etiketi sağdaki hücrede, aylar C4 ile N4 arasındaki hücrelerde ve Yıl etiketi ise O4’tedir.","GİDER VARYANSLARI","OCA","ŞUB","MAR","NİS","MAY","HAZ","TEM","AĞU","EYL","EKİ","KAS","ARA","YIL"]
["Çalışan Maliyetleri Varyans, Çalışan Varyansları tablosunda sağdaki hücreden başlayarak otomatik olarak hesaplanır. Sonraki yönerge A10 hücresindedir.","Çalışan Maliyetleri","Oca","Şub","Mar","Nis","May","Haz","Tem","Ağu","Eyl","Eki","Kas","Ara","YIL"]
[null,"Maaşlar",{"$f":"INDEX(ÇalışanPlanı[],MATCH(INDEX(ÇalışanVaryansları[],ROW()-ROW(ÇalışanVaryansları[[#Headers],[Oca]]),1),INDEX(ÇalışanPlanı[],,1),0),MATCH(ÇalışanVaryansları[[#Headers],[Oca]],ÇalışanPlanı[#Headers],0))-INDEX(ÇalışanFiili[],MATCH(INDEX(ÇalışanVaryansları[],ROW()-ROW(ÇalışanVaryansları[[#Headers],[Oca]]),1),INDEX(ÇalışanPlanı[],,1),0),MATCH(ÇalışanVaryansları[[#Headers],[Oca]],ÇalışanFiili[#Headers],0))","v":{"v":0,"d":"0.00 ₺"}},{"$f":"INDEX(ÇalışanPlanı[],MATCH(INDEX(ÇalışanVaryansları[],ROW()-ROW(ÇalışanVaryansları[[#Headers],[Şub]]),1),INDEX(ÇalışanPlanı[],,1),0),MATCH(ÇalışanVaryansları[[#Headers],[Şub]],ÇalışanPlanı[#Headers],0))-INDEX(ÇalışanFiili[],MATCH(INDEX(ÇalışanVaryansları[],ROW()-ROW(ÇalışanVaryansları[[#Headers],[Şub]]),1),INDEX(ÇalışanPlanı[],,1),0),MATCH(ÇalışanVaryansları[[#Headers],[Şub]],ÇalışanFiili[#Headers],0))","v":{"v":0,"d":"0.00 ₺"}},{"$f":"INDEX(ÇalışanPlanı[],MATCH(INDEX(ÇalışanVaryansları[],ROW()-ROW(ÇalışanVaryansları[[#Headers],[Mar]]),1),INDEX(ÇalışanPlanı[],,1),0),MATCH(ÇalışanVaryansları[[#Headers],[Mar]],ÇalışanPlanı[#Headers],0))-INDEX(ÇalışanFiili[],MATCH(INDEX(ÇalışanVaryansları[],ROW()-ROW(ÇalışanVaryansları[[#Headers],[Mar]]),1),INDEX(ÇalışanPlanı[],,1),0),MATCH(ÇalışanVaryansları[[#Headers],[Mar]],ÇalışanFiili[#Headers],0))","v":{"v":0,"d":"0.00 ₺"}},{"$f":"INDEX(ÇalışanPlanı[],MATCH(INDEX(ÇalışanVaryansları[],ROW()-ROW(ÇalışanVaryansları[[#Headers],[Nis]]),1),INDEX(ÇalışanPlanı[],,1),0),MATCH(ÇalışanVaryansları[[#Headers],[Nis]],ÇalışanPlanı[#Headers],0))-INDEX(ÇalışanFiili[],MATCH(INDEX(ÇalışanVaryansları[],ROW()-ROW(ÇalışanVaryansları[[#Headers],[Nis]]),1),INDEX(ÇalışanPlanı[],,1),0),MATCH(ÇalışanVaryansları[[#Headers],[Nis]],ÇalışanFiili[#Headers],0))","v":{"v":-500,"d":"-500.00 ₺"}},{"$f":"INDEX(ÇalışanPlanı[],MATCH(INDEX(ÇalışanVaryansları[],ROW()-ROW(ÇalışanVaryansları[[#Headers],[May]]),1),INDEX(ÇalışanPlanı[],,1),0),MATCH(ÇalışanVaryansları[[#Headers],[May]],ÇalışanPlanı[#Headers],0))-INDEX(ÇalışanFiili[],MATCH(INDEX(ÇalışanVaryansları[],ROW()-ROW(ÇalışanVaryansları[[#Headers],[May]]),1),INDEX(ÇalışanPlanı[],,1),0),MATCH(ÇalışanVaryansları[[#Headers],[May]],ÇalışanFiili[#Headers],0))","v":{"v":-500,"d":"-500.00 ₺"}},{"$f":"INDEX(ÇalışanPlanı[],MATCH(INDEX(ÇalışanVaryansları[],ROW()-ROW(ÇalışanVaryansları[[#Headers],[Haz]]),1),INDEX(ÇalışanPlanı[],,1),0),MATCH(ÇalışanVaryansları[[#Headers],[Haz]],ÇalışanPlanı[#Headers],0))-INDEX(ÇalışanFiili[],MATCH(INDEX(ÇalışanVaryansları[],ROW()-ROW(ÇalışanVaryansları[[#Headers],[Haz]]),1),INDEX(ÇalışanPlanı[],,1),0),MATCH(ÇalışanVaryansları[[#Headers],[Haz]],ÇalışanFiili[#Headers],0))","v":{"v":-500,"d":"-500.00 ₺"}},{"$f":"INDEX(ÇalışanPlanı[],MATCH(INDEX(ÇalışanVaryansları[],ROW()-ROW(ÇalışanVaryansları[[#Headers],[Tem]]),1),INDEX(ÇalışanPlanı[],,1),0),MATCH(ÇalışanVaryansları[[#Headers],[Tem]],ÇalışanPlanı[#Headers],0))-INDEX(ÇalışanFiili[],MATCH(INDEX(ÇalışanVaryansları[],ROW()-ROW(ÇalışanVaryansları[[#Headers],[Tem]]),1),INDEX(ÇalışanPlanı[],,1),0),MATCH(ÇalışanVaryansları[[#Headers],[Tem]],ÇalışanFiili[#Headers],0))","v":{"v":87500,"d":"87,500.00 ₺"}},{"$f":"INDEX(ÇalışanPlanı[],MATCH(INDEX(ÇalışanVaryansları[],ROW()-ROW(ÇalışanVaryansları[[#Headers],[Ağu]]),1),INDEX(ÇalışanPlanı[],,1),0),MATCH(ÇalışanVaryansları[[#Headers],[Ağu]],ÇalışanPlanı[#Headers],0))-INDEX(ÇalışanFiili[],MATCH(INDEX(ÇalışanVaryansları[],ROW()-ROW(ÇalışanVaryansları[[#Headers],[Ağu]]),1),INDEX(ÇalışanPlanı[],,1),0),MATCH(ÇalışanVaryansları[[#Headers],[Ağu]],ÇalışanFiili[#Headers],0))","v":{"v":92400,"d":"92,400.00 ₺"}},{"$f":"INDEX(ÇalışanPlanı[],MATCH(INDEX(ÇalışanVaryansları[],ROW()-ROW(ÇalışanVaryansları[[#Headers],[Eyl]]),1),INDEX(ÇalışanPlanı[],,1),0),MATCH(ÇalışanVaryansları[[#Headers],[Eyl]],ÇalışanPlanı[#Headers],0))-INDEX(ÇalışanFiili[],MATCH(INDEX(ÇalışanVaryansları[],ROW()-ROW(ÇalışanVaryansları[[#Headers],[Eyl]]),1),INDEX(ÇalışanPlanı[],,1),0),MATCH(ÇalışanVaryansları[[#Headers],[Eyl]],ÇalışanFiili[#Headers],0))","v":{"v":92400,"d":"92,400.00 ₺"}},{"$f":"INDEX(ÇalışanPlanı[],MATCH(INDEX(ÇalışanVaryansları[],ROW()-ROW(ÇalışanVaryansları[[#Headers],[Eki]]),1),INDEX(ÇalışanPlanı[],,1),0),MATCH(ÇalışanVaryansları[[#Headers],[Eki]],ÇalışanPlanı[#Headers],0))-INDEX(ÇalışanFiili[],MATCH(INDEX(ÇalışanVaryansları[],ROW()-ROW(ÇalışanVaryansları[[#Headers],[Eki]]),1),INDEX(ÇalışanPlanı[],,1),0),MATCH(ÇalışanVaryansları[[#Headers],[Eki]],ÇalışanFiili[#Headers],0))","v":{"v":92400,"d":"92,400.00 ₺"}},{"$f":"INDEX(ÇalışanPlanı[],MATCH(INDEX(ÇalışanVaryansları[],ROW()-ROW(ÇalışanVaryansları[[#Headers],[Kas]]),1),INDEX(ÇalışanPlanı[],,1),0),MATCH(ÇalışanVaryansları[[#Headers],[Kas]],ÇalışanPlanı[#Headers],0))-INDEX(ÇalışanFiili[],MATCH(INDEX(ÇalışanVaryansları[],ROW()-ROW(ÇalışanVaryansları[[#Headers],[Kas]]),1),INDEX(ÇalışanPlanı[],,1),0),MATCH(ÇalışanVaryansları[[#Headers],[Kas]],ÇalışanFiili[#Headers],0))","v":{"v":92400,"d":"92,400.00 ₺"}},{"$f":"INDEX(ÇalışanPlanı[],MATCH(INDEX(ÇalışanVaryansları[],ROW()-ROW(ÇalışanVaryansları[[#Headers],[Ara]]),1),INDEX(ÇalışanPlanı[],,1),0),MATCH(ÇalışanVaryansları[[#Headers],[Ara]],ÇalışanPlanı[#Headers],0))-INDEX(ÇalışanFiili[],MATCH(INDEX(ÇalışanVaryansları[],ROW()-ROW(ÇalışanVaryansları[[#Headers],[Ara]]),1),INDEX(ÇalışanPlanı[],,1),0),MATCH(ÇalışanVaryansları[[#Headers],[Ara]],ÇalışanFiili[#Headers],0))","v":{"v":92400,"d":"92,400.00 ₺"}},{"$f":"SUM(ÇalışanVaryansları[[#This Row],[Oca]:[Ara]])","v":{"v":548000,"d":"548,000.00 ₺"}}]
[null,"Kazançlar",{"$f":"INDEX(ÇalışanPlanı[],MATCH(INDEX(ÇalışanVaryansları[],ROW()-ROW(ÇalışanVaryansları[[#Headers],[Oca]]),1),INDEX(ÇalışanPlanı[],,1),0),MATCH(ÇalışanVaryansları[[#Headers],[Oca]],ÇalışanPlanı[#Headers],0))-INDEX(ÇalışanFiili[],MATCH(INDEX(ÇalışanVaryansları[],ROW()-ROW(ÇalışanVaryansları[[#Headers],[Oca]]),1),INDEX(ÇalışanPlanı[],,1),0),MATCH(ÇalışanVaryansları[[#Headers],[Oca]],ÇalışanFiili[#Headers],0))","v":{"v":0,"d":"0.00 ₺"}},{"$f":"INDEX(ÇalışanPlanı[],MATCH(INDEX(ÇalışanVaryansları[],ROW()-ROW(ÇalışanVaryansları[[#Headers],[Şub]]),1),INDEX(ÇalışanPlanı[],,1),0),MATCH(ÇalışanVaryansları[[#Headers],[Şub]],ÇalışanPlanı[#Headers],0))-INDEX(ÇalışanFiili[],MATCH(INDEX(ÇalışanVaryansları[],ROW()-ROW(ÇalışanVaryansları[[#Headers],[Şub]]),1),INDEX(ÇalışanPlanı[],,1),0),MATCH(ÇalışanVaryansları[[#Headers],[Şub]],ÇalışanFiili[#Headers],0))","v":{"v":0,"d":"0.00 ₺"}},{"$f":"INDEX(ÇalışanPlanı[],MATCH(INDEX(ÇalışanVaryansları[],ROW()-ROW(ÇalışanVaryansları[[#Headers],[Mar]]),1),INDEX(ÇalışanPlanı[],,1),0),MATCH(ÇalışanVaryansları[[#Headers],[Mar]],ÇalışanPlanı[#Headers],0))-INDEX(ÇalışanFiili[],MATCH(INDEX(ÇalışanVaryansları[],ROW()-ROW(ÇalışanVaryansları[[#Headers],[Mar]]),1),INDEX(ÇalışanPlanı[],,1),0),MATCH(ÇalışanVaryansları[[#Headers],[Mar]],ÇalışanFiili[#Headers],0))","v":{"v":0,"d":"0.00 ₺"}},{"$f":"INDEX(ÇalışanPlanı[],MATCH(INDEX(ÇalışanVaryansları[],ROW()-ROW(ÇalışanVaryansları[[#Headers],[Nis]]),1),INDEX(ÇalışanPlanı[],,1),0),MATCH(ÇalışanVaryansları[[#Headers],[Nis]],ÇalışanPlanı[#Headers],0))-INDEX(ÇalışanFiili[],MATCH(INDEX(ÇalışanVaryansları[],ROW()-ROW(ÇalışanVaryansları[[#Headers],[Nis]]),1),INDEX(ÇalışanPlanı[],,1),0),MATCH(ÇalışanVaryansları[[#Headers],[Nis]],ÇalışanFiili[#Headers],0))","v":{"v":-135,"d":"-135.00 ₺"}},{"$f":"INDEX(ÇalışanPlanı[],MATCH(INDEX(ÇalışanVaryansları[],ROW()-ROW(ÇalışanVaryansları[[#Headers],[May]]),1),INDEX(ÇalışanPlanı[],,1),0),MATCH(ÇalışanVaryansları[[#Headers],[May]],ÇalışanPlanı[#Headers],0))-INDEX(ÇalışanFiili[],MATCH(INDEX(ÇalışanVaryansları[],ROW()-ROW(ÇalışanVaryansları[[#Headers],[May]]),1),INDEX(ÇalışanPlanı[],,1),0),MATCH(ÇalışanVaryansları[[#Headers],[May]],ÇalışanFiili[#Headers],0))","v":{"v":-135,"d":"-135.00 ₺"}},{"$f":"INDEX(ÇalışanPlanı[],MATCH(INDEX(ÇalışanVaryansları[],ROW()-ROW(ÇalışanVaryansları[[#Headers],[Haz]]),1),INDEX(ÇalışanPlanı[],,1),0),MATCH(ÇalışanVaryansları[[#Headers],[Haz]],ÇalışanPlanı[#Headers],0))-INDEX(ÇalışanFiili[],MATCH(INDEX(ÇalışanVaryansları[],ROW()-ROW(ÇalışanVaryansları[[#Headers],[Haz]]),1),INDEX(ÇalışanPlanı[],,1),0),MATCH(ÇalışanVaryansları[[#Headers],[Haz]],ÇalışanFiili[#Headers],0))","v":{"v":-135,"d":"-135.00 ₺"}},{"$f":"INDEX(ÇalışanPlanı[],MATCH(INDEX(ÇalışanVaryansları[],ROW()-ROW(ÇalışanVaryansları[[#Headers],[Tem]]),1),INDEX(ÇalışanPlanı[],,1),0),MATCH(ÇalışanVaryansları[[#Headers],[Tem]],ÇalışanPlanı[#Headers],0))-INDEX(ÇalışanFiili[],MATCH(INDEX(ÇalışanVaryansları[],ROW()-ROW(ÇalışanVaryansları[[#Headers],[Tem]]),1),INDEX(ÇalışanPlanı[],,1),0),MATCH(ÇalışanVaryansları[[#Headers],[Tem]],ÇalışanFiili[#Headers],0))","v":{"v":23625,"d":"23,625.00 ₺"}},{"$f":"INDEX(ÇalışanPlanı[],MATCH(INDEX(ÇalışanVaryansları[],ROW()-ROW(ÇalışanVaryansları[[#Headers],[Ağu]]),1),INDEX(ÇalışanPlanı[],,1),0),MATCH(ÇalışanVaryansları[[#Headers],[Ağu]],ÇalışanPlanı[#Headers],0))-INDEX(ÇalışanFiili[],MATCH(INDEX(ÇalışanVaryansları[],ROW()-ROW(ÇalışanVaryansları[[#Headers],[Ağu]]),1),INDEX(ÇalışanPlanı[],,1),0),MATCH(ÇalışanVaryansları[[#Headers],[Ağu]],ÇalışanFiili[#Headers],0))","v":{"v":24948,"d":"24,948.00 ₺"}},{"$f":"INDEX(ÇalışanPlanı[],MATCH(INDEX(ÇalışanVaryansları[],ROW()-ROW(ÇalışanVaryansları[[#Headers],[Eyl]]),1),INDEX(ÇalışanPlanı[],,1),0),MATCH(ÇalışanVaryansları[[#Headers],[Eyl]],ÇalışanPlanı[#Headers],0))-INDEX(ÇalışanFiili[],MATCH(INDEX(ÇalışanVaryansları[],ROW()-ROW(ÇalışanVaryansları[[#Headers],[Eyl]]),1),INDEX(ÇalışanPlanı[],,1),0),MATCH(ÇalışanVaryansları[[#Headers],[Eyl]],ÇalışanFiili[#Headers],0))","v":{"v":24948,"d":"24,948.00 ₺"}},{"$f":"INDEX(ÇalışanPlanı[],MATCH(INDEX(ÇalışanVaryansları[],ROW()-ROW(ÇalışanVaryansları[[#Headers],[Eki]]),1),INDEX(ÇalışanPlanı[],,1),0),MATCH(ÇalışanVaryansları[[#Headers],[Eki]],ÇalışanPlanı[#Headers],0))-INDEX(ÇalışanFiili[],MATCH(INDEX(ÇalışanVaryansları[],ROW()-ROW(ÇalışanVaryansları[[#Headers],[Eki]]),1),INDEX(ÇalışanPlanı[],,1),0),MATCH(ÇalışanVaryansları[[#Headers],[Eki]],ÇalışanFiili[#Headers],0))","v":{"v":24948,"d":"24,948.00 ₺"}},{"$f":"INDEX(ÇalışanPlanı[],MATCH(INDEX(ÇalışanVaryansları[],ROW()-ROW(ÇalışanVaryansları[[#Headers],[Kas]]),1),INDEX(ÇalışanPlanı[],,1),0),MATCH(ÇalışanVaryansları[[#Headers],[Kas]],ÇalışanPlanı[#Headers],0))-INDEX(ÇalışanFiili[],MATCH(INDEX(ÇalışanVaryansları[],ROW()-ROW(ÇalışanVaryansları[[#Headers],[Kas]]),1),INDEX(ÇalışanPlanı[],,1),0),MATCH(ÇalışanVaryansları[[#Headers],[Kas]],ÇalışanFiili[#Headers],0))","v":{"v":24948,"d":"24,948.00 ₺"}},{"$f":"INDEX(ÇalışanPlanı[],MATCH(INDEX(ÇalışanVaryansları[],ROW()-ROW(ÇalışanVaryansları[[#Headers],[Ara]]),1),INDEX(ÇalışanPlanı[],,1),0),MATCH(ÇalışanVaryansları[[#Headers],[Ara]],ÇalışanPlanı[#Headers],0))-INDEX(ÇalışanFiili[],MATCH(INDEX(ÇalışanVaryansları[],ROW()-ROW(ÇalışanVaryansları[[#Headers],[Ara]]),1),INDEX(ÇalışanPlanı[],,1),0),MATCH(ÇalışanVaryansları[[#Headers],[Ara]],ÇalışanFiili[#Headers],0))","v":{"v":24948,"d":"24,948.00 ₺"}},{"$f":"SUM(ÇalışanVaryansları[[#This Row],[Oca]:[Ara]])","v":{"v":147960,"d":"147,960.00 ₺"}}]
[null,"Ara toplam",{"$f":"SUBTOTAL(109,ÇalışanVaryansları[Oca])","v":{"v":0,"d":"0.00 ₺"}},{"$f":"SUBTOTAL(109,ÇalışanVaryansları[Şub])","v":{"v":0,"d":"0.00 ₺"}},{"$f":"SUBTOTAL(109,ÇalışanVaryansları[Mar])","v":{"v":0,"d":"0.00 ₺"}},{"$f":"SUBTOTAL(109,ÇalışanVaryansları[Nis])","v":{"v":-635,"d":"-635.00 ₺"}},{"$f":"SUBTOTAL(109,ÇalışanVaryansları[May])","v":{"v":-635,"d":"-635.00 ₺"}},{"$f":"SUBTOTAL(109,ÇalışanVaryansları[Haz])","v":{"v":-635,"d":"-635.00 ₺"}},{"$f":"SUBTOTAL(109,ÇalışanVaryansları[Tem])","v":{"v":111125,"d":"111,125.00 ₺"}},{"$f":"SUBTOTAL(109,ÇalışanVaryansları[Ağu])","v":{"v":117348,"d":"117,348.00 ₺"}},{"$f":"SUBTOTAL(109,ÇalışanVaryansları[Eyl])","v":{"v":117348,"d":"117,348.00 ₺"}},{"$f":"SUBTOTAL(109,ÇalışanVaryansları[Eki])","v":{"v":117348,"d":"117,348.00 ₺"}},{"$f":"SUBTOTAL(109,ÇalışanVaryansları[Kas])","v":{"v":117348,"d":"117,348.00 ₺"}},{"$f":"SUBTOTAL(109,ÇalışanVaryansları[Ara])","v":{"v":117348,"d":"117,348.00 ₺"}},{"$f":"SUBTOTAL(109,ÇalışanVaryansları[YIL])","v":{"v":695960,"d":"695,960.00 ₺"}}]
[]
["Ofis Maliyetleri Varyans, Ofis Varyansları tablosunda sağdaki hücreden başlayarak otomatik olarak hesaplanır. Sonraki yönerge A21 hücresindedir.","Ofis Maliyetleri","Oca","Şub","Mar","Nis","May","Haz","Tem","Ağu","Eyl","Eki","Kas","Ara","YIL"]
[null,"Ofis kirası",{"$f":"INDEX(OfisPlanı[],MATCH(INDEX(OfisVaryansları[],ROW()-ROW(OfisVaryansları[[#Headers],[Oca]]),1),INDEX(OfisPlanı[],,1),0),MATCH(OfisVaryansları[[#Headers],[Oca]],OfisPlanı[#Headers],0))-INDEX(OfisFiili[],MATCH(INDEX(OfisVaryansları[],ROW()-ROW(OfisVaryansları[[#Headers],[Oca]]),1),INDEX(OfisPlanı[],,1),0),MATCH(OfisVaryansları[[#Headers],[Oca]],OfisFiili[#Headers],0))","v":{"v":0,"d":"0.00 ₺"}},{"$f":"INDEX(OfisPlanı[],MATCH(INDEX(OfisVaryansları[],ROW()-ROW(OfisVaryansları[[#Headers],[Şub]]),1),INDEX(OfisPlanı[],,1),0),MATCH(OfisVaryansları[[#Headers],[Şub]],OfisPlanı[#Headers],0))-INDEX(OfisFiili[],MATCH(INDEX(OfisVaryansları[],ROW()-ROW(OfisVaryansları[[#Headers],[Şub]]),1),INDEX(OfisPlanı[],,1),0),MATCH(OfisVaryansları[[#Headers],[Şub]],OfisFiili[#Headers],0))","v":{"v":0,"d":"0.00 ₺"}},{"$f":"INDEX(OfisPlanı[],MATCH(INDEX(OfisVaryansları[],ROW()-ROW(OfisVaryansları[[#Headers],[Mar]]),1),INDEX(OfisPlanı[],,1),0),MATCH(OfisVaryansları[[#Headers],[Mar]],OfisPlanı[#Headers],0))-INDEX(OfisFiili[],MATCH(INDEX(OfisVaryansları[],ROW()-ROW(OfisVaryansları[[#Headers],[Mar]]),1),INDEX(OfisPlanı[],,1),0),MATCH(OfisVaryansları[[#Headers],[Mar]],OfisFiili[#Headers],0))","v":{"v":0,"d":"0.00 ₺"}},{"$f":"INDEX(OfisPlanı[],MATCH(INDEX(OfisVaryansları[],ROW()-ROW(OfisVaryansları[[#Headers],[Nis]]),1),INDEX(OfisPlanı[],,1),0),MATCH(OfisVaryansları[[#Headers],[Nis]],OfisPlanı[#Headers],0))-INDEX(OfisFiili[],MATCH(INDEX(OfisVaryansları[],ROW()-ROW(OfisVaryansları[[#Headers],[Nis]]),1),INDEX(OfisPlanı[],,1),0),MATCH(OfisVaryansları[[#Headers],[Nis]],OfisFiili[#Headers],0))","v":{"v":0,"d":"0.00 ₺"}},{"$f":"INDEX(OfisPlanı[],MATCH(INDEX(OfisVaryansları[],ROW()-ROW(OfisVaryansları[[#Headers],[May]]),1),INDEX(OfisPlanı[],,1),0),MATCH(OfisVaryansları[[#Headers],[May]],OfisPlanı[#Headers],0))-INDEX(OfisFiili[],MATCH(INDEX(OfisVaryansları[],ROW()-ROW(OfisVaryansları[[#Headers],[May]]),1),INDEX(OfisPlanı[],,1),0),MATCH(OfisVaryansları[[#Headers],[May]],OfisFiili[#Headers],0))","v":{"v":0,"d":"0.00 ₺"}},{"$f":"INDEX(OfisPlanı[],MATCH(INDEX(OfisVaryansları[],ROW()-ROW(OfisVaryansları[[#Headers],[Haz]]),1),INDEX(OfisPlanı[],,1),0),MATCH(OfisVaryansları[[#Headers],[Haz]],OfisPlanı[#Headers],0))-INDEX(OfisFiili[],MATCH(INDEX(OfisVaryansları[],ROW()-ROW(OfisVaryansları[[#Headers],[Haz]]),1),INDEX(OfisPlanı[],,1),0),MATCH(OfisVaryansları[[#Headers],[Haz]],OfisFiili[#Headers],0))","v":{"v":0,"d":"0.00 ₺"}},{"$f":"INDEX(OfisPlanı[],MATCH(INDEX(OfisVaryansları[],ROW()-ROW(OfisVaryansları[[#Headers],[Tem]]),1),INDEX(OfisPlanı[],,1),0),MATCH(OfisVaryansları[[#Headers],[Tem]],OfisPlanı[#Headers],0))-INDEX(OfisFiili[],MATCH(INDEX(OfisVaryansları[],ROW()-ROW(OfisVaryansları[[#Headers],[Tem]]),1),INDEX(OfisPlanı[],,1),0),MATCH(OfisVaryansları[[#Headers],[Tem]],OfisFiili[#Headers],0))","v":{"v":9800,"d":"9,800.00 ₺"}},{"$f":"INDEX(OfisPlanı[],MATCH(INDEX(OfisVaryansları[],ROW()-ROW(OfisVaryansları[[#Headers],[Ağu]]),1),INDEX(OfisPlanı[],,1),0),MATCH(OfisVaryansları[[#Headers],[Ağu]],OfisPlanı[#Headers],0))-INDEX(OfisFiili[],MATCH(INDEX(OfisVaryansları[],ROW()-ROW(OfisVaryansları[[#Headers],[Ağu]]),1),INDEX(OfisPlanı[],,1),0),MATCH(OfisVaryansları[[#Headers],[Ağu]],OfisFiili[#Headers],0))","v":{"v":9800,"d":"9,800.00 ₺"}},{"$f":"INDEX(OfisPlanı[],MATCH(INDEX(OfisVaryansları[],ROW()-ROW(OfisVaryansları[[#Headers],[Eyl]]),1),INDEX(OfisPlanı[],,1),0),MATCH(OfisVaryansları[[#Headers],[Eyl]],OfisPlanı[#Headers],0))-INDEX(OfisFiili[],MATCH(INDEX(OfisVaryansları[],ROW()-ROW(OfisVaryansları[[#Headers],[Eyl]]),1),INDEX(OfisPlanı[],,1),0),MATCH(OfisVaryansları[[#Headers],[Eyl]],OfisFiili[#Headers],0))","v":{"v":9800,"d":"9,800.00 ₺"}},{"$f":"INDEX(OfisPlanı[],MATCH(INDEX(OfisVaryansları[],ROW()-ROW(OfisVaryansları[[#Headers],[Eki]]),1),INDEX(OfisPlanı[],,1),0),MATCH(OfisVaryansları[[#Headers],[Eki]],OfisPlanı[#Headers],0))-INDEX(OfisFiili[],MATCH(INDEX(OfisVaryansları[],ROW()-ROW(OfisVaryansları[[#Headers],[Eki]]),1),INDEX(OfisPlanı[],,1),0),MATCH(OfisVaryansları[[#Headers],[Eki]],OfisFiili[#Headers],0))","v":{"v":9800,"d":"9,800.00 ₺"}},{"$f":"INDEX(OfisPlanı[],MATCH(INDEX(OfisVaryansları[],ROW()-ROW(OfisVaryansları[[#Headers],[Kas]]),1),INDEX(OfisPlanı[],,1),0),MATCH(OfisVaryansları[[#Headers],[Kas]],OfisPlanı[#Headers],0))-INDEX(OfisFiili[],MATCH(INDEX(OfisVaryansları[],ROW()-ROW(OfisVaryansları[[#Headers],[Kas]]),1),INDEX(OfisPlanı[],,1),0),MATCH(OfisVaryansları[[#Headers],[Kas]],OfisFiili[#Headers],0))","v":{"v":9800,"d":"9,800.00 ₺"}},{"$f":"INDEX(OfisPlanı[],MATCH(INDEX(OfisVaryansları[],ROW()-ROW(OfisVaryansları[[#Headers],[Ara]]),1),INDEX(OfisPlanı[],,1),0),MATCH(OfisVaryansları[[#Headers],[Ara]],OfisPlanı[#Headers],0))-INDEX(OfisFiili[],MATCH(INDEX(OfisVaryansları[],ROW()-ROW(OfisVaryansları[[#Headers],[Ara]]),1),INDEX(OfisPlanı[],,1),0),MATCH(OfisVaryansları[[#Headers],[Ara]],OfisFiili[#Headers],0))","v":{"v":9800,"d":"9,800.00 ₺"}},{"$f":"SUM(OfisVaryansları[[#This Row],[Oca]:[Ara]])","v":{"v":58800,"d":"58,800.00 ₺"}}]
[null,"Doğalgaz",{"$f":"INDEX(OfisPlanı[],MATCH(INDEX(OfisVaryansları[],ROW()-ROW(OfisVaryansları[[#Headers],[Oca]]),1),INDEX(OfisPlanı[],,1),0),MATCH(OfisVaryansları[[#Headers],[Oca]],OfisPlanı[#Headers],0))-INDEX(OfisFiili[],MATCH(INDEX(OfisVaryansları[],ROW()-ROW(OfisVaryansları[[#Headers],[Oca]]),1),INDEX(OfisPlanı[],,1),0),MATCH(OfisVaryansları[[#Headers],[Oca]],OfisFiili[#Headers],0))","v":{"v":-4,"d":"-4.00 ₺"}},{"$f":"INDEX(OfisPlanı[],MATCH(INDEX(OfisVaryansları[],ROW()-ROW(OfisVaryansları[[#Headers],[Şub]]),1),INDEX(OfisPlanı[],,1),0),MATCH(OfisVaryansları[[#Headers],[Şub]],OfisPlanı[#Headers],0))-INDEX(OfisFiili[],MATCH(INDEX(OfisVaryansları[],ROW()-ROW(OfisVaryansları[[#Headers],[Şub]]),1),INDEX(OfisPlanı[],,1),0),MATCH(OfisVaryansları[[#Headers],[Şub]],OfisFiili[#Headers],0))","v":{"v":-30,"d":"-30.00 ₺"}},{"$f":"INDEX(OfisPlanı[],MATCH(INDEX(OfisVaryansları[],ROW()-ROW(OfisVaryansları[[#Headers],[Mar]]),1),INDEX(OfisPlanı[],,1),0),MATCH(OfisVaryansları[[#Headers],[Mar]],OfisPlanı[#Headers],0))-INDEX(OfisFiili[],MATCH(INDEX(OfisVaryansları[],ROW()-ROW(OfisVaryansları[[#Headers],[Mar]]),1),INDEX(OfisPlanı[],,1),0),MATCH(OfisVaryansları[[#Headers],[Mar]],OfisFiili[#Headers],0))","v":{"v":15,"d":"15.00 ₺"}},{"$f":"INDEX(OfisPlanı[],MATCH(INDEX(OfisVaryansları[],ROW()-ROW(OfisVaryansları[[#Headers],[Nis]]),1),INDEX(OfisPlanı[],,1),0),MATCH(OfisVaryansları[[#Headers],[Nis]],OfisPlanı[#Headers],0))-INDEX(OfisFiili[],MATCH(INDEX(OfisVaryansları[],ROW()-ROW(OfisVaryansları[[#Headers],[Nis]]),1),INDEX(OfisPlanı[],,1),0),MATCH(OfisVaryansları[[#Headers],[Nis]],OfisFiili[#Headers],0))","v":{"v":-130,"d":"-130.00 ₺"}},{"$f":"INDEX(OfisPlanı[],MATCH(INDEX(OfisVaryansları[],ROW()-ROW(OfisVaryansları[[#Headers],[May]]),1),INDEX(OfisPlanı[],,1),0),MATCH(OfisVaryansları[[#Headers],[May]],OfisPlanı[#Headers],0))-INDEX(OfisFiili[],MATCH(INDEX(OfisVaryansları[],ROW()-ROW(OfisVaryansları[[#Headers],[May]]),1),INDEX(OfisPlanı[],,1),0),MATCH(OfisVaryansları[[#Headers],[May]],OfisFiili[#Headers],0))","v":{"v":13,"d":"13.00 ₺"}},{"$f":"INDEX(OfisPlanı[],MATCH(INDEX(OfisVaryansları[],ROW()-ROW(OfisVaryansları[[#Headers],[Haz]]),1),INDEX(OfisPlanı[],,1),0),MATCH(OfisVaryansları[[#Headers],[Haz]],OfisPlanı[#Headers],0))-INDEX(OfisFiili[],MATCH(INDEX(OfisVaryansları[],ROW()-ROW(OfisVaryansları[[#Headers],[Haz]]),1),INDEX(OfisPlanı[],,1),0),MATCH(OfisVaryansları[[#Headers],[Haz]],OfisFiili[#Headers],0))","v":{"v":12,"d":"12.00 ₺"}},{"$f":"INDEX(OfisPlanı[],MATCH(INDEX(OfisVaryansları[],ROW()-ROW(OfisVaryansları[[#Headers],[Tem]]),1),INDEX(OfisPlanı[],,1),0),MATCH(OfisVaryansları[[#Headers],[Tem]],OfisPlanı[#Headers],0))-INDEX(OfisFiili[],MATCH(INDEX(OfisVaryansları[],ROW()-ROW(OfisVaryansları[[#Headers],[Tem]]),1),INDEX(OfisPlanı[],,1),0),MATCH(OfisVaryansları[[#Headers],[Tem]],OfisFiili[#Headers],0))","v":{"v":100,"d":"100.00 ₺"}},{"$f":"INDEX(OfisPlanı[],MATCH(INDEX(OfisVaryansları[],ROW()-ROW(OfisVaryansları[[#Headers],[Ağu]]),1),INDEX(OfisPlanı[],,1),0),MATCH(OfisVaryansları[[#Headers],[Ağu]],OfisPlanı[#Headers],0))-INDEX(OfisFiili[],MATCH(INDEX(OfisVaryansları[],ROW()-ROW(OfisVaryansları[[#Headers],[Ağu]]),1),INDEX(OfisPlanı[],,1),0),MATCH(OfisVaryansları[[#Headers],[Ağu]],OfisFiili[#Headers],0))","v":{"v":100,"d":"100.00 ₺"}},{"$f":"INDEX(OfisPlanı[],MATCH(INDEX(OfisVaryansları[],ROW()-ROW(OfisVaryansları[[#Headers],[Eyl]]),1),INDEX(OfisPlanı[],,1),0),MATCH(OfisVaryansları[[#Headers],[Eyl]],OfisPlanı[#Headers],0))-INDEX(OfisFiili[],MATCH(INDEX(OfisVaryansları[],ROW()-ROW(OfisVaryansları[[#Headers],[Eyl]]),1),INDEX(OfisPlanı[],,1),0),MATCH(OfisVaryansları[[#Headers],[Eyl]],OfisFiili[#Headers],0))","v":{"v":100,"d":"100.00 ₺"}},{"$f":"INDEX(OfisPlanı[],MATCH(INDEX(OfisVaryansları[],ROW()-ROW(OfisVaryansları[[#Headers],[Eki]]),1),INDEX(OfisPlanı[],,1),0),MATCH(OfisVaryansları[[#Headers],[Eki]],OfisPlanı[#Headers],0))-INDEX(OfisFiili[],MATCH(INDEX(OfisVaryansları[],ROW()-ROW(OfisVaryansları[[#Headers],[Eki]]),1),INDEX(OfisPlanı[],,1),0),MATCH(OfisVaryansları[[#Headers],[Eki]],OfisFiili[#Headers],0))","v":{"v":100,"d":"100.00 ₺"}},{"$f":"INDEX(OfisPlanı[],MATCH(INDEX(OfisVaryansları[],ROW()-ROW(OfisVaryansları[[#Headers],[Kas]]),1),INDEX(OfisPlanı[],,1),0),MATCH(OfisVaryansları[[#Headers],[Kas]],OfisPlanı[#Headers],0))-INDEX(OfisFiili[],MATCH(INDEX(OfisVaryansları[],ROW()-ROW(OfisVaryansları[[#Headers],[Kas]]),1),INDEX(OfisPlanı[],,1),0),MATCH(OfisVaryansları[[#Headers],[Kas]],OfisFiili[#Headers],0))","v":{"v":400,"d":"400.00 ₺"}},{"$f":"INDEX(OfisPlanı[],MATCH(INDEX(OfisVaryansları[],ROW()-ROW(OfisVaryansları[[#Headers],[Ara]]),1),INDEX(OfisPlanı[],,1),0),MATCH(OfisVaryansları[[#Headers],[Ara]],OfisPlanı[#Headers],0))-INDEX(OfisFiili[],MATCH(INDEX(OfisVaryansları[],ROW()-ROW(OfisVaryansları[[#Headers],[Ara]]),1),INDEX(OfisPlanı[],,1),0),MATCH(OfisVaryansları[[#Headers],[Ara]],OfisFiili[#Headers],0))","v":{"v":400,"d":"400.00 ₺"}},{"$f":"SUM(OfisVaryansları[[#This Row],[Oca]:[Ara]])","v":{"v":1076,"d":"1,076.00 ₺"}}]
[null,"Elektrik",{"$f":"INDEX(OfisPlanı[],MATCH(INDEX(OfisVaryansları[],ROW()-ROW(OfisVaryansları[[#Headers],[Oca]]),1),INDEX(OfisPlanı[],,1),0),MATCH(OfisVaryansları[[#Headers],[Oca]],OfisPlanı[#Headers],0))-INDEX(OfisFiili[],MATCH(INDEX(OfisVaryansları[],ROW()-ROW(OfisVaryansları[[#Headers],[Oca]]),1),INDEX(OfisPlanı[],,1),0),MATCH(OfisVaryansları[[#Headers],[Oca]],OfisFiili[#Headers],0))","v":{"v":12,"d":"12.00 ₺"}},{"$f":"INDEX(OfisPlanı[],MATCH(INDEX(OfisVaryansları[],ROW()-ROW(OfisVaryansları[[#Headers],[Şub]]),1),INDEX(OfisPlanı[],,1),0),MATCH(OfisVaryansları[[#Headers],[Şub]],OfisPlanı[#Headers],0))-INDEX(OfisFiili[],MATCH(INDEX(OfisVaryansları[],ROW()-ROW(OfisVaryansları[[#Headers],[Şub]]),1),INDEX(OfisPlanı[],,1),0),MATCH(OfisVaryansları[[#Headers],[Şub]],OfisFiili[#Headers],0))","v":{"v":22,"d":"22.00 ₺"}},{"$f":"INDEX(OfisPlanı[],MATCH(INDEX(OfisVaryansları[],ROW()-ROW(OfisVaryansları[[#Headers],[Mar]]),1),INDEX(OfisPlanı[],,1),0),MATCH(OfisVaryansları[[#Headers],[Mar]],OfisPlanı[#Headers],0))-INDEX(OfisFiili[],MATCH(INDEX(OfisVaryansları[],ROW()-ROW(OfisVaryansları[[#Headers],[Mar]]),1),INDEX(OfisPlanı[],,1),0),MATCH(OfisVaryansları[[#Headers],[Mar]],OfisFiili[#Headers],0))","v":{"v":32,"d":"32.00 ₺"}},{"$f":"INDEX(OfisPlanı[],MATCH(INDEX(OfisVaryansları[],ROW()-ROW(OfisVaryansları[[#Headers],[Nis]]),1),INDEX(OfisPlanı[],,1),0),MATCH(OfisVaryansları[[#Headers],[Nis]],OfisPlanı[#Headers],0))-INDEX(OfisFiili[],MATCH(INDEX(OfisVaryansları[],ROW()-ROW(OfisVaryansları[[#Headers],[Nis]]),1),INDEX(OfisPlanı[],,1),0),MATCH(OfisVaryansları[[#Headers],[Nis]],OfisFiili[#Headers],0))","v":{"v":1,"d":"1.00 ₺"}},{"$f":"INDEX(OfisPlanı[],MATCH(INDEX(OfisVaryansları[],ROW()-ROW(OfisVaryansları[[#Headers],[May]]),1),INDEX(OfisPlanı[],,1),0),MATCH(OfisVaryansları[[#Headers],[May]],OfisPlanı[#Headers],0))-INDEX(OfisFiili[],MATCH(INDEX(OfisVaryansları[],ROW()-ROW(OfisVaryansları[[#Headers],[May]]),1),INDEX(OfisPlanı[],,1),0),MATCH(OfisVaryansları[[#Headers],[May]],OfisFiili[#Headers],0))","v":{"v":-6,"d":"-6.00 ₺"}},{"$f":"INDEX(OfisPlanı[],MATCH(INDEX(OfisVaryansları[],ROW()-ROW(OfisVaryansları[[#Headers],[Haz]]),1),INDEX(OfisPlanı[],,1),0),MATCH(OfisVaryansları[[#Headers],[Haz]],OfisPlanı[#Headers],0))-INDEX(OfisFiili[],MATCH(INDEX(OfisVaryansları[],ROW()-ROW(OfisVaryansları[[#Headers],[Haz]]),1),INDEX(OfisPlanı[],,1),0),MATCH(OfisVaryansları[[#Headers],[Haz]],OfisFiili[#Headers],0))","v":{"v":10,"d":"10.00 ₺"}},{"$f":"INDEX(OfisPlanı[],MATCH(INDEX(OfisVaryansları[],ROW()-ROW(OfisVaryansları[[#Headers],[Tem]]),1),INDEX(OfisPlanı[],,1),0),MATCH(OfisVaryansları[[#Headers],[Tem]],OfisPlanı[#Headers],0))-INDEX(OfisFiili[],MATCH(INDEX(OfisVaryansları[],ROW()-ROW(OfisVaryansları[[#Headers],[Tem]]),1),INDEX(OfisPlanı[],,1),0),MATCH(OfisVaryansları[[#Headers],[Tem]],OfisFiili[#Headers],0))","v":{"v":300,"d":"300.00 ₺"}},{"$f":"INDEX(OfisPlanı[],MATCH(INDEX(OfisVaryansları[],ROW()-ROW(OfisVaryansları[[#Headers],[Ağu]]),1),INDEX(OfisPlanı[],,1),0),MATCH(OfisVaryansları[[#Headers],[Ağu]],OfisPlanı[#Headers],0))-INDEX(OfisFiili[],MATCH(INDEX(OfisVaryansları[],ROW()-ROW(OfisVaryansları[[#Headers],[Ağu]]),1),INDEX(OfisPlanı[],,1),0),MATCH(OfisVaryansları[[#Headers],[Ağu]],OfisFiili[#Headers],0))","v":{"v":300,"d":"300.00 ₺"}},{"$f":"INDEX(OfisPlanı[],MATCH(INDEX(OfisVaryansları[],ROW()-ROW(OfisVaryansları[[#Headers],[Eyl]]),1),INDEX(OfisPlanı[],,1),0),MATCH(OfisVaryansları[[#Headers],[Eyl]],OfisPlanı[#Headers],0))-INDEX(OfisFiili[],MATCH(INDEX(OfisVaryansları[],ROW()-ROW(OfisVaryansları[[#Headers],[Eyl]]),1),INDEX(OfisPlanı[],,1),0),MATCH(OfisVaryansları[[#Headers],[Eyl]],OfisFiili[#Headers],0))","v":{"v":300,"d":"300.00 ₺"}},{"$f":"INDEX(OfisPlanı[],MATCH(INDEX(OfisVaryansları[],ROW()-ROW(OfisVaryansları[[#Headers],[Eki]]),1),INDEX(OfisPlanı[],,1),0),MATCH(OfisVaryansları[[#Headers],[Eki]],OfisPlanı[#Headers],0))-INDEX(OfisFiili[],MATCH(INDEX(OfisVaryansları[],ROW()-ROW(OfisVaryansları[[#Headers],[Eki]]),1),INDEX(OfisPlanı[],,1),0),MATCH(OfisVaryansları[[#Headers],[Eki]],OfisFiili[#Headers],0))","v":{"v":300,"d":"300.00 ₺"}},{"$f":"INDEX(OfisPlanı[],MATCH(INDEX(OfisVaryansları[],ROW()-ROW(OfisVaryansları[[#Headers],[Kas]]),1),INDEX(OfisPlanı[],,1),0),MATCH(OfisVaryansları[[#Headers],[Kas]],OfisPlanı[#Headers],0))-INDEX(OfisFiili[],MATCH(INDEX(OfisVaryansları[],ROW()-ROW(OfisVaryansları[[#Headers],[Kas]]),1),INDEX(OfisPlanı[],,1),0),MATCH(OfisVaryansları[[#Headers],[Kas]],OfisFiili[#Headers],0))","v":{"v":300,"d":"300.00 ₺"}},{"$f":"INDEX(OfisPlanı[],MATCH(INDEX(OfisVaryansları[],ROW()-ROW(OfisVaryansları[[#Headers],[Ara]]),1),INDEX(OfisPlanı[],,1),0),MATCH(OfisVaryansları[[#Headers],[Ara]],OfisPlanı[#Headers],0))-INDEX(OfisFiili[],MATCH(INDEX(OfisVaryansları[],ROW()-ROW(OfisVaryansları[[#Headers],[Ara]]),1),INDEX(OfisPlanı[],,1),0),MATCH(OfisVaryansları[[#Headers],[Ara]],OfisFiili[#Headers],0))","v":{"v":300,"d":"300.00 ₺"}},{"$f":"SUM(OfisVaryansları[[#This Row],[Oca]:[Ara]])","v":{"v":1871,"d":"1,871.00 ₺"}}]
[null,"Su",{"$f":"INDEX(OfisPlanı[],MATCH(INDEX(OfisVaryansları[],ROW()-ROW(OfisVaryansları[[#Headers],[Oca]]),1),INDEX(OfisPlanı[],,1),0),MATCH(OfisVaryansları[[#Headers],[Oca]],OfisPlanı[#Headers],0))-INDEX(OfisFiili[],MATCH(INDEX(OfisVaryansları[],ROW()-ROW(OfisVaryansları[[#Headers],[Oca]]),1),INDEX(OfisPlanı[],,1),0),MATCH(OfisVaryansları[[#Headers],[Oca]],OfisFiili[#Headers],0))","v":{"v":5,"d":"5.00 ₺"}},{"$f":"INDEX(OfisPlanı[],MATCH(INDEX(OfisVaryansları[],ROW()-ROW(OfisVaryansları[[#Headers],[Şub]]),1),INDEX(OfisPlanı[],,1),0),MATCH(OfisVaryansları[[#Headers],[Şub]],OfisPlanı[#Headers],0))-INDEX(OfisFiili[],MATCH(INDEX(OfisVaryansları[],ROW()-ROW(OfisVaryansları[[#Headers],[Şub]]),1),INDEX(OfisPlanı[],,1),0),MATCH(OfisVaryansları[[#Headers],[Şub]],OfisFiili[#Headers],0))","v":{"v":7,"d":"7.00 ₺"}},{"$f":"INDEX(OfisPlanı[],MATCH(INDEX(OfisVaryansları[],ROW()-ROW(OfisVaryansları[[#Headers],[Mar]]),1),INDEX(OfisPlanı[],,1),0),MATCH(OfisVaryansları[[#Headers],[Mar]],OfisPlanı[#Headers],0))-INDEX(OfisFiili[],MATCH(INDEX(OfisVaryansları[],ROW()-ROW(OfisVaryansları[[#Headers],[Mar]]),1),INDEX(OfisPlanı[],,1),0),MATCH(OfisVaryansları[[#Headers],[Mar]],OfisFiili[#Headers],0))","v":{"v":6,"d":"6.00 ₺"}},{"$f":"INDEX(OfisPlanı[],MATCH(INDEX(OfisVaryansları[],ROW()-ROW(OfisVaryansları[[#Headers],[Nis]]),1),INDEX(OfisPlanı[],,1),0),MATCH(OfisVaryansları[[#Headers],[Nis]],OfisPlanı[#Headers],0))-INDEX(OfisFiili[],MATCH(INDEX(OfisVaryansları[],ROW()-ROW(OfisVaryansları[[#Headers],[Nis]]),1),INDEX(OfisPlanı[],,1),0),MATCH(OfisVaryansları[[#Headers],[Nis]],OfisFiili[#Headers],0))","v":{"v":4,"d":"4.00 ₺"}},{"$f":"INDEX(OfisPlanı[],MATCH(INDEX(OfisVaryansları[],ROW()-ROW(OfisVaryansları[[#Headers],[May]]),1),INDEX(OfisPlanı[],,1),0),MATCH(OfisVaryansları[[#Headers],[May]],OfisPlanı[#Headers],0))-INDEX(OfisFiili[],MATCH(INDEX(OfisVaryansları[],ROW()-ROW(OfisVaryansları[[#Headers],[May]]),1),INDEX(OfisPlanı[],,1),0),MATCH(OfisVaryansları[[#Headers],[May]],OfisFiili[#Headers],0))","v":{"v":6,"d":"6.00 ₺"}},{"$f":"INDEX(OfisPlanı[],MATCH(INDEX(OfisVaryansları[],ROW()-ROW(OfisVaryansları[[#Headers],[Haz]]),1),INDEX(OfisPlanı[],,1),0),MATCH(OfisVaryansları[[#Headers],[Haz]],OfisPlanı[#Headers],0))-INDEX(OfisFiili[],MATCH(INDEX(OfisVaryansları[],ROW()-ROW(OfisVaryansları[[#Headers],[Haz]]),1),INDEX(OfisPlanı[],,1),0),MATCH(OfisVaryansları[[#Headers],[Haz]],OfisFiili[#Headers],0))","v":{"v":4,"d":"4.00 ₺"}},{"$f":"INDEX(OfisPlanı[],MATCH(INDEX(OfisVaryansları[],ROW()-ROW(OfisVaryansları[[#Headers],[Tem]]),1),INDEX(OfisPlanı[],,1),0),MATCH(OfisVaryansları[[#Headers],[Tem]],OfisPlanı[#Headers],0))-INDEX(OfisFiili[],MATCH(INDEX(OfisVaryansları[],ROW()-ROW(OfisVaryansları[[#Headers],[Tem]]),1),INDEX(OfisPlanı[],,1),0),MATCH(OfisVaryansları[[#Headers],[Tem]],OfisFiili[#Headers],0))","v":{"v":40,"d":"40.00 ₺"}},{"$f":"INDEX(OfisPlanı[],MATCH(INDEX(OfisVaryansları[],ROW()-ROW(OfisVaryansları[[#Headers],[Ağu]]),1),INDEX(OfisPlanı[],,1),0),MATCH(OfisVaryansları[[#Headers],[Ağu]],OfisPlanı[#Headers],0))-INDEX(OfisFiili[],MATCH(INDEX(OfisVaryansları[],ROW()-ROW(OfisVaryansları[[#Headers],[Ağu]]),1),INDEX(OfisPlanı[],,1),0),MATCH(OfisVaryansları[[#Headers],[Ağu]],OfisFiili[#Headers],0))","v":{"v":40,"d":"40.00 ₺"}},{"$f":"INDEX(OfisPlanı[],MATCH(INDEX(OfisVaryansları[],ROW()-ROW(OfisVaryansları[[#Headers],[Eyl]]),1),INDEX(OfisPlanı[],,1),0),MATCH(OfisVaryansları[[#Headers],[Eyl]],OfisPlanı[#Headers],0))-INDEX(OfisFiili[],MATCH(INDEX(OfisVaryansları[],ROW()-ROW(OfisVaryansları[[#Headers],[Eyl]]),1),INDEX(OfisPlanı[],,1),0),MATCH(OfisVaryansları[[#Headers],[Eyl]],OfisFiili[#Headers],0))","v":{"v":40,"d":"40.00 ₺"}},{"$f":"INDEX(OfisPlanı[],MATCH(INDEX(OfisVaryansları[],ROW()-ROW(OfisVaryansları[[#Headers],[Eki]]),1),INDEX(OfisPlanı[],,1),0),MATCH(OfisVaryansları[[#Headers],[Eki]],OfisPlanı[#Headers],0))-INDEX(OfisFiili[],MATCH(INDEX(OfisVaryansları[],ROW()-ROW(OfisVaryansları[[#Headers],[Eki]]),1),INDEX(OfisPlanı[],,1),0),MATCH(OfisVaryansları[[#Headers],[Eki]],OfisFiili[#Headers],0))","v":{"v":40,"d":"40.00 ₺"}},{"$f":"INDEX(OfisPlanı[],MATCH(INDEX(OfisVaryansları[],ROW()-ROW(OfisVaryansları[[#Headers],[Kas]]),1),INDEX(OfisPlanı[],,1),0),MATCH(OfisVaryansları[[#Headers],[Kas]],OfisPlanı[#Headers],0))-INDEX(OfisFiili[],MATCH(INDEX(OfisVaryansları[],ROW()-ROW(OfisVaryansları[[#Headers],[Kas]]),1),INDEX(OfisPlanı[],,1),0),MATCH(OfisVaryansları[[#Headers],[Kas]],OfisFiili[#Headers],0))","v":{"v":40,"d":"40.00 ₺"}},{"$f":"INDEX(OfisPlanı[],MATCH(INDEX(OfisVaryansları[],ROW()-ROW(OfisVaryansları[[#Headers],[Ara]]),1),INDEX(OfisPlanı[],,1),0),MATCH(OfisVaryansları[[#Headers],[Ara]],OfisPlanı[#Headers],0))-INDEX(OfisFiili[],MATCH(INDEX(OfisVaryansları[],ROW()-ROW(OfisVaryansları[[#Headers],[Ara]]),1),INDEX(OfisPlanı[],,1),0),MATCH(OfisVaryansları[[#Headers],[Ara]],OfisFiili[#Headers],0))","v":{"v":40,"d":"40.00 ₺"}},{"$f":"SUM(OfisVaryansları[[#This Row],[Oca]:[Ara]])","v":{"v":272,"d":"272.00 ₺"}}]
[null,"Telefon",{"$f":"INDEX(OfisPlanı[],MATCH(INDEX(OfisVaryansları[],ROW()-ROW(OfisVaryansları[[#Headers],[Oca]]),1),INDEX(OfisPlanı[],,1),0),MATCH(OfisVaryansları[[#Headers],[Oca]],OfisPlanı[#Headers],0))-INDEX(OfisFiili[],MATCH(INDEX(OfisVaryansları[],ROW()-ROW(OfisVaryansları[[#Headers],[Oca]]),1),INDEX(OfisPlanı[],,1),0),MATCH(OfisVaryansları[[#Headers],[Oca]],OfisFiili[#Headers],0))","v":{"v":26,"d":"26.00 ₺"}},{"$f":"INDEX(OfisPlanı[],MATCH(INDEX(OfisVaryansları[],ROW()-ROW(OfisVaryansları[[#Headers],[Şub]]),1),INDEX(OfisPlanı[],,1),0),MATCH(OfisVaryansları[[#Headers],[Şub]],OfisPlanı[#Headers],0))-INDEX(OfisFiili[],MATCH(INDEX(OfisVaryansları[],ROW()-ROW(OfisVaryansları[[#Headers],[Şub]]),1),INDEX(OfisPlanı[],,1),0),MATCH(OfisVaryansları[[#Headers],[Şub]],OfisFiili[#Headers],0))","v":{"v":15,"d":"15.00 ₺"}},{"$f":"INDEX(OfisPlanı[],MATCH(INDEX(OfisVaryansları[],ROW()-ROW(OfisVaryansları[[#Headers],[Mar]]),1),INDEX(OfisPlanı[],,1),0),MATCH(OfisVaryansları[[#Headers],[Mar]],OfisPlanı[#Headers],0))-INDEX(OfisFiili[],MATCH(INDEX(OfisVaryansları[],ROW()-ROW(OfisVaryansları[[#Headers],[Mar]]),1),INDEX(OfisPlanı[],,1),0),MATCH(OfisVaryansları[[#Headers],[Mar]],OfisFiili[#Headers],0))","v":{"v":-15,"d":"-15.00 ₺"}},{"$f":"INDEX(OfisPlanı[],MATCH(INDEX(OfisVaryansları[],ROW()-ROW(OfisVaryansları[[#Headers],[Nis]]),1),INDEX(OfisPlanı[],,1),0),MATCH(OfisVaryansları[[#Headers],[Nis]],OfisPlanı[#Headers],0))-INDEX(OfisFiili[],MATCH(INDEX(OfisVaryansları[],ROW()-ROW(OfisVaryansları[[#Headers],[Nis]]),1),INDEX(OfisPlanı[],,1),0),MATCH(OfisVaryansları[[#Headers],[Nis]],OfisFiili[#Headers],0))","v":{"v":5,"d":"5.00 ₺"}},{"$f":"INDEX(OfisPlanı[],MATCH(INDEX(OfisVaryansları[],ROW()-ROW(OfisVaryansları[[#Headers],[May]]),1),INDEX(OfisPlanı[],,1),0),MATCH(OfisVaryansları[[#Headers],[May]],OfisPlanı[#Headers],0))-INDEX(OfisFiili[],MATCH(INDEX(OfisVaryansları[],ROW()-ROW(OfisVaryansları[[#Headers],[May]]),1),INDEX(OfisPlanı[],,1),0),MATCH(OfisVaryansları[[#Headers],[May]],OfisFiili[#Headers],0))","v":{"v":5,"d":"5.00 ₺"}},{"$f":"INDEX(OfisPlanı[],MATCH(INDEX(OfisVaryansları[],ROW()-ROW(OfisVaryansları[[#Headers],[Haz]]),1),INDEX(OfisPlanı[],,1),0),MATCH(OfisVaryansları[[#Headers],[Haz]],OfisPlanı[#Headers],0))-INDEX(OfisFiili[],MATCH(INDEX(OfisVaryansları[],ROW()-ROW(OfisVaryansları[[#Headers],[Haz]]),1),INDEX(OfisPlanı[],,1),0),MATCH(OfisVaryansları[[#Headers],[Haz]],OfisFiili[#Headers],0))","v":{"v":30,"d":"30.00 ₺"}},{"$f":"INDEX(OfisPlanı[],MATCH(INDEX(OfisVaryansları[],ROW()-ROW(OfisVaryansları[[#Headers],[Tem]]),1),INDEX(OfisPlanı[],,1),0),MATCH(OfisVaryansları[[#Headers],[Tem]],OfisPlanı[#Headers],0))-INDEX(OfisFiili[],MATCH(INDEX(OfisVaryansları[],ROW()-ROW(OfisVaryansları[[#Headers],[Tem]]),1),INDEX(OfisPlanı[],,1),0),MATCH(OfisVaryansları[[#Headers],[Tem]],OfisFiili[#Headers],0))","v":{"v":250,"d":"250.00 ₺"}},{"$f":"INDEX(OfisPlanı[],MATCH(INDEX(OfisVaryansları[],ROW()-ROW(OfisVaryansları[[#Headers],[Ağu]]),1),INDEX(OfisPlanı[],,1),0),MATCH(OfisVaryansları[[#Headers],[Ağu]],OfisPlanı[#Headers],0))-INDEX(OfisFiili[],MATCH(INDEX(OfisVaryansları[],ROW()-ROW(OfisVaryansları[[#Headers],[Ağu]]),1),INDEX(OfisPlanı[],,1),0),MATCH(OfisVaryansları[[#Headers],[Ağu]],OfisFiili[#Headers],0))","v":{"v":250,"d":"250.00 ₺"}},{"$f":"INDEX(OfisPlanı[],MATCH(INDEX(OfisVaryansları[],ROW()-ROW(OfisVaryansları[[#Headers],[Eyl]]),1),INDEX(OfisPlanı[],,1),0),MATCH(OfisVaryansları[[#Headers],[Eyl]],OfisPlanı[#Headers],0))-INDEX(OfisFiili[],MATCH(INDEX(OfisVaryansları[],ROW()-ROW(OfisVaryansları[[#Headers],[Eyl]]),1),INDEX(OfisPlanı[],,1),0),MATCH(OfisVaryansları[[#Headers],[Eyl]],OfisFiili[#Headers],0))","v":{"v":250,"d":"250.00 ₺"}},{"$f":"INDEX(OfisPlanı[],MATCH(INDEX(OfisVaryansları[],ROW()-ROW(OfisVaryansları[[#Headers],[Eki]]),1),INDEX(OfisPlanı[],,1),0),MATCH(OfisVaryansları[[#Headers],[Eki]],OfisPlanı[#Headers],0))-INDEX(OfisFiili[],MATCH(INDEX(OfisVaryansları[],ROW()-ROW(OfisVaryansları[[#Headers],[Eki]]),1),INDEX(OfisPlanı[],,1),0),MATCH(OfisVaryansları[[#Headers],[Eki]],OfisFiili[#Headers],0))","v":{"v":250,"d":"250.00 ₺"}},{"$f":"INDEX(OfisPlanı[],MATCH(INDEX(OfisVaryansları[],ROW()-ROW(OfisVaryansları[[#Headers],[Kas]]),1),INDEX(OfisPlanı[],,1),0),MATCH(OfisVaryansları[[#Headers],[Kas]],OfisPlanı[#Headers],0))-INDEX(OfisFiili[],MATCH(INDEX(OfisVaryansları[],ROW()-ROW(OfisVaryansları[[#Headers],[Kas]]),1),INDEX(OfisPlanı[],,1),0),MATCH(OfisVaryansları[[#Headers],[Kas]],OfisFiili[#Headers],0))","v":{"v":250,"d":"250.00 ₺"}},{"$f":"INDEX(OfisPlanı[],MATCH(INDEX(OfisVaryansları[],ROW()-ROW(OfisVaryansları[[#Headers],[Ara]]),1),INDEX(OfisPlanı[],,1),0),MATCH(OfisVaryansları[[#Headers],[Ara]],OfisPlanı[#Headers],0))-INDEX(OfisFiili[],MATCH(INDEX(OfisVaryansları[],ROW()-ROW(OfisVaryansları[[#Headers],[Ara]]),1),INDEX(OfisPlanı[],,1),0),MATCH(OfisVaryansları[[#Headers],[Ara]],OfisFiili[#Headers],0))","v":{"v":250,"d":"250.00 ₺"}},{"$f":"SUM(OfisVaryansları[[#This Row],[Oca]:[Ara]])","v":{"v":1566,"d":"1,566.00 ₺"}}]
[null,"İnternet erişimi",{"$f":"INDEX(OfisPlanı[],MATCH(INDEX(OfisVaryansları[],ROW()-ROW(OfisVaryansları[[#Headers],[Oca]]),1),INDEX(OfisPlanı[],,1),0),MATCH(OfisVaryansları[[#Headers],[Oca]],OfisPlanı[#Headers],0))-INDEX(OfisFiili[],MATCH(INDEX(OfisVaryansları[],ROW()-ROW(OfisVaryansları[[#Headers],[Oca]]),1),INDEX(OfisPlanı[],,1),0),MATCH(OfisVaryansları[[#Headers],[Oca]],OfisFiili[#Headers],0))","v":{"v":0,"d":"0.00 ₺"}},{"$f":"INDEX(OfisPlanı[],MATCH(INDEX(OfisVaryansları[],ROW()-ROW(OfisVaryansları[[#Headers],[Şub]]),1),INDEX(OfisPlanı[],,1),0),MATCH(OfisVaryansları[[#Headers],[Şub]],OfisPlanı[#Headers],0))-INDEX(OfisFiili[],MATCH(INDEX(OfisVaryansları[],ROW()-ROW(OfisVaryansları[[#Headers],[Şub]]),1),INDEX(OfisPlanı[],,1),0),MATCH(OfisVaryansları[[#Headers],[Şub]],OfisFiili[#Headers],0))","v":{"v":0,"d":"0.00 ₺"}},{"$f":"INDEX(OfisPlanı[],MATCH(INDEX(OfisVaryansları[],ROW()-ROW(OfisVaryansları[[#Headers],[Mar]]),1),INDEX(OfisPlanı[],,1),0),MATCH(OfisVaryansları[[#Headers],[Mar]],OfisPlanı[#Headers],0))-INDEX(OfisFiili[],MATCH(INDEX(OfisVaryansları[],ROW()-ROW(OfisVaryansları[[#Headers],[Mar]]),1),INDEX(OfisPlanı[],,1),0),MATCH(OfisVaryansları[[#Headers],[Mar]],OfisFiili[#Headers],0))","v":{"v":0,"d":"0.00 ₺"}},{"$f":"INDEX(OfisPlanı[],MATCH(INDEX(OfisVaryansları[],ROW()-ROW(OfisVaryansları[[#Headers],[Nis]]),1),INDEX(OfisPlanı[],,1),0),MATCH(OfisVaryansları[[#Headers],[Nis]],OfisPlanı[#Headers],0))-INDEX(OfisFiili[],MATCH(INDEX(OfisVaryansları[],ROW()-ROW(OfisVaryansları[[#Headers],[Nis]]),1),INDEX(OfisPlanı[],,1),0),MATCH(OfisVaryansları[[#Headers],[Nis]],OfisFiili[#Headers],0))","v":{"v":0,"d":"0.00 ₺"}},{"$f":"INDEX(OfisPlanı[],MATCH(INDEX(OfisVaryansları[],ROW()-ROW(OfisVaryansları[[#Headers],[May]]),1),INDEX(OfisPlanı[],,1),0),MATCH(OfisVaryansları[[#Headers],[May]],OfisPlanı[#Headers],0))-INDEX(OfisFiili[],MATCH(INDEX(OfisVaryansları[],ROW()-ROW(OfisVaryansları[[#Headers],[May]]),1),INDEX(OfisPlanı[],,1),0),MATCH(OfisVaryansları[[#Headers],[May]],OfisFiili[#Headers],0))","v":{"v":0,"d":"0.00 ₺"}},{"$f":"INDEX(OfisPlanı[],MATCH(INDEX(OfisVaryansları[],ROW()-ROW(OfisVaryansları[[#Headers],[Haz]]),1),INDEX(OfisPlanı[],,1),0),MATCH(OfisVaryansları[[#Headers],[Haz]],OfisPlanı[#Headers],0))-INDEX(OfisFiili[],MATCH(INDEX(OfisVaryansları[],ROW()-ROW(OfisVaryansları[[#Headers],[Haz]]),1),INDEX(OfisPlanı[],,1),0),MATCH(OfisVaryansları[[#Headers],[Haz]],OfisFiili[#Headers],0))","v":{"v":0,"d":"0.00 ₺"}},{"$f":"INDEX(OfisPlanı[],MATCH(INDEX(OfisVaryansları[],ROW()-ROW(OfisVaryansları[[#Headers],[Tem]]),1),INDEX(OfisPlanı[],,1),0),MATCH(OfisVaryansları[[#Headers],[Tem]],OfisPlanı[#Headers],0))-INDEX(OfisFiili[],MATCH(INDEX(OfisVaryansları[],ROW()-ROW(OfisVaryansları[[#Headers],[Tem]]),1),INDEX(OfisPlanı[],,1),0),MATCH(OfisVaryansları[[#Headers],[Tem]],OfisFiili[#Headers],0))","v":{"v":180,"d":"180.00 ₺"}},{"$f":"INDEX(OfisPlanı[],MATCH(INDEX(OfisVaryansları[],ROW()-ROW(OfisVaryansları[[#Headers],[Ağu]]),1),INDEX(OfisPlanı[],,1),0),MATCH(OfisVaryansları[[#Headers],[Ağu]],OfisPlanı[#Headers],0))-INDEX(OfisFiili[],MATCH(INDEX(OfisVaryansları[],ROW()-ROW(OfisVaryansları[[#Headers],[Ağu]]),1),INDEX(OfisPlanı[],,1),0),MATCH(OfisVaryansları[[#Headers],[Ağu]],OfisFiili[#Headers],0))","v":{"v":180,"d":"180.00 ₺"}},{"$f":"INDEX(OfisPlanı[],MATCH(INDEX(OfisVaryansları[],ROW()-ROW(OfisVaryansları[[#Headers],[Eyl]]),1),INDEX(OfisPlanı[],,1),0),MATCH(OfisVaryansları[[#Headers],[Eyl]],OfisPlanı[#Headers],0))-INDEX(OfisFiili[],MATCH(INDEX(OfisVaryansları[],ROW()-ROW(OfisVaryansları[[#Headers],[Eyl]]),1),INDEX(OfisPlanı[],,1),0),MATCH(OfisVaryansları[[#Headers],[Eyl]],OfisFiili[#Headers],0))","v":{"v":180,"d":"180.00 ₺"}},{"$f":"INDEX(OfisPlanı[],MATCH(INDEX(OfisVaryansları[],ROW()-ROW(OfisVaryansları[[#Headers],[Eki]]),1),INDEX(OfisPlanı[],,1),0),MATCH(OfisVaryansları[[#Headers],[Eki]],OfisPlanı[#Headers],0))-INDEX(OfisFiili[],MATCH(INDEX(OfisVaryansları[],ROW()-ROW(OfisVaryansları[[#Headers],[Eki]]),1),INDEX(OfisPlanı[],,1),0),MATCH(OfisVaryansları[[#Headers],[Eki]],OfisFiili[#Headers],0))","v":{"v":180,"d":"180.00 ₺"}},{"$f":"INDEX(OfisPlanı[],MATCH(INDEX(OfisVaryansları[],ROW()-ROW(OfisVaryansları[[#Headers],[Kas]]),1),INDEX(OfisPlanı[],,1),0),MATCH(OfisVaryansları[[#Headers],[Kas]],OfisPlanı[#Headers],0))-INDEX(OfisFiili[],MATCH(INDEX(OfisVaryansları[],ROW()-ROW(OfisVaryansları[[#Headers],[Kas]]),1),INDEX(OfisPlanı[],,1),0),MATCH(OfisVaryansları[[#Headers],[Kas]],OfisFiili[#Headers],0))","v":{"v":180,"d":"180.00 ₺"}},{"$f":"INDEX(OfisPlanı[],MATCH(INDEX(OfisVaryansları[],ROW()-ROW(OfisVaryansları[[#Headers],[Ara]]),1),INDEX(OfisPlanı[],,1),0),MATCH(OfisVaryansları[[#Headers],[Ara]],OfisPlanı[#Headers],0))-INDEX(OfisFiili[],MATCH(INDEX(OfisVaryansları[],ROW()-ROW(OfisVaryansları[[#Headers],[Ara]]),1),INDEX(OfisPlanı[],,1),0),MATCH(OfisVaryansları[[#Headers],[Ara]],OfisFiili[#Headers],0))","v":{"v":180,"d":"180.00 ₺"}},{"$f":"SUM(OfisVaryansları[[#This Row],[Oca]:[Ara]])","v":{"v":1080,"d":"1,080.00 ₺"}}]
[null,"Ofis malzemeleri",{"$f":"INDEX(OfisPlanı[],MATCH(INDEX(OfisVaryansları[],ROW()-ROW(OfisVaryansları[[#Headers],[Oca]]),1),INDEX(OfisPlanı[],,1),0),MATCH(OfisVaryansları[[#Headers],[Oca]],OfisPlanı[#Headers],0))-INDEX(OfisFiili[],MATCH(INDEX(OfisVaryansları[],ROW()-ROW(OfisVaryansları[[#Headers],[Oca]]),1),INDEX(OfisPlanı[],,1),0),MATCH(OfisVaryansları[[#Headers],[Oca]],OfisFiili[#Headers],0))","v":{"v":-56,"d":"-56.00 ₺"}},{"$f":"INDEX(OfisPlanı[],MATCH(INDEX(OfisVaryansları[],ROW()-ROW(OfisVaryansları[[#Headers],[Şub]]),1),INDEX(OfisPlanı[],,1),0),MATCH(OfisVaryansları[[#Headers],[Şub]],OfisPlanı[#Headers],0))-INDEX(OfisFiili[],MATCH(INDEX(OfisVaryansları[],ROW()-ROW(OfisVaryansları[[#Headers],[Şub]]),1),INDEX(OfisPlanı[],,1),0),MATCH(OfisVaryansları[[#Headers],[Şub]],OfisFiili[#Headers],0))","v":{"v":58,"d":"58.00 ₺"}},{"$f":"INDEX(OfisPlanı[],MATCH(INDEX(OfisVaryansları[],ROW()-ROW(OfisVaryansları[[#Headers],[Mar]]),1),INDEX(OfisPlanı[],,1),0),MATCH(OfisVaryansları[[#Headers],[Mar]],OfisPlanı[#Headers],0))-INDEX(OfisFiili[],MATCH(INDEX(OfisVaryansları[],ROW()-ROW(OfisVaryansları[[#Headers],[Mar]]),1),INDEX(OfisPlanı[],,1),0),MATCH(OfisVaryansları[[#Headers],[Mar]],OfisFiili[#Headers],0))","v":{"v":40,"d":"40.00 ₺"}},{"$f":"INDEX(OfisPlanı[],MATCH(INDEX(OfisVaryansları[],ROW()-ROW(OfisVaryansları[[#Headers],[Nis]]),1),INDEX(OfisPlanı[],,1),0),MATCH(OfisVaryansları[[#Headers],[Nis]],OfisPlanı[#Headers],0))-INDEX(OfisFiili[],MATCH(INDEX(OfisVaryansları[],ROW()-ROW(OfisVaryansları[[#Headers],[Nis]]),1),INDEX(OfisPlanı[],,1),0),MATCH(OfisVaryansları[[#Headers],[Nis]],OfisFiili[#Headers],0))","v":{"v":-21,"d":"-21.00 ₺"}},{"$f":"INDEX(OfisPlanı[],MATCH(INDEX(OfisVaryansları[],ROW()-ROW(OfisVaryansları[[#Headers],[May]]),1),INDEX(OfisPlanı[],,1),0),MATCH(OfisVaryansları[[#Headers],[May]],OfisPlanı[#Headers],0))-INDEX(OfisFiili[],MATCH(INDEX(OfisVaryansları[],ROW()-ROW(OfisVaryansları[[#Headers],[May]]),1),INDEX(OfisPlanı[],,1),0),MATCH(OfisVaryansları[[#Headers],[May]],OfisFiili[#Headers],0))","v":{"v":-56,"d":"-56.00 ₺"}},{"$f":"INDEX(OfisPlanı[],MATCH(INDEX(OfisVaryansları[],ROW()-ROW(OfisVaryansları[[#Headers],[Haz]]),1),INDEX(OfisPlanı[],,1),0),MATCH(OfisVaryansları[[#Headers],[Haz]],OfisPlanı[#Headers],0))-INDEX(OfisFiili[],MATCH(INDEX(OfisVaryansları[],ROW()-ROW(OfisVaryansları[[#Headers],[Haz]]),1),INDEX(OfisPlanı[],,1),0),MATCH(OfisVaryansları[[#Headers],[Haz]],OfisFiili[#Headers],0))","v":{"v":-40,"d":"-40.00 ₺"}},{"$f":"INDEX(OfisPlanı[],MATCH(INDEX(OfisVaryansları[],ROW()-ROW(OfisVaryansları[[#Headers],[Tem]]),1),INDEX(OfisPlanı[],,1),0),MATCH(OfisVaryansları[[#Headers],[Tem]],OfisPlanı[#Headers],0))-INDEX(OfisFiili[],MATCH(INDEX(OfisVaryansları[],ROW()-ROW(OfisVaryansları[[#Headers],[Tem]]),1),INDEX(OfisPlanı[],,1),0),MATCH(OfisVaryansları[[#Headers],[Tem]],OfisFiili[#Headers],0))","v":{"v":200,"d":"200.00 ₺"}},{"$f":"INDEX(OfisPlanı[],MATCH(INDEX(OfisVaryansları[],ROW()-ROW(OfisVaryansları[[#Headers],[Ağu]]),1),INDEX(OfisPlanı[],,1),0),MATCH(OfisVaryansları[[#Headers],[Ağu]],OfisPlanı[#Headers],0))-INDEX(OfisFiili[],MATCH(INDEX(OfisVaryansları[],ROW()-ROW(OfisVaryansları[[#Headers],[Ağu]]),1),INDEX(OfisPlanı[],,1),0),MATCH(OfisVaryansları[[#Headers],[Ağu]],OfisFiili[#Headers],0))","v":{"v":200,"d":"200.00 ₺"}},{"$f":"INDEX(OfisPlanı[],MATCH(INDEX(OfisVaryansları[],ROW()-ROW(OfisVaryansları[[#Headers],[Eyl]]),1),INDEX(OfisPlanı[],,1),0),MATCH(OfisVaryansları[[#Headers],[Eyl]],OfisPlanı[#Headers],0))-INDEX(OfisFiili[],MATCH(INDEX(OfisVaryansları[],ROW()-ROW(OfisVaryansları[[#Headers],[Eyl]]),1),INDEX(OfisPlanı[],,1),0),MATCH(OfisVaryansları[[#Headers],[Eyl]],OfisFiili[#Headers],0))","v":{"v":200,"d":"200.00 ₺"}},{"$f":"INDEX(OfisPlanı[],MATCH(INDEX(OfisVaryansları[],ROW()-ROW(OfisVaryansları[[#Headers],[Eki]]),1),INDEX(OfisPlanı[],,1),0),MATCH(OfisVaryansları[[#Headers],[Eki]],OfisPlanı[#Headers],0))-INDEX(OfisFiili[],MATCH(INDEX(OfisVaryansları[],ROW()-ROW(OfisVaryansları[[#Headers],[Eki]]),1),INDEX(OfisPlanı[],,1),0),MATCH(OfisVaryansları[[#Headers],[Eki]],OfisFiili[#Headers],0))","v":{"v":200,"d":"200.00 ₺"}},{"$f":"INDEX(OfisPlanı[],MATCH(INDEX(OfisVaryansları[],ROW()-ROW(OfisVaryansları[[#Headers],[Kas]]),1),INDEX(OfisPlanı[],,1),0),MATCH(OfisVaryansları[[#Headers],[Kas]],OfisPlanı[#Headers],0))-INDEX(OfisFiili[],MATCH(INDEX(OfisVaryansları[],ROW()-ROW(OfisVaryansları[[#Headers],[Kas]]),1),INDEX(OfisPlanı[],,1),0),MATCH(OfisVaryansları[[#Headers],[Kas]],OfisFiili[#Headers],0))","v":{"v":200,"d":"200.00 ₺"}},{"$f":"INDEX(OfisPlanı[],MATCH(INDEX(OfisVaryansları[],ROW()-ROW(OfisVaryansları[[#Headers],[Ara]]),1),INDEX(OfisPlanı[],,1),0),MATCH(OfisVaryansları[[#Headers],[Ara]],OfisPlanı[#Headers],0))-INDEX(OfisFiili[],MATCH(INDEX(OfisVaryansları[],ROW()-ROW(OfisVaryansları[[#Headers],[Ara]]),1),INDEX(OfisPlanı[],,1),0),MATCH(OfisVaryansları[[#Headers],[Ara]],OfisFiili[#Headers],0))","v":{"v":200,"d":"200.00 ₺"}},{"$f":"SUM(OfisVaryansları[[#This Row],[Oca]:[Ara]])","v":{"v":1125,"d":"1,125.00 ₺"}}]
[null,"Güvenlik",{"$f":"INDEX(OfisPlanı[],MATCH(INDEX(OfisVaryansları[],ROW()-ROW(OfisVaryansları[[#Headers],[Oca]]),1),INDEX(OfisPlanı[],,1),0),MATCH(OfisVaryansları[[#Headers],[Oca]],OfisPlanı[#Headers],0))-INDEX(OfisFiili[],MATCH(INDEX(OfisVaryansları[],ROW()-ROW(OfisVaryansları[[#Headers],[Oca]]),1),INDEX(OfisPlanı[],,1),0),MATCH(OfisVaryansları[[#Headers],[Oca]],OfisFiili[#Headers],0))","v":{"v":0,"d":"0.00 ₺"}},{"$f":"INDEX(OfisPlanı[],MATCH(INDEX(OfisVaryansları[],ROW()-ROW(OfisVaryansları[[#Headers],[Şub]]),1),INDEX(OfisPlanı[],,1),0),MATCH(OfisVaryansları[[#Headers],[Şub]],OfisPlanı[#Headers],0))-INDEX(OfisFiili[],MATCH(INDEX(OfisVaryansları[],ROW()-ROW(OfisVaryansları[[#Headers],[Şub]]),1),INDEX(OfisPlanı[],,1),0),MATCH(OfisVaryansları[[#Headers],[Şub]],OfisFiili[#Headers],0))","v":{"v":0,"d":"0.00 ₺"}},{"$f":"INDEX(OfisPlanı[],MATCH(INDEX(OfisVaryansları[],ROW()-ROW(OfisVaryansları[[#Headers],[Mar]]),1),INDEX(OfisPlanı[],,1),0),MATCH(OfisVaryansları[[#Headers],[Mar]],OfisPlanı[#Headers],0))-INDEX(OfisFiili[],MATCH(INDEX(OfisVaryansları[],ROW()-ROW(OfisVaryansları[[#Headers],[Mar]]),1),INDEX(OfisPlanı[],,1),0),MATCH(OfisVaryansları[[#Headers],[Mar]],OfisFiili[#Headers],0))","v":{"v":0,"d":"0.00 ₺"}},{"$f":"INDEX(OfisPlanı[],MATCH(INDEX(OfisVaryansları[],ROW()-ROW(OfisVaryansları[[#Headers],[Nis]]),1),INDEX(OfisPlanı[],,1),0),MATCH(OfisVaryansları[[#Headers],[Nis]],OfisPlanı[#Headers],0))-INDEX(OfisFiili[],MATCH(INDEX(OfisVaryansları[],ROW()-ROW(OfisVaryansları[[#Headers],[Nis]]),1),INDEX(OfisPlanı[],,1),0),MATCH(OfisVaryansları[[#Headers],[Nis]],OfisFiili[#Headers],0))","v":{"v":0,"d":"0.00 ₺"}},{"$f":"INDEX(OfisPlanı[],MATCH(INDEX(OfisVaryansları[],ROW()-ROW(OfisVaryansları[[#Headers],[May]]),1),INDEX(OfisPlanı[],,1),0),MATCH(OfisVaryansları[[#Headers],[May]],OfisPlanı[#Headers],0))-INDEX(OfisFiili[],MATCH(INDEX(OfisVaryansları[],ROW()-ROW(OfisVaryansları[[#Headers],[May]]),1),INDEX(OfisPlanı[],,1),0),MATCH(OfisVaryansları[[#Headers],[May]],OfisFiili[#Headers],0))","v":{"v":0,"d":"0.00 ₺"}},{"$f":"INDEX(OfisPlanı[],MATCH(INDEX(OfisVaryansları[],ROW()-ROW(OfisVaryansları[[#Headers],[Haz]]),1),INDEX(OfisPlanı[],,1),0),MATCH(OfisVaryansları[[#Headers],[Haz]],OfisPlanı[#Headers],0))-INDEX(OfisFiili[],MATCH(INDEX(OfisVaryansları[],ROW()-ROW(OfisVaryansları[[#Headers],[Haz]]),1),INDEX(OfisPlanı[],,1),0),MATCH(OfisVaryansları[[#Headers],[Haz]],OfisFiili[#Headers],0))","v":{"v":0,"d":"0.00 ₺"}},{"$f":"INDEX(OfisPlanı[],MATCH(INDEX(OfisVaryansları[],ROW()-ROW(OfisVaryansları[[#Headers],[Tem]]),1),INDEX(OfisPlanı[],,1),0),MATCH(OfisVaryansları[[#Headers],[Tem]],OfisPlanı[#Headers],0))-INDEX(OfisFiili[],MATCH(INDEX(OfisVaryansları[],ROW()-ROW(OfisVaryansları[[#Headers],[Tem]]),1),INDEX(OfisPlanı[],,1),0),MATCH(OfisVaryansları[[#Headers],[Tem]],OfisFiili[#Headers],0))","v":{"v":600,"d":"600.00 ₺"}},{"$f":"INDEX(OfisPlanı[],MATCH(INDEX(OfisVaryansları[],ROW()-ROW(OfisVaryansları[[#Headers],[Ağu]]),1),INDEX(OfisPlanı[],,1),0),MATCH(OfisVaryansları[[#Headers],[Ağu]],OfisPlanı[#Headers],0))-INDEX(OfisFiili[],MATCH(INDEX(OfisVaryansları[],ROW()-ROW(OfisVaryansları[[#Headers],[Ağu]]),1),INDEX(OfisPlanı[],,1),0),MATCH(OfisVaryansları[[#Headers],[Ağu]],OfisFiili[#Headers],0))","v":{"v":600,"d":"600.00 ₺"}},{"$f":"INDEX(OfisPlanı[],MATCH(INDEX(OfisVaryansları[],ROW()-ROW(OfisVaryansları[[#Headers],[Eyl]]),1),INDEX(OfisPlanı[],,1),0),MATCH(OfisVaryansları[[#Headers],[Eyl]],OfisPlanı[#Headers],0))-INDEX(OfisFiili[],MATCH(INDEX(OfisVaryansları[],ROW()-ROW(OfisVaryansları[[#Headers],[Eyl]]),1),INDEX(OfisPlanı[],,1),0),MATCH(OfisVaryansları[[#Headers],[Eyl]],OfisFiili[#Headers],0))","v":{"v":600,"d":"600.00 ₺"}},{"$f":"INDEX(OfisPlanı[],MATCH(INDEX(OfisVaryansları[],ROW()-ROW(OfisVaryansları[[#Headers],[Eki]]),1),INDEX(OfisPlanı[],,1),0),MATCH(OfisVaryansları[[#Headers],[Eki]],OfisPlanı[#Headers],0))-INDEX(OfisFiili[],MATCH(INDEX(OfisVaryansları[],ROW()-ROW(OfisVaryansları[[#Headers],[Eki]]),1),INDEX(OfisPlanı[],,1),0),MATCH(OfisVaryansları[[#Headers],[Eki]],OfisFiili[#Headers],0))","v":{"v":600,"d":"600.00 ₺"}},{"$f":"INDEX(OfisPlanı[],MATCH(INDEX(OfisVaryansları[],ROW()-ROW(OfisVaryansları[[#Headers],[Kas]]),1),INDEX(OfisPlanı[],,1),0),MATCH(OfisVaryansları[[#Headers],[Kas]],OfisPlanı[#Headers],0))-INDEX(OfisFiili[],MATCH(INDEX(OfisVaryansları[],ROW()-ROW(OfisVaryansları[[#Headers],[Kas]]),1),INDEX(OfisPlanı[],,1),0),MATCH(OfisVaryansları[[#Headers],[Kas]],OfisFiili[#Headers],0))","v":{"v":600,"d":"600.00 ₺"}},{"$f":"INDEX(OfisPlanı[],MATCH(INDEX(OfisVaryansları[],ROW()-ROW(OfisVaryansları[[#Headers],[Ara]]),1),INDEX(OfisPlanı[],,1),0),MATCH(OfisVaryansları[[#Headers],[Ara]],OfisPlanı[#Headers],0))-INDEX(OfisFiili[],MATCH(INDEX(OfisVaryansları[],ROW()-ROW(OfisVaryansları[[#Headers],[Ara]]),1),INDEX(OfisPlanı[],,1),0),MATCH(OfisVaryansları[[#Headers],[Ara]],OfisFiili[#Headers],0))","v":{"v":600,"d":"600.00 ₺"}},{"$f":"SUM(OfisVaryansları[[#This Row],[Oca]:[Ara]])","v":{"v":3600,"d":"3,600.00 ₺"}}]
[null,"Ara toplam",{"$f":"SUBTOTAL(109,OfisVaryansları[Oca])","v":{"v":-17,"d":"-17.00 ₺"}},{"$f":"SUBTOTAL(109,OfisVaryansları[Şub])","v":{"v":72,"d":"72.00 ₺"}},{"$f":"SUBTOTAL(109,OfisVaryansları[Mar])","v":{"v":78,"d":"78.00 ₺"}},{"$f":"SUBTOTAL(109,OfisVaryansları[Nis])","v":{"v":-141,"d":"-141.00 ₺"}},{"$f":"SUBTOTAL(109,OfisVaryansları[May])","v":{"v":-38,"d":"-38.00 ₺"}},{"$f":"SUBTOTAL(109,OfisVaryansları[Haz])","v":{"v":16,"d":"16.00 ₺"}},{"$f":"SUBTOTAL(109,OfisVaryansları[Tem])","v":{"v":11470,"d":"11,470.00 ₺"}},{"$f":"SUBTOTAL(109,OfisVaryansları[Ağu])","v":{"v":11470,"d":"11,470.00 ₺"}},{"$f":"SUBTOTAL(109,OfisVaryansları[Eyl])","v":{"v":11470,"d":"11,470.00 ₺"}},{"$f":"SUBTOTAL(109,OfisVaryansları[Eki])","v":{"v":11470,"d":"11,470.00 ₺"}},{"$f":"SUBTOTAL(109,OfisVaryansları[Kas])","v":{"v":11770,"d":"11,770.00 ₺"}},{"$f":"SUBTOTAL(109,OfisVaryansları[Ara])","v":{"v":11770,"d":"11,770.00 ₺"}},{"$f":"SUBTOTAL(109,OfisVaryansları[YIL])","v":{"v":69390,"d":"69,390.00 ₺"}}]
[]
["Pazarlama Maliyetleri Varyans, Pazarlama Varyansları tablosunda sağdaki hücreden başlayarak otomatik olarak hesaplanır. Sonraki yönerge A30 hücresindedir.","Pazarlama Maliyetleri","Oca","Şub","Mar","Nis","May","Haz","Tem","Ağu","Eyl","Eki","Kas","Ara","YIL"]
[null,"Web sitesi barındırma",{"$f":"INDEX(PazarlamaPlanı[],MATCH(INDEX(PazarlamaVaryansları[],ROW()-ROW(PazarlamaVaryansları[[#Headers],[Oca]]),1),INDEX(PazarlamaPlanı[],,1),0),MATCH(PazarlamaVaryansları[[#Headers],[Oca]],PazarlamaPlanı[#Headers],0))-INDEX(PazarlamaFiili[],MATCH(INDEX(PazarlamaVaryansları[],ROW()-ROW(PazarlamaVaryansları[[#Headers],[Oca]]),1),INDEX(PazarlamaPlanı[],,1),0),MATCH(PazarlamaVaryansları[[#Headers],[Oca]],PazarlamaFiili[#Headers],0))","v":{"v":0,"d":"0.00 ₺"}},{"$f":"INDEX(PazarlamaPlanı[],MATCH(INDEX(PazarlamaVaryansları[],ROW()-ROW(PazarlamaVaryansları[[#Headers],[Şub]]),1),INDEX(PazarlamaPlanı[],,1),0),MATCH(PazarlamaVaryansları[[#Headers],[Şub]],PazarlamaPlanı[#Headers],0))-INDEX(PazarlamaFiili[],MATCH(INDEX(PazarlamaVaryansları[],ROW()-ROW(PazarlamaVaryansları[[#Headers],[Şub]]),1),INDEX(PazarlamaPlanı[],,1),0),MATCH(PazarlamaVaryansları[[#Headers],[Şub]],PazarlamaFiili[#Headers],0))","v":{"v":0,"d":"0.00 ₺"}},{"$f":"INDEX(PazarlamaPlanı[],MATCH(INDEX(PazarlamaVaryansları[],ROW()-ROW(PazarlamaVaryansları[[#Headers],[Mar]]),1),INDEX(PazarlamaPlanı[],,1),0),MATCH(PazarlamaVaryansları[[#Headers],[Mar]],PazarlamaPlanı[#Headers],0))-INDEX(PazarlamaFiili[],MATCH(INDEX(PazarlamaVaryansları[],ROW()-ROW(PazarlamaVaryansları[[#Headers],[Mar]]),1),INDEX(PazarlamaPlanı[],,1),0),MATCH(PazarlamaVaryansları[[#Headers],[Mar]],PazarlamaFiili[#Headers],0))","v":{"v":0,"d":"0.00 ₺"}},{"$f":"INDEX(PazarlamaPlanı[],MATCH(INDEX(PazarlamaVaryansları[],ROW()-ROW(PazarlamaVaryansları[[#Headers],[Nis]]),1),INDEX(PazarlamaPlanı[],,1),0),MATCH(PazarlamaVaryansları[[#Headers],[Nis]],PazarlamaPlanı[#Headers],0))-INDEX(PazarlamaFiili[],MATCH(INDEX(PazarlamaVaryansları[],ROW()-ROW(PazarlamaVaryansları[[#Headers],[Nis]]),1),INDEX(PazarlamaPlanı[],,1),0),MATCH(PazarlamaVaryansları[[#Headers],[Nis]],PazarlamaFiili[#Headers],0))","v":{"v":0,"d":"0.00 ₺"}},{"$f":"INDEX(PazarlamaPlanı[],MATCH(INDEX(PazarlamaVaryansları[],ROW()-ROW(PazarlamaVaryansları[[#Headers],[May]]),1),INDEX(PazarlamaPlanı[],,1),0),MATCH(PazarlamaVaryansları[[#Headers],[May]],PazarlamaPlanı[#Headers],0))-INDEX(PazarlamaFiili[],MATCH(INDEX(PazarlamaVaryansları[],ROW()-ROW(PazarlamaVaryansları[[#Headers],[May]]),1),INDEX(PazarlamaPlanı[],,1),0),MATCH(PazarlamaVaryansları[[#Headers],[May]],PazarlamaFiili[#Headers],0))","v":{"v":0,"d":"0.00 ₺"}},{"$f":"INDEX(PazarlamaPlanı[],MATCH(INDEX(PazarlamaVaryansları[],ROW()-ROW(PazarlamaVaryansları[[#Headers],[Haz]]),1),INDEX(PazarlamaPlanı[],,1),0),MATCH(PazarlamaVaryansları[[#Headers],[Haz]],PazarlamaPlanı[#Headers],0))-INDEX(PazarlamaFiili[],MATCH(INDEX(PazarlamaVaryansları[],ROW()-ROW(PazarlamaVaryansları[[#Headers],[Haz]]),1),INDEX(PazarlamaPlanı[],,1),0),MATCH(PazarlamaVaryansları[[#Headers],[Haz]],PazarlamaFiili[#Headers],0))","v":{"v":0,"d":"0.00 ₺"}},{"$f":"INDEX(PazarlamaPlanı[],MATCH(INDEX(PazarlamaVaryansları[],ROW()-ROW(PazarlamaVaryansları[[#Headers],[Tem]]),1),INDEX(PazarlamaPlanı[],,1),0),MATCH(PazarlamaVaryansları[[#Headers],[Tem]],PazarlamaPlanı[#Headers],0))-INDEX(PazarlamaFiili[],MATCH(INDEX(PazarlamaVaryansları[],ROW()-ROW(PazarlamaVaryansları[[#Headers],[Tem]]),1),INDEX(PazarlamaPlanı[],,1),0),MATCH(PazarlamaVaryansları[[#Headers],[Tem]],PazarlamaFiili[#Headers],0))","v":{"v":500,"d":"500.00 ₺"}},{"$f":"INDEX(PazarlamaPlanı[],MATCH(INDEX(PazarlamaVaryansları[],ROW()-ROW(PazarlamaVaryansları[[#Headers],[Ağu]]),1),INDEX(PazarlamaPlanı[],,1),0),MATCH(PazarlamaVaryansları[[#Headers],[Ağu]],PazarlamaPlanı[#Headers],0))-INDEX(PazarlamaFiili[],MATCH(INDEX(PazarlamaVaryansları[],ROW()-ROW(PazarlamaVaryansları[[#Headers],[Ağu]]),1),INDEX(PazarlamaPlanı[],,1),0),MATCH(PazarlamaVaryansları[[#Headers],[Ağu]],PazarlamaFiili[#Headers],0))","v":{"v":500,"d":"500.00 ₺"}},{"$f":"INDEX(PazarlamaPlanı[],MATCH(INDEX(PazarlamaVaryansları[],ROW()-ROW(PazarlamaVaryansları[[#Headers],[Eyl]]),1),INDEX(PazarlamaPlanı[],,1),0),MATCH(PazarlamaVaryansları[[#Headers],[Eyl]],PazarlamaPlanı[#Headers],0))-INDEX(PazarlamaFiili[],MATCH(INDEX(PazarlamaVaryansları[],ROW()-ROW(PazarlamaVaryansları[[#Headers],[Eyl]]),1),INDEX(PazarlamaPlanı[],,1),0),MATCH(PazarlamaVaryansları[[#Headers],[Eyl]],PazarlamaFiili[#Headers],0))","v":{"v":500,"d":"500.00 ₺"}},{"$f":"INDEX(PazarlamaPlanı[],MATCH(INDEX(PazarlamaVaryansları[],ROW()-ROW(PazarlamaVaryansları[[#Headers],[Eki]]),1),INDEX(PazarlamaPlanı[],,1),0),MATCH(PazarlamaVaryansları[[#Headers],[Eki]],PazarlamaPlanı[#Headers],0))-INDEX(PazarlamaFiili[],MATCH(INDEX(PazarlamaVaryansları[],ROW()-ROW(PazarlamaVaryansları[[#Headers],[Eki]]),1),INDEX(PazarlamaPlanı[],,1),0),MATCH(PazarlamaVaryansları[[#Headers],[Eki]],PazarlamaFiili[#Headers],0))","v":{"v":500,"d":"500.00 ₺"}},{"$f":"INDEX(PazarlamaPlanı[],MATCH(INDEX(PazarlamaVaryansları[],ROW()-ROW(PazarlamaVaryansları[[#Headers],[Kas]]),1),INDEX(PazarlamaPlanı[],,1),0),MATCH(PazarlamaVaryansları[[#Headers],[Kas]],PazarlamaPlanı[#Headers],0))-INDEX(PazarlamaFiili[],MATCH(INDEX(PazarlamaVaryansları[],ROW()-ROW(PazarlamaVaryansları[[#Headers],[Kas]]),1),INDEX(PazarlamaPlanı[],,1),0),MATCH(PazarlamaVaryansları[[#Headers],[Kas]],PazarlamaFiili[#Headers],0))","v":{"v":500,"d":"500.00 ₺"}},{"$f":"INDEX(PazarlamaPlanı[],MATCH(INDEX(PazarlamaVaryansları[],ROW()-ROW(PazarlamaVaryansları[[#Headers],[Ara]]),1),INDEX(PazarlamaPlanı[],,1),0),MATCH(PazarlamaVaryansları[[#Headers],[Ara]],PazarlamaPlanı[#Headers],0))-INDEX(PazarlamaFiili[],MATCH(INDEX(PazarlamaVaryansları[],ROW()-ROW(PazarlamaVaryansları[[#Headers],[Ara]]),1),INDEX(PazarlamaPlanı[],,1),0),MATCH(PazarlamaVaryansları[[#Headers],[Ara]],PazarlamaFiili[#Headers],0))","v":{"v":500,"d":"500.00 ₺"}},{"$f":"SUM(PazarlamaVaryansları[[#This Row],[Oca]:[Ara]])","v":{"v":3000,"d":"3,000.00 ₺"}}]
[null,"Web sitesi güncelleştirmeleri",{"$f":"INDEX(PazarlamaPlanı[],MATCH(INDEX(PazarlamaVaryansları[],ROW()-ROW(PazarlamaVaryansları[[#Headers],[Oca]]),1),INDEX(PazarlamaPlanı[],,1),0),MATCH(PazarlamaVaryansları[[#Headers],[Oca]],PazarlamaPlanı[#Headers],0))-INDEX(PazarlamaFiili[],MATCH(INDEX(PazarlamaVaryansları[],ROW()-ROW(PazarlamaVaryansları[[#Headers],[Oca]]),1),INDEX(PazarlamaPlanı[],,1),0),MATCH(PazarlamaVaryansları[[#Headers],[Oca]],PazarlamaFiili[#Headers],0))","v":{"v":0,"d":"0.00 ₺"}},{"$f":"INDEX(PazarlamaPlanı[],MATCH(INDEX(PazarlamaVaryansları[],ROW()-ROW(PazarlamaVaryansları[[#Headers],[Şub]]),1),INDEX(PazarlamaPlanı[],,1),0),MATCH(PazarlamaVaryansları[[#Headers],[Şub]],PazarlamaPlanı[#Headers],0))-INDEX(PazarlamaFiili[],MATCH(INDEX(PazarlamaVaryansları[],ROW()-ROW(PazarlamaVaryansları[[#Headers],[Şub]]),1),INDEX(PazarlamaPlanı[],,1),0),MATCH(PazarlamaVaryansları[[#Headers],[Şub]],PazarlamaFiili[#Headers],0))","v":{"v":0,"d":"0.00 ₺"}},{"$f":"INDEX(PazarlamaPlanı[],MATCH(INDEX(PazarlamaVaryansları[],ROW()-ROW(PazarlamaVaryansları[[#Headers],[Mar]]),1),INDEX(PazarlamaPlanı[],,1),0),MATCH(PazarlamaVaryansları[[#Headers],[Mar]],PazarlamaPlanı[#Headers],0))-INDEX(PazarlamaFiili[],MATCH(INDEX(PazarlamaVaryansları[],ROW()-ROW(PazarlamaVaryansları[[#Headers],[Mar]]),1),INDEX(PazarlamaPlanı[],,1),0),MATCH(PazarlamaVaryansları[[#Headers],[Mar]],PazarlamaFiili[#Headers],0))","v":{"v":0,"d":"0.00 ₺"}},{"$f":"INDEX(PazarlamaPlanı[],MATCH(INDEX(PazarlamaVaryansları[],ROW()-ROW(PazarlamaVaryansları[[#Headers],[Nis]]),1),INDEX(PazarlamaPlanı[],,1),0),MATCH(PazarlamaVaryansları[[#Headers],[Nis]],PazarlamaPlanı[#Headers],0))-INDEX(PazarlamaFiili[],MATCH(INDEX(PazarlamaVaryansları[],ROW()-ROW(PazarlamaVaryansları[[#Headers],[Nis]]),1),INDEX(PazarlamaPlanı[],,1),0),MATCH(PazarlamaVaryansları[[#Headers],[Nis]],PazarlamaFiili[#Headers],0))","v":{"v":0,"d":"0.00 ₺"}},{"$f":"INDEX(PazarlamaPlanı[],MATCH(INDEX(PazarlamaVaryansları[],ROW()-ROW(PazarlamaVaryansları[[#Headers],[May]]),1),INDEX(PazarlamaPlanı[],,1),0),MATCH(PazarlamaVaryansları[[#Headers],[May]],PazarlamaPlanı[#Headers],0))-INDEX(PazarlamaFiili[],MATCH(INDEX(PazarlamaVaryansları[],ROW()-ROW(PazarlamaVaryansları[[#Headers],[May]]),1),INDEX(PazarlamaPlanı[],,1),0),MATCH(PazarlamaVaryansları[[#Headers],[May]],PazarlamaFiili[#Headers],0))","v":{"v":0,"d":"0.00 ₺"}},{"$f":"INDEX(PazarlamaPlanı[],MATCH(INDEX(PazarlamaVaryansları[],ROW()-ROW(PazarlamaVaryansları[[#Headers],[Haz]]),1),INDEX(PazarlamaPlanı[],,1),0),MATCH(PazarlamaVaryansları[[#Headers],[Haz]],PazarlamaPlanı[#Headers],0))-INDEX(PazarlamaFiili[],MATCH(INDEX(PazarlamaVaryansları[],ROW()-ROW(PazarlamaVaryansları[[#Headers],[Haz]]),1),INDEX(PazarlamaPlanı[],,1),0),MATCH(PazarlamaVaryansları[[#Headers],[Haz]],PazarlamaFiili[#Headers],0))","v":{"v":-500,"d":"-500.00 ₺"}},{"$f":"INDEX(PazarlamaPlanı[],MATCH(INDEX(PazarlamaVaryansları[],ROW()-ROW(PazarlamaVaryansları[[#Headers],[Tem]]),1),INDEX(PazarlamaPlanı[],,1),0),MATCH(PazarlamaVaryansları[[#Headers],[Tem]],PazarlamaPlanı[#Headers],0))-INDEX(PazarlamaFiili[],MATCH(INDEX(PazarlamaVaryansları[],ROW()-ROW(PazarlamaVaryansları[[#Headers],[Tem]]),1),INDEX(PazarlamaPlanı[],,1),0),MATCH(PazarlamaVaryansları[[#Headers],[Tem]],PazarlamaFiili[#Headers],0))","v":{"v":200,"d":"200.00 ₺"}},{"$f":"INDEX(PazarlamaPlanı[],MATCH(INDEX(PazarlamaVaryansları[],ROW()-ROW(PazarlamaVaryansları[[#Headers],[Ağu]]),1),INDEX(PazarlamaPlanı[],,1),0),MATCH(PazarlamaVaryansları[[#Headers],[Ağu]],PazarlamaPlanı[#Headers],0))-INDEX(PazarlamaFiili[],MATCH(INDEX(PazarlamaVaryansları[],ROW()-ROW(PazarlamaVaryansları[[#Headers],[Ağu]]),1),INDEX(PazarlamaPlanı[],,1),0),MATCH(PazarlamaVaryansları[[#Headers],[Ağu]],PazarlamaFiili[#Headers],0))","v":{"v":200,"d":"200.00 ₺"}},{"$f":"INDEX(PazarlamaPlanı[],MATCH(INDEX(PazarlamaVaryansları[],ROW()-ROW(PazarlamaVaryansları[[#Headers],[Eyl]]),1),INDEX(PazarlamaPlanı[],,1),0),MATCH(PazarlamaVaryansları[[#Headers],[Eyl]],PazarlamaPlanı[#Headers],0))-INDEX(PazarlamaFiili[],MATCH(INDEX(PazarlamaVaryansları[],ROW()-ROW(PazarlamaVaryansları[[#Headers],[Eyl]]),1),INDEX(PazarlamaPlanı[],,1),0),MATCH(PazarlamaVaryansları[[#Headers],[Eyl]],PazarlamaFiili[#Headers],0))","v":{"v":200,"d":"200.00 ₺"}},{"$f":"INDEX(PazarlamaPlanı[],MATCH(INDEX(PazarlamaVaryansları[],ROW()-ROW(PazarlamaVaryansları[[#Headers],[Eki]]),1),INDEX(PazarlamaPlanı[],,1),0),MATCH(PazarlamaVaryansları[[#Headers],[Eki]],PazarlamaPlanı[#Headers],0))-INDEX(PazarlamaFiili[],MATCH(INDEX(PazarlamaVaryansları[],ROW()-ROW(PazarlamaVaryansları[[#Headers],[Eki]]),1),INDEX(PazarlamaPlanı[],,1),0),MATCH(PazarlamaVaryansları[[#Headers],[Eki]],PazarlamaFiili[#Headers],0))","v":{"v":200,"d":"200.00 ₺"}},{"$f":"INDEX(PazarlamaPlanı[],MATCH(INDEX(PazarlamaVaryansları[],ROW()-ROW(PazarlamaVaryansları[[#Headers],[Kas]]),1),INDEX(PazarlamaPlanı[],,1),0),MATCH(PazarlamaVaryansları[[#Headers],[Kas]],PazarlamaPlanı[#Headers],0))-INDEX(PazarlamaFiili[],MATCH(INDEX(PazarlamaVaryansları[],ROW()-ROW(PazarlamaVaryansları[[#Headers],[Kas]]),1),INDEX(PazarlamaPlanı[],,1),0),MATCH(PazarlamaVaryansları[[#Headers],[Kas]],PazarlamaFiili[#Headers],0))","v":{"v":200,"d":"200.00 ₺"}},{"$f":"INDEX(PazarlamaPlanı[],MATCH(INDEX(PazarlamaVaryansları[],ROW()-ROW(PazarlamaVaryansları[[#Headers],[Ara]]),1),INDEX(PazarlamaPlanı[],,1),0),MATCH(PazarlamaVaryansları[[#Headers],[Ara]],PazarlamaPlanı[#Headers],0))-INDEX(PazarlamaFiili[],MATCH(INDEX(PazarlamaVaryansları[],ROW()-ROW(PazarlamaVaryansları[[#Headers],[Ara]]),1),INDEX(PazarlamaPlanı[],,1),0),MATCH(PazarlamaVaryansları[[#Headers],[Ara]],PazarlamaFiili[#Headers],0))","v":{"v":1000,"d":"1,000.00 ₺"}},{"$f":"SUM(PazarlamaVaryansları[[#This Row],[Oca]:[Ara]])","v":{"v":1500,"d":"1,500.00 ₺"}}]
[null,"Yardımcı malzeme hazırlığı",{"$f":"INDEX(PazarlamaPlanı[],MATCH(INDEX(PazarlamaVaryansları[],ROW()-ROW(PazarlamaVaryansları[[#Headers],[Oca]]),1),INDEX(PazarlamaPlanı[],,1),0),MATCH(PazarlamaVaryansları[[#Headers],[Oca]],PazarlamaPlanı[#Headers],0))-INDEX(PazarlamaFiili[],MATCH(INDEX(PazarlamaVaryansları[],ROW()-ROW(PazarlamaVaryansları[[#Headers],[Oca]]),1),INDEX(PazarlamaPlanı[],,1),0),MATCH(PazarlamaVaryansları[[#Headers],[Oca]],PazarlamaFiili[#Headers],0))","v":{"v":200,"d":"200.00 ₺"}},{"$f":"INDEX(PazarlamaPlanı[],MATCH(INDEX(PazarlamaVaryansları[],ROW()-ROW(PazarlamaVaryansları[[#Headers],[Şub]]),1),INDEX(PazarlamaPlanı[],,1),0),MATCH(PazarlamaVaryansları[[#Headers],[Şub]],PazarlamaPlanı[#Headers],0))-INDEX(PazarlamaFiili[],MATCH(INDEX(PazarlamaVaryansları[],ROW()-ROW(PazarlamaVaryansları[[#Headers],[Şub]]),1),INDEX(PazarlamaPlanı[],,1),0),MATCH(PazarlamaVaryansları[[#Headers],[Şub]],PazarlamaFiili[#Headers],0))","v":{"v":0,"d":"0.00 ₺"}},{"$f":"INDEX(PazarlamaPlanı[],MATCH(INDEX(PazarlamaVaryansları[],ROW()-ROW(PazarlamaVaryansları[[#Headers],[Mar]]),1),INDEX(PazarlamaPlanı[],,1),0),MATCH(PazarlamaVaryansları[[#Headers],[Mar]],PazarlamaPlanı[#Headers],0))-INDEX(PazarlamaFiili[],MATCH(INDEX(PazarlamaVaryansları[],ROW()-ROW(PazarlamaVaryansları[[#Headers],[Mar]]),1),INDEX(PazarlamaPlanı[],,1),0),MATCH(PazarlamaVaryansları[[#Headers],[Mar]],PazarlamaFiili[#Headers],0))","v":{"v":0,"d":"0.00 ₺"}},{"$f":"INDEX(PazarlamaPlanı[],MATCH(INDEX(PazarlamaVaryansları[],ROW()-ROW(PazarlamaVaryansları[[#Headers],[Nis]]),1),INDEX(PazarlamaPlanı[],,1),0),MATCH(PazarlamaVaryansları[[#Headers],[Nis]],PazarlamaPlanı[#Headers],0))-INDEX(PazarlamaFiili[],MATCH(INDEX(PazarlamaVaryansları[],ROW()-ROW(PazarlamaVaryansları[[#Headers],[Nis]]),1),INDEX(PazarlamaPlanı[],,1),0),MATCH(PazarlamaVaryansları[[#Headers],[Nis]],PazarlamaFiili[#Headers],0))","v":{"v":-500,"d":"-500.00 ₺"}},{"$f":"INDEX(PazarlamaPlanı[],MATCH(INDEX(PazarlamaVaryansları[],ROW()-ROW(PazarlamaVaryansları[[#Headers],[May]]),1),INDEX(PazarlamaPlanı[],,1),0),MATCH(PazarlamaVaryansları[[#Headers],[May]],PazarlamaPlanı[#Headers],0))-INDEX(PazarlamaFiili[],MATCH(INDEX(PazarlamaVaryansları[],ROW()-ROW(PazarlamaVaryansları[[#Headers],[May]]),1),INDEX(PazarlamaPlanı[],,1),0),MATCH(PazarlamaVaryansları[[#Headers],[May]],PazarlamaFiili[#Headers],0))","v":{"v":0,"d":"0.00 ₺"}},{"$f":"INDEX(PazarlamaPlanı[],MATCH(INDEX(PazarlamaVaryansları[],ROW()-ROW(PazarlamaVaryansları[[#Headers],[Haz]]),1),INDEX(PazarlamaPlanı[],,1),0),MATCH(PazarlamaVaryansları[[#Headers],[Haz]],PazarlamaPlanı[#Headers],0))-INDEX(PazarlamaFiili[],MATCH(INDEX(PazarlamaVaryansları[],ROW()-ROW(PazarlamaVaryansları[[#Headers],[Haz]]),1),INDEX(PazarlamaPlanı[],,1),0),MATCH(PazarlamaVaryansları[[#Headers],[Haz]],PazarlamaFiili[#Headers],0))","v":{"v":0,"d":"0.00 ₺"}},{"$f":"INDEX(PazarlamaPlanı[],MATCH(INDEX(PazarlamaVaryansları[],ROW()-ROW(PazarlamaVaryansları[[#Headers],[Tem]]),1),INDEX(PazarlamaPlanı[],,1),0),MATCH(PazarlamaVaryansları[[#Headers],[Tem]],PazarlamaPlanı[#Headers],0))-INDEX(PazarlamaFiili[],MATCH(INDEX(PazarlamaVaryansları[],ROW()-ROW(PazarlamaVaryansları[[#Headers],[Tem]]),1),INDEX(PazarlamaPlanı[],,1),0),MATCH(PazarlamaVaryansları[[#Headers],[Tem]],PazarlamaFiili[#Headers],0))","v":{"v":5000,"d":"5,000.00 ₺"}},{"$f":"INDEX(PazarlamaPlanı[],MATCH(INDEX(PazarlamaVaryansları[],ROW()-ROW(PazarlamaVaryansları[[#Headers],[Ağu]]),1),INDEX(PazarlamaPlanı[],,1),0),MATCH(PazarlamaVaryansları[[#Headers],[Ağu]],PazarlamaPlanı[#Headers],0))-INDEX(PazarlamaFiili[],MATCH(INDEX(PazarlamaVaryansları[],ROW()-ROW(PazarlamaVaryansları[[#Headers],[Ağu]]),1),INDEX(PazarlamaPlanı[],,1),0),MATCH(PazarlamaVaryansları[[#Headers],[Ağu]],PazarlamaFiili[#Headers],0))","v":{"v":0,"d":"0.00 ₺"}},{"$f":"INDEX(PazarlamaPlanı[],MATCH(INDEX(PazarlamaVaryansları[],ROW()-ROW(PazarlamaVaryansları[[#Headers],[Eyl]]),1),INDEX(PazarlamaPlanı[],,1),0),MATCH(PazarlamaVaryansları[[#Headers],[Eyl]],PazarlamaPlanı[#Headers],0))-INDEX(PazarlamaFiili[],MATCH(INDEX(PazarlamaVaryansları[],ROW()-ROW(PazarlamaVaryansları[[#Headers],[Eyl]]),1),INDEX(PazarlamaPlanı[],,1),0),MATCH(PazarlamaVaryansları[[#Headers],[Eyl]],PazarlamaFiili[#Headers],0))","v":{"v":0,"d":"0.00 ₺"}},{"$f":"INDEX(PazarlamaPlanı[],MATCH(INDEX(PazarlamaVaryansları[],ROW()-ROW(PazarlamaVaryansları[[#Headers],[Eki]]),1),INDEX(PazarlamaPlanı[],,1),0),MATCH(PazarlamaVaryansları[[#Headers],[Eki]],PazarlamaPlanı[#Headers],0))-INDEX(PazarlamaFiili[],MATCH(INDEX(PazarlamaVaryansları[],ROW()-ROW(PazarlamaVaryansları[[#Headers],[Eki]]),1),INDEX(PazarlamaPlanı[],,1),0),MATCH(PazarlamaVaryansları[[#Headers],[Eki]],PazarlamaFiili[#Headers],0))","v":{"v":5000,"d":"5,000.00 ₺"}},{"$f":"INDEX(PazarlamaPlanı[],MATCH(INDEX(PazarlamaVaryansları[],ROW()-ROW(PazarlamaVaryansları[[#Headers],[Kas]]),1),INDEX(PazarlamaPlanı[],,1),0),MATCH(PazarlamaVaryansları[[#Headers],[Kas]],PazarlamaPlanı[#Headers],0))-INDEX(PazarlamaFiili[],MATCH(INDEX(PazarlamaVaryansları[],ROW()-ROW(PazarlamaVaryansları[[#Headers],[Kas]]),1),INDEX(PazarlamaPlanı[],,1),0),MATCH(PazarlamaVaryansları[[#Headers],[Kas]],PazarlamaFiili[#Headers],0))","v":{"v":0,"d":"0.00 ₺"}},{"$f":"INDEX(PazarlamaPlanı[],MATCH(INDEX(PazarlamaVaryansları[],ROW()-ROW(PazarlamaVaryansları[[#Headers],[Ara]]),1),INDEX(PazarlamaPlanı[],,1),0),MATCH(PazarlamaVaryansları[[#Headers],[Ara]],PazarlamaPlanı[#Headers],0))-INDEX(PazarlamaFiili[],MATCH(INDEX(PazarlamaVaryansları[],ROW()-ROW(PazarlamaVaryansları[[#Headers],[Ara]]),1),INDEX(PazarlamaPlanı[],,1),0),MATCH(PazarlamaVaryansları[[#Headers],[Ara]],PazarlamaFiili[#Headers],0))","v":{"v":0,"d":"0.00 ₺"}},{"$f":"SUM(PazarlamaVaryansları[[#This Row],[Oca]:[Ara]])","v":{"v":9700,"d":"9,700.00 ₺"}}]
[null,"Yardımcı malzemeleri yazdırma",{"$f":"INDEX(PazarlamaPlanı[],MATCH(INDEX(PazarlamaVaryansları[],ROW()-ROW(PazarlamaVaryansları[[#Headers],[Oca]]),1),INDEX(PazarlamaPlanı[],,1),0),MATCH(PazarlamaVaryansları[[#Headers],[Oca]],PazarlamaPlanı[#Headers],0))-INDEX(PazarlamaFiili[],MATCH(INDEX(PazarlamaVaryansları[],ROW()-ROW(PazarlamaVaryansları[[#Headers],[Oca]]),1),INDEX(PazarlamaPlanı[],,1),0),MATCH(PazarlamaVaryansları[[#Headers],[Oca]],PazarlamaFiili[#Headers],0))","v":{"v":100,"d":"100.00 ₺"}},{"$f":"INDEX(PazarlamaPlanı[],MATCH(INDEX(PazarlamaVaryansları[],ROW()-ROW(PazarlamaVaryansları[[#Headers],[Şub]]),1),INDEX(PazarlamaPlanı[],,1),0),MATCH(PazarlamaVaryansları[[#Headers],[Şub]],PazarlamaPlanı[#Headers],0))-INDEX(PazarlamaFiili[],MATCH(INDEX(PazarlamaVaryansları[],ROW()-ROW(PazarlamaVaryansları[[#Headers],[Şub]]),1),INDEX(PazarlamaPlanı[],,1),0),MATCH(PazarlamaVaryansları[[#Headers],[Şub]],PazarlamaFiili[#Headers],0))","v":{"v":-300,"d":"-300.00 ₺"}},{"$f":"INDEX(PazarlamaPlanı[],MATCH(INDEX(PazarlamaVaryansları[],ROW()-ROW(PazarlamaVaryansları[[#Headers],[Mar]]),1),INDEX(PazarlamaPlanı[],,1),0),MATCH(PazarlamaVaryansları[[#Headers],[Mar]],PazarlamaPlanı[#Headers],0))-INDEX(PazarlamaFiili[],MATCH(INDEX(PazarlamaVaryansları[],ROW()-ROW(PazarlamaVaryansları[[#Headers],[Mar]]),1),INDEX(PazarlamaPlanı[],,1),0),MATCH(PazarlamaVaryansları[[#Headers],[Mar]],PazarlamaFiili[#Headers],0))","v":{"v":100,"d":"100.00 ₺"}},{"$f":"INDEX(PazarlamaPlanı[],MATCH(INDEX(PazarlamaVaryansları[],ROW()-ROW(PazarlamaVaryansları[[#Headers],[Nis]]),1),INDEX(PazarlamaPlanı[],,1),0),MATCH(PazarlamaVaryansları[[#Headers],[Nis]],PazarlamaPlanı[#Headers],0))-INDEX(PazarlamaFiili[],MATCH(INDEX(PazarlamaVaryansları[],ROW()-ROW(PazarlamaVaryansları[[#Headers],[Nis]]),1),INDEX(PazarlamaPlanı[],,1),0),MATCH(PazarlamaVaryansları[[#Headers],[Nis]],PazarlamaFiili[#Headers],0))","v":{"v":100,"d":"100.00 ₺"}},{"$f":"INDEX(PazarlamaPlanı[],MATCH(INDEX(PazarlamaVaryansları[],ROW()-ROW(PazarlamaVaryansları[[#Headers],[May]]),1),INDEX(PazarlamaPlanı[],,1),0),MATCH(PazarlamaVaryansları[[#Headers],[May]],PazarlamaPlanı[#Headers],0))-INDEX(PazarlamaFiili[],MATCH(INDEX(PazarlamaVaryansları[],ROW()-ROW(PazarlamaVaryansları[[#Headers],[May]]),1),INDEX(PazarlamaPlanı[],,1),0),MATCH(PazarlamaVaryansları[[#Headers],[May]],PazarlamaFiili[#Headers],0))","v":{"v":-400,"d":"-400.00 ₺"}},{"$f":"INDEX(PazarlamaPlanı[],MATCH(INDEX(PazarlamaVaryansları[],ROW()-ROW(PazarlamaVaryansları[[#Headers],[Haz]]),1),INDEX(PazarlamaPlanı[],,1),0),MATCH(PazarlamaVaryansları[[#Headers],[Haz]],PazarlamaPlanı[#Headers],0))-INDEX(PazarlamaFiili[],MATCH(INDEX(PazarlamaVaryansları[],ROW()-ROW(PazarlamaVaryansları[[#Headers],[Haz]]),1),INDEX(PazarlamaPlanı[],,1),0),MATCH(PazarlamaVaryansları[[#Headers],[Haz]],PazarlamaFiili[#Headers],0))","v":{"v":20,"d":"20.00 ₺"}},{"$f":"INDEX(PazarlamaPlanı[],MATCH(INDEX(PazarlamaVaryansları[],ROW()-ROW(PazarlamaVaryansları[[#Headers],[Tem]]),1),INDEX(PazarlamaPlanı[],,1),0),MATCH(PazarlamaVaryansları[[#Headers],[Tem]],PazarlamaPlanı[#Headers],0))-INDEX(PazarlamaFiili[],MATCH(INDEX(PazarlamaVaryansları[],ROW()-ROW(PazarlamaVaryansları[[#Headers],[Tem]]),1),INDEX(PazarlamaPlanı[],,1),0),MATCH(PazarlamaVaryansları[[#Headers],[Tem]],PazarlamaFiili[#Headers],0))","v":{"v":200,"d":"200.00 ₺"}},{"$f":"INDEX(PazarlamaPlanı[],MATCH(INDEX(PazarlamaVaryansları[],ROW()-ROW(PazarlamaVaryansları[[#Headers],[Ağu]]),1),INDEX(PazarlamaPlanı[],,1),0),MATCH(PazarlamaVaryansları[[#Headers],[Ağu]],PazarlamaPlanı[#Headers],0))-INDEX(PazarlamaFiili[],MATCH(INDEX(PazarlamaVaryansları[],ROW()-ROW(PazarlamaVaryansları[[#Headers],[Ağu]]),1),INDEX(PazarlamaPlanı[],,1),0),MATCH(PazarlamaVaryansları[[#Headers],[Ağu]],PazarlamaFiili[#Headers],0))","v":{"v":200,"d":"200.00 ₺"}},{"$f":"INDEX(PazarlamaPlanı[],MATCH(INDEX(PazarlamaVaryansları[],ROW()-ROW(PazarlamaVaryansları[[#Headers],[Eyl]]),1),INDEX(PazarlamaPlanı[],,1),0),MATCH(PazarlamaVaryansları[[#Headers],[Eyl]],PazarlamaPlanı[#Headers],0))-INDEX(PazarlamaFiili[],MATCH(INDEX(PazarlamaVaryansları[],ROW()-ROW(PazarlamaVaryansları[[#Headers],[Eyl]]),1),INDEX(PazarlamaPlanı[],,1),0),MATCH(PazarlamaVaryansları[[#Headers],[Eyl]],PazarlamaFiili[#Headers],0))","v":{"v":200,"d":"200.00 ₺"}},{"$f":"INDEX(PazarlamaPlanı[],MATCH(INDEX(PazarlamaVaryansları[],ROW()-ROW(PazarlamaVaryansları[[#Headers],[Eki]]),1),INDEX(PazarlamaPlanı[],,1),0),MATCH(PazarlamaVaryansları[[#Headers],[Eki]],PazarlamaPlanı[#Headers],0))-INDEX(PazarlamaFiili[],MATCH(INDEX(PazarlamaVaryansları[],ROW()-ROW(PazarlamaVaryansları[[#Headers],[Eki]]),1),INDEX(PazarlamaPlanı[],,1),0),MATCH(PazarlamaVaryansları[[#Headers],[Eki]],PazarlamaFiili[#Headers],0))","v":{"v":200,"d":"200.00 ₺"}},{"$f":"INDEX(PazarlamaPlanı[],MATCH(INDEX(PazarlamaVaryansları[],ROW()-ROW(PazarlamaVaryansları[[#Headers],[Kas]]),1),INDEX(PazarlamaPlanı[],,1),0),MATCH(PazarlamaVaryansları[[#Headers],[Kas]],PazarlamaPlanı[#Headers],0))-INDEX(PazarlamaFiili[],MATCH(INDEX(PazarlamaVaryansları[],ROW()-ROW(PazarlamaVaryansları[[#Headers],[Kas]]),1),INDEX(PazarlamaPlanı[],,1),0),MATCH(PazarlamaVaryansları[[#Headers],[Kas]],PazarlamaFiili[#Headers],0))","v":{"v":200,"d":"200.00 ₺"}},{"$f":"INDEX(PazarlamaPlanı[],MATCH(INDEX(PazarlamaVaryansları[],ROW()-ROW(PazarlamaVaryansları[[#Headers],[Ara]]),1),INDEX(PazarlamaPlanı[],,1),0),MATCH(PazarlamaVaryansları[[#Headers],[Ara]],PazarlamaPlanı[#Headers],0))-INDEX(PazarlamaFiili[],MATCH(INDEX(PazarlamaVaryansları[],ROW()-ROW(PazarlamaVaryansları[[#Headers],[Ara]]),1),INDEX(PazarlamaPlanı[],,1),0),MATCH(PazarlamaVaryansları[[#Headers],[Ara]],PazarlamaFiili[#Headers],0))","v":{"v":200,"d":"200.00 ₺"}},{"$f":"SUM(PazarlamaVaryansları[[#This Row],[Oca]:[Ara]])","v":{"v":820,"d":"820.00 ₺"}}]
[null,"Pazarlama etkinlikleri",{"$f":"INDEX(PazarlamaPlanı[],MATCH(INDEX(PazarlamaVaryansları[],ROW()-ROW(PazarlamaVaryansları[[#Headers],[Oca]]),1),INDEX(PazarlamaPlanı[],,1),0),MATCH(PazarlamaVaryansları[[#Headers],[Oca]],PazarlamaPlanı[#Headers],0))-INDEX(PazarlamaFiili[],MATCH(INDEX(PazarlamaVaryansları[],ROW()-ROW(PazarlamaVaryansları[[#Headers],[Oca]]),1),INDEX(PazarlamaPlanı[],,1),0),MATCH(PazarlamaVaryansları[[#Headers],[Oca]],PazarlamaFiili[#Headers],0))","v":{"v":200,"d":"200.00 ₺"}},{"$f":"INDEX(PazarlamaPlanı[],MATCH(INDEX(PazarlamaVaryansları[],ROW()-ROW(PazarlamaVaryansları[[#Headers],[Şub]]),1),INDEX(PazarlamaPlanı[],,1),0),MATCH(PazarlamaVaryansları[[#Headers],[Şub]],PazarlamaPlanı[#Headers],0))-INDEX(PazarlamaFiili[],MATCH(INDEX(PazarlamaVaryansları[],ROW()-ROW(PazarlamaVaryansları[[#Headers],[Şub]]),1),INDEX(PazarlamaPlanı[],,1),0),MATCH(PazarlamaVaryansları[[#Headers],[Şub]],PazarlamaFiili[#Headers],0))","v":{"v":-200,"d":"-200.00 ₺"}},{"$f":"INDEX(PazarlamaPlanı[],MATCH(INDEX(PazarlamaVaryansları[],ROW()-ROW(PazarlamaVaryansları[[#Headers],[Mar]]),1),INDEX(PazarlamaPlanı[],,1),0),MATCH(PazarlamaVaryansları[[#Headers],[Mar]],PazarlamaPlanı[#Headers],0))-INDEX(PazarlamaFiili[],MATCH(INDEX(PazarlamaVaryansları[],ROW()-ROW(PazarlamaVaryansları[[#Headers],[Mar]]),1),INDEX(PazarlamaPlanı[],,1),0),MATCH(PazarlamaVaryansları[[#Headers],[Mar]],PazarlamaFiili[#Headers],0))","v":{"v":-200,"d":"-200.00 ₺"}},{"$f":"INDEX(PazarlamaPlanı[],MATCH(INDEX(PazarlamaVaryansları[],ROW()-ROW(PazarlamaVaryansları[[#Headers],[Nis]]),1),INDEX(PazarlamaPlanı[],,1),0),MATCH(PazarlamaVaryansları[[#Headers],[Nis]],PazarlamaPlanı[#Headers],0))-INDEX(PazarlamaFiili[],MATCH(INDEX(PazarlamaVaryansları[],ROW()-ROW(PazarlamaVaryansları[[#Headers],[Nis]]),1),INDEX(PazarlamaPlanı[],,1),0),MATCH(PazarlamaVaryansları[[#Headers],[Nis]],PazarlamaFiili[#Headers],0))","v":{"v":300,"d":"300.00 ₺"}},{"$f":"INDEX(PazarlamaPlanı[],MATCH(INDEX(PazarlamaVaryansları[],ROW()-ROW(PazarlamaVaryansları[[#Headers],[May]]),1),INDEX(PazarlamaPlanı[],,1),0),MATCH(PazarlamaVaryansları[[#Headers],[May]],PazarlamaPlanı[#Headers],0))-INDEX(PazarlamaFiili[],MATCH(INDEX(PazarlamaVaryansları[],ROW()-ROW(PazarlamaVaryansları[[#Headers],[May]]),1),INDEX(PazarlamaPlanı[],,1),0),MATCH(PazarlamaVaryansları[[#Headers],[May]],PazarlamaFiili[#Headers],0))","v":{"v":500,"d":"500.00 ₺"}},{"$f":"INDEX(PazarlamaPlanı[],MATCH(INDEX(PazarlamaVaryansları[],ROW()-ROW(PazarlamaVaryansları[[#Headers],[Haz]]),1),INDEX(PazarlamaPlanı[],,1),0),MATCH(PazarlamaVaryansları[[#Headers],[Haz]],PazarlamaPlanı[#Headers],0))-INDEX(PazarlamaFiili[],MATCH(INDEX(PazarlamaVaryansları[],ROW()-ROW(PazarlamaVaryansları[[#Headers],[Haz]]),1),INDEX(PazarlamaPlanı[],,1),0),MATCH(PazarlamaVaryansları[[#Headers],[Haz]],PazarlamaFiili[#Headers],0))","v":{"v":-300,"d":"-300.00 ₺"}},{"$f":"INDEX(PazarlamaPlanı[],MATCH(INDEX(PazarlamaVaryansları[],ROW()-ROW(PazarlamaVaryansları[[#Headers],[Tem]]),1),INDEX(PazarlamaPlanı[],,1),0),MATCH(PazarlamaVaryansları[[#Headers],[Tem]],PazarlamaPlanı[#Headers],0))-INDEX(PazarlamaFiili[],MATCH(INDEX(PazarlamaVaryansları[],ROW()-ROW(PazarlamaVaryansları[[#Headers],[Tem]]),1),INDEX(PazarlamaPlanı[],,1),0),MATCH(PazarlamaVaryansları[[#Headers],[Tem]],PazarlamaFiili[#Headers],0))","v":{"v":2000,"d":"2,000.00 ₺"}},{"$f":"INDEX(PazarlamaPlanı[],MATCH(INDEX(PazarlamaVaryansları[],ROW()-ROW(PazarlamaVaryansları[[#Headers],[Ağu]]),1),INDEX(PazarlamaPlanı[],,1),0),MATCH(PazarlamaVaryansları[[#Headers],[Ağu]],PazarlamaPlanı[#Headers],0))-INDEX(PazarlamaFiili[],MATCH(INDEX(PazarlamaVaryansları[],ROW()-ROW(PazarlamaVaryansları[[#Headers],[Ağu]]),1),INDEX(PazarlamaPlanı[],,1),0),MATCH(PazarlamaVaryansları[[#Headers],[Ağu]],PazarlamaFiili[#Headers],0))","v":{"v":5000,"d":"5,000.00 ₺"}},{"$f":"INDEX(PazarlamaPlanı[],MATCH(INDEX(PazarlamaVaryansları[],ROW()-ROW(PazarlamaVaryansları[[#Headers],[Eyl]]),1),INDEX(PazarlamaPlanı[],,1),0),MATCH(PazarlamaVaryansları[[#Headers],[Eyl]],PazarlamaPlanı[#Headers],0))-INDEX(PazarlamaFiili[],MATCH(INDEX(PazarlamaVaryansları[],ROW()-ROW(PazarlamaVaryansları[[#Headers],[Eyl]]),1),INDEX(PazarlamaPlanı[],,1),0),MATCH(PazarlamaVaryansları[[#Headers],[Eyl]],PazarlamaFiili[#Headers],0))","v":{"v":2000,"d":"2,000.00 ₺"}},{"$f":"INDEX(PazarlamaPlanı[],MATCH(INDEX(PazarlamaVaryansları[],ROW()-ROW(PazarlamaVaryansları[[#Headers],[Eki]]),1),INDEX(PazarlamaPlanı[],,1),0),MATCH(PazarlamaVaryansları[[#Headers],[Eki]],PazarlamaPlanı[#Headers],0))-INDEX(PazarlamaFiili[],MATCH(INDEX(PazarlamaVaryansları[],ROW()-ROW(PazarlamaVaryansları[[#Headers],[Eki]]),1),INDEX(PazarlamaPlanı[],,1),0),MATCH(PazarlamaVaryansları[[#Headers],[Eki]],PazarlamaFiili[#Headers],0))","v":{"v":2000,"d":"2,000.00 ₺"}},{"$f":"INDEX(PazarlamaPlanı[],MATCH(INDEX(PazarlamaVaryansları[],ROW()-ROW(PazarlamaVaryansları[[#Headers],[Kas]]),1),INDEX(PazarlamaPlanı[],,1),0),MATCH(PazarlamaVaryansları[[#Headers],[Kas]],PazarlamaPlanı[#Headers],0))-INDEX(PazarlamaFiili[],MATCH(INDEX(PazarlamaVaryansları[],ROW()-ROW(PazarlamaVaryansları[[#Headers],[Kas]]),1),INDEX(PazarlamaPlanı[],,1),0),MATCH(PazarlamaVaryansları[[#Headers],[Kas]],PazarlamaFiili[#Headers],0))","v":{"v":2000,"d":"2,000.00 ₺"}},{"$f":"INDEX(PazarlamaPlanı[],MATCH(INDEX(PazarlamaVaryansları[],ROW()-ROW(PazarlamaVaryansları[[#Headers],[Ara]]),1),INDEX(PazarlamaPlanı[],,1),0),MATCH(PazarlamaVaryansları[[#Headers],[Ara]],PazarlamaPlanı[#Headers],0))-INDEX(PazarlamaFiili[],MATCH(INDEX(PazarlamaVaryansları[],ROW()-ROW(PazarlamaVaryansları[[#Headers],[Ara]]),1),INDEX(PazarlamaPlanı[],,1),0),MATCH(PazarlamaVaryansları[[#Headers],[Ara]],PazarlamaFiili[#Headers],0))","v":{"v":5000,"d":"5,000.00 ₺"}},{"$f":"SUM(PazarlamaVaryansları[[#This Row],[Oca]:[Ara]])","v":{"v":18300,"d":"18,300.00 ₺"}}]
[null,"Sair giderler",{"$f":"INDEX(PazarlamaPlanı[],MATCH(INDEX(PazarlamaVaryansları[],ROW()-ROW(PazarlamaVaryansları[[#Headers],[Oca]]),1),INDEX(PazarlamaPlanı[],,1),0),MATCH(PazarlamaVaryansları[[#Headers],[Oca]],PazarlamaPlanı[#Headers],0))-INDEX(PazarlamaFiili[],MATCH(INDEX(PazarlamaVaryansları[],ROW()-ROW(PazarlamaVaryansları[[#Headers],[Oca]]),1),INDEX(PazarlamaPlanı[],,1),0),MATCH(PazarlamaVaryansları[[#Headers],[Oca]],PazarlamaFiili[#Headers],0))","v":{"v":55,"d":"55.00 ₺"}},{"$f":"INDEX(PazarlamaPlanı[],MATCH(INDEX(PazarlamaVaryansları[],ROW()-ROW(PazarlamaVaryansları[[#Headers],[Şub]]),1),INDEX(PazarlamaPlanı[],,1),0),MATCH(PazarlamaVaryansları[[#Headers],[Şub]],PazarlamaPlanı[#Headers],0))-INDEX(PazarlamaFiili[],MATCH(INDEX(PazarlamaVaryansları[],ROW()-ROW(PazarlamaVaryansları[[#Headers],[Şub]]),1),INDEX(PazarlamaPlanı[],,1),0),MATCH(PazarlamaVaryansları[[#Headers],[Şub]],PazarlamaFiili[#Headers],0))","v":{"v":44,"d":"44.00 ₺"}},{"$f":"INDEX(PazarlamaPlanı[],MATCH(INDEX(PazarlamaVaryansları[],ROW()-ROW(PazarlamaVaryansları[[#Headers],[Mar]]),1),INDEX(PazarlamaPlanı[],,1),0),MATCH(PazarlamaVaryansları[[#Headers],[Mar]],PazarlamaPlanı[#Headers],0))-INDEX(PazarlamaFiili[],MATCH(INDEX(PazarlamaVaryansları[],ROW()-ROW(PazarlamaVaryansları[[#Headers],[Mar]]),1),INDEX(PazarlamaPlanı[],,1),0),MATCH(PazarlamaVaryansları[[#Headers],[Mar]],PazarlamaFiili[#Headers],0))","v":{"v":77,"d":"77.00 ₺"}},{"$f":"INDEX(PazarlamaPlanı[],MATCH(INDEX(PazarlamaVaryansları[],ROW()-ROW(PazarlamaVaryansları[[#Headers],[Nis]]),1),INDEX(PazarlamaPlanı[],,1),0),MATCH(PazarlamaVaryansları[[#Headers],[Nis]],PazarlamaPlanı[#Headers],0))-INDEX(PazarlamaFiili[],MATCH(INDEX(PazarlamaVaryansları[],ROW()-ROW(PazarlamaVaryansları[[#Headers],[Nis]]),1),INDEX(PazarlamaPlanı[],,1),0),MATCH(PazarlamaVaryansları[[#Headers],[Nis]],PazarlamaFiili[#Headers],0))","v":{"v":-23,"d":"-23.00 ₺"}},{"$f":"INDEX(PazarlamaPlanı[],MATCH(INDEX(PazarlamaVaryansları[],ROW()-ROW(PazarlamaVaryansları[[#Headers],[May]]),1),INDEX(PazarlamaPlanı[],,1),0),MATCH(PazarlamaVaryansları[[#Headers],[May]],PazarlamaPlanı[#Headers],0))-INDEX(PazarlamaFiili[],MATCH(INDEX(PazarlamaVaryansları[],ROW()-ROW(PazarlamaVaryansları[[#Headers],[May]]),1),INDEX(PazarlamaPlanı[],,1),0),MATCH(PazarlamaVaryansları[[#Headers],[May]],PazarlamaFiili[#Headers],0))","v":{"v":13,"d":"13.00 ₺"}},{"$f":"INDEX(PazarlamaPlanı[],MATCH(INDEX(PazarlamaVaryansları[],ROW()-ROW(PazarlamaVaryansları[[#Headers],[Haz]]),1),INDEX(PazarlamaPlanı[],,1),0),MATCH(PazarlamaVaryansları[[#Headers],[Haz]],PazarlamaPlanı[#Headers],0))-INDEX(PazarlamaFiili[],MATCH(INDEX(PazarlamaVaryansları[],ROW()-ROW(PazarlamaVaryansları[[#Headers],[Haz]]),1),INDEX(PazarlamaPlanı[],,1),0),MATCH(PazarlamaVaryansları[[#Headers],[Haz]],PazarlamaFiili[#Headers],0))","v":{"v":-45,"d":"-45.00 ₺"}},{"$f":"INDEX(PazarlamaPlanı[],MATCH(INDEX(PazarlamaVaryansları[],ROW()-ROW(PazarlamaVaryansları[[#Headers],[Tem]]),1),INDEX(PazarlamaPlanı[],,1),0),MATCH(PazarlamaVaryansları[[#Headers],[Tem]],PazarlamaPlanı[#Headers],0))-INDEX(PazarlamaFiili[],MATCH(INDEX(PazarlamaVaryansları[],ROW()-ROW(PazarlamaVaryansları[[#Headers],[Tem]]),1),INDEX(PazarlamaPlanı[],,1),0),MATCH(PazarlamaVaryansları[[#Headers],[Tem]],PazarlamaFiili[#Headers],0))","v":{"v":200,"d":"200.00 ₺"}},{"$f":"INDEX(PazarlamaPlanı[],MATCH(INDEX(PazarlamaVaryansları[],ROW()-ROW(PazarlamaVaryansları[[#Headers],[Ağu]]),1),INDEX(PazarlamaPlanı[],,1),0),MATCH(PazarlamaVaryansları[[#Headers],[Ağu]],PazarlamaPlanı[#Headers],0))-INDEX(PazarlamaFiili[],MATCH(INDEX(PazarlamaVaryansları[],ROW()-ROW(PazarlamaVaryansları[[#Headers],[Ağu]]),1),INDEX(PazarlamaPlanı[],,1),0),MATCH(PazarlamaVaryansları[[#Headers],[Ağu]],PazarlamaFiili[#Headers],0))","v":{"v":200,"d":"200.00 ₺"}},{"$f":"INDEX(PazarlamaPlanı[],MATCH(INDEX(PazarlamaVaryansları[],ROW()-ROW(PazarlamaVaryansları[[#Headers],[Eyl]]),1),INDEX(PazarlamaPlanı[],,1),0),MATCH(PazarlamaVaryansları[[#Headers],[Eyl]],PazarlamaPlanı[#Headers],0))-INDEX(PazarlamaFiili[],MATCH(INDEX(PazarlamaVaryansları[],ROW()-ROW(PazarlamaVaryansları[[#Headers],[Eyl]]),1),INDEX(PazarlamaPlanı[],,1),0),MATCH(PazarlamaVaryansları[[#Headers],[Eyl]],PazarlamaFiili[#Headers],0))","v":{"v":200,"d":"200.00 ₺"}},{"$f":"INDEX(PazarlamaPlanı[],MATCH(INDEX(PazarlamaVaryansları[],ROW()-ROW(PazarlamaVaryansları[[#Headers],[Eki]]),1),INDEX(PazarlamaPlanı[],,1),0),MATCH(PazarlamaVaryansları[[#Headers],[Eki]],PazarlamaPlanı[#Headers],0))-INDEX(PazarlamaFiili[],MATCH(INDEX(PazarlamaVaryansları[],ROW()-ROW(PazarlamaVaryansları[[#Headers],[Eki]]),1),INDEX(PazarlamaPlanı[],,1),0),MATCH(PazarlamaVaryansları[[#Headers],[Eki]],PazarlamaFiili[#Headers],0))","v":{"v":200,"d":"200.00 ₺"}},{"$f":"INDEX(PazarlamaPlanı[],MATCH(INDEX(PazarlamaVaryansları[],ROW()-ROW(PazarlamaVaryansları[[#Headers],[Kas]]),1),INDEX(PazarlamaPlanı[],,1),0),MATCH(PazarlamaVaryansları[[#Headers],[Kas]],PazarlamaPlanı[#Headers],0))-INDEX(PazarlamaFiili[],MATCH(INDEX(PazarlamaVaryansları[],ROW()-ROW(PazarlamaVaryansları[[#Headers],[Kas]]),1),INDEX(PazarlamaPlanı[],,1),0),MATCH(PazarlamaVaryansları[[#Headers],[Kas]],PazarlamaFiili[#Headers],0))","v":{"v":200,"d":"200.00 ₺"}},{"$f":"INDEX(PazarlamaPlanı[],MATCH(INDEX(PazarlamaVaryansları[],ROW()-ROW(PazarlamaVaryansları[[#Headers],[Ara]]),1),INDEX(PazarlamaPlanı[],,1),0),MATCH(PazarlamaVaryansları[[#Headers],[Ara]],PazarlamaPlanı[#Headers],0))-INDEX(PazarlamaFiili[],MATCH(INDEX(PazarlamaVaryansları[],ROW()-ROW(PazarlamaVaryansları[[#Headers],[Ara]]),1),INDEX(PazarlamaPlanı[],,1),0),MATCH(PazarlamaVaryansları[[#Headers],[Ara]],PazarlamaFiili[#Headers],0))","v":{"v":200,"d":"200.00 ₺"}},{"$f":"SUM(PazarlamaVaryansları[[#This Row],[Oca]:[Ara]])","v":{"v":1321,"d":"1,321.00 ₺"}}]
[null,"Ara toplam",{"$f":"SUBTOTAL(109,PazarlamaVaryansları[Oca])","v":{"v":555,"d":"555.00 ₺"}},{"$f":"SUBTOTAL(109,PazarlamaVaryansları[Şub])","v":{"v":-456,"d":"-456.00 ₺"}},{"$f":"SUBTOTAL(109,PazarlamaVaryansları[Mar])","v":{"v":-23,"d":"-23.00 ₺"}},{"$f":"SUBTOTAL(109,PazarlamaVaryansları[Nis])","v":{"v":-123,"d":"-123.00 ₺"}},{"$f":"SUBTOTAL(109,PazarlamaVaryansları[May])","v":{"v":113,"d":"113.00 ₺"}},{"$f":"SUBTOTAL(109,PazarlamaVaryansları[Haz])","v":{"v":-825,"d":"-825.00 ₺"}},{"$f":"SUBTOTAL(109,PazarlamaVaryansları[Tem])","v":{"v":8100,"d":"8,100.00 ₺"}},{"$f":"SUBTOTAL(109,PazarlamaVaryansları[Ağu])","v":{"v":6100,"d":"6,100.00 ₺"}},{"$f":"SUBTOTAL(109,PazarlamaVaryansları[Eyl])","v":{"v":3100,"d":"3,100.00 ₺"}},{"$f":"SUBTOTAL(109,PazarlamaVaryansları[Eki])","v":{"v":8100,"d":"8,100.00 ₺"}},{"$f":"SUBTOTAL(109,PazarlamaVaryansları[Kas])","v":{"v":3100,"d":"3,100.00 ₺"}},{"$f":"SUBTOTAL(109,PazarlamaVaryansları[Ara])","v":{"v":6900,"d":"6,900.00 ₺"}},{"$f":"SUBTOTAL(109,PazarlamaVaryansları[YIL])","v":{"v":34641,"d":"34,641.00 ₺"}}]
[]
["Eğitim veya Seyahat Maliyetlerindeki Varyans, Eğitim ve Seyahat Varyansları tablosunda sağdaki hücreden başlayarak otomatik olarak hesaplanır. Sonraki yönerge A35 hücresindedir.","Eğitim/Seyahat","Oca","Şub","Mar","Nis","May","Haz","Tem","Ağu","Eyl","Eki","Kas","Ara","YIL"]
[null,"Eğitim sınıfları",{"$f":"INDEX(EğitimVeSeyahatPlanı[],MATCH(INDEX(EğitimVeSeyahatVaryansları[],ROW()-ROW(EğitimVeSeyahatVaryansları[[#Headers],[Oca]]),1),INDEX(EğitimVeSeyahatPlanı[],,1),0),MATCH(EğitimVeSeyahatVaryansları[[#Headers],[Oca]],EğitimVeSeyahatPlanı[#Headers],0))-INDEX(EğitimVeSeyahatFiili[],MATCH(INDEX(EğitimVeSeyahatVaryansları[],ROW()-ROW(EğitimVeSeyahatVaryansları[[#Headers],[Oca]]),1),INDEX(EğitimVeSeyahatPlanı[],,1),0),MATCH(EğitimVeSeyahatVaryansları[[#Headers],[Oca]],EğitimVeSeyahatFiili[#Headers],0))","v":{"v":400,"d":"400.00 ₺"}},{"$f":"INDEX(EğitimVeSeyahatPlanı[],MATCH(INDEX(EğitimVeSeyahatVaryansları[],ROW()-ROW(EğitimVeSeyahatVaryansları[[#Headers],[Şub]]),1),INDEX(EğitimVeSeyahatPlanı[],,1),0),MATCH(EğitimVeSeyahatVaryansları[[#Headers],[Şub]],EğitimVeSeyahatPlanı[#Headers],0))-INDEX(EğitimVeSeyahatFiili[],MATCH(INDEX(EğitimVeSeyahatVaryansları[],ROW()-ROW(EğitimVeSeyahatVaryansları[[#Headers],[Şub]]),1),INDEX(EğitimVeSeyahatPlanı[],,1),0),MATCH(EğitimVeSeyahatVaryansları[[#Headers],[Şub]],EğitimVeSeyahatFiili[#Headers],0))","v":{"v":-400,"d":"-400.00 ₺"}},{"$f":"INDEX(EğitimVeSeyahatPlanı[],MATCH(INDEX(EğitimVeSeyahatVaryansları[],ROW()-ROW(EğitimVeSeyahatVaryansları[[#Headers],[Mar]]),1),INDEX(EğitimVeSeyahatPlanı[],,1),0),MATCH(EğitimVeSeyahatVaryansları[[#Headers],[Mar]],EğitimVeSeyahatPlanı[#Headers],0))-INDEX(EğitimVeSeyahatFiili[],MATCH(INDEX(EğitimVeSeyahatVaryansları[],ROW()-ROW(EğitimVeSeyahatVaryansları[[#Headers],[Mar]]),1),INDEX(EğitimVeSeyahatPlanı[],,1),0),MATCH(EğitimVeSeyahatVaryansları[[#Headers],[Mar]],EğitimVeSeyahatFiili[#Headers],0))","v":{"v":600,"d":"600.00 ₺"}},{"$f":"INDEX(EğitimVeSeyahatPlanı[],MATCH(INDEX(EğitimVeSeyahatVaryansları[],ROW()-ROW(EğitimVeSeyahatVaryansları[[#Headers],[Nis]]),1),INDEX(EğitimVeSeyahatPlanı[],,1),0),MATCH(EğitimVeSeyahatVaryansları[[#Headers],[Nis]],EğitimVeSeyahatPlanı[#Headers],0))-INDEX(EğitimVeSeyahatFiili[],MATCH(INDEX(EğitimVeSeyahatVaryansları[],ROW()-ROW(EğitimVeSeyahatVaryansları[[#Headers],[Nis]]),1),INDEX(EğitimVeSeyahatPlanı[],,1),0),MATCH(EğitimVeSeyahatVaryansları[[#Headers],[Nis]],EğitimVeSeyahatFiili[#Headers],0))","v":{"v":400,"d":"400.00 ₺"}},{"$f":"INDEX(EğitimVeSeyahatPlanı[],MATCH(INDEX(EğitimVeSeyahatVaryansları[],ROW()-ROW(EğitimVeSeyahatVaryansları[[#Headers],[May]]),1),INDEX(EğitimVeSeyahatPlanı[],,1),0),MATCH(EğitimVeSeyahatVaryansları[[#Headers],[May]],EğitimVeSeyahatPlanı[#Headers],0))-INDEX(EğitimVeSeyahatFiili[],MATCH(INDEX(EğitimVeSeyahatVaryansları[],ROW()-ROW(EğitimVeSeyahatVaryansları[[#Headers],[May]]),1),INDEX(EğitimVeSeyahatPlanı[],,1),0),MATCH(EğitimVeSeyahatVaryansları[[#Headers],[May]],EğitimVeSeyahatFiili[#Headers],0))","v":{"v":800,"d":"800.00 ₺"}},{"$f":"INDEX(EğitimVeSeyahatPlanı[],MATCH(INDEX(EğitimVeSeyahatVaryansları[],ROW()-ROW(EğitimVeSeyahatVaryansları[[#Headers],[Haz]]),1),INDEX(EğitimVeSeyahatPlanı[],,1),0),MATCH(EğitimVeSeyahatVaryansları[[#Headers],[Haz]],EğitimVeSeyahatPlanı[#Headers],0))-INDEX(EğitimVeSeyahatFiili[],MATCH(INDEX(EğitimVeSeyahatVaryansları[],ROW()-ROW(EğitimVeSeyahatVaryansları[[#Headers],[Haz]]),1),INDEX(EğitimVeSeyahatPlanı[],,1),0),MATCH(EğitimVeSeyahatVaryansları[[#Headers],[Haz]],EğitimVeSeyahatFiili[#Headers],0))","v":{"v":-800,"d":"-800.00 ₺"}},{"$f":"INDEX(EğitimVeSeyahatPlanı[],MATCH(INDEX(EğitimVeSeyahatVaryansları[],ROW()-ROW(EğitimVeSeyahatVaryansları[[#Headers],[Tem]]),1),INDEX(EğitimVeSeyahatPlanı[],,1),0),MATCH(EğitimVeSeyahatVaryansları[[#Headers],[Tem]],EğitimVeSeyahatPlanı[#Headers],0))-INDEX(EğitimVeSeyahatFiili[],MATCH(INDEX(EğitimVeSeyahatVaryansları[],ROW()-ROW(EğitimVeSeyahatVaryansları[[#Headers],[Tem]]),1),INDEX(EğitimVeSeyahatPlanı[],,1),0),MATCH(EğitimVeSeyahatVaryansları[[#Headers],[Tem]],EğitimVeSeyahatFiili[#Headers],0))","v":{"v":2000,"d":"2,000.00 ₺"}},{"$f":"INDEX(EğitimVeSeyahatPlanı[],MATCH(INDEX(EğitimVeSeyahatVaryansları[],ROW()-ROW(EğitimVeSeyahatVaryansları[[#Headers],[Ağu]]),1),INDEX(EğitimVeSeyahatPlanı[],,1),0),MATCH(EğitimVeSeyahatVaryansları[[#Headers],[Ağu]],EğitimVeSeyahatPlanı[#Headers],0))-INDEX(EğitimVeSeyahatFiili[],MATCH(INDEX(EğitimVeSeyahatVaryansları[],ROW()-ROW(EğitimVeSeyahatVaryansları[[#Headers],[Ağu]]),1),INDEX(EğitimVeSeyahatPlanı[],,1),0),MATCH(EğitimVeSeyahatVaryansları[[#Headers],[Ağu]],EğitimVeSeyahatFiili[#Headers],0))","v":{"v":2000,"d":"2,000.00 ₺"}},{"$f":"INDEX(EğitimVeSeyahatPlanı[],MATCH(INDEX(EğitimVeSeyahatVaryansları[],ROW()-ROW(EğitimVeSeyahatVaryansları[[#Headers],[Eyl]]),1),INDEX(EğitimVeSeyahatPlanı[],,1),0),MATCH(EğitimVeSeyahatVaryansları[[#Headers],[Eyl]],EğitimVeSeyahatPlanı[#Headers],0))-INDEX(EğitimVeSeyahatFiili[],MATCH(INDEX(EğitimVeSeyahatVaryansları[],ROW()-ROW(EğitimVeSeyahatVaryansları[[#Headers],[Eyl]]),1),INDEX(EğitimVeSeyahatPlanı[],,1),0),MATCH(EğitimVeSeyahatVaryansları[[#Headers],[Eyl]],EğitimVeSeyahatFiili[#Headers],0))","v":{"v":2000,"d":"2,000.00 ₺"}},{"$f":"INDEX(EğitimVeSeyahatPlanı[],MATCH(INDEX(EğitimVeSeyahatVaryansları[],ROW()-ROW(EğitimVeSeyahatVaryansları[[#Headers],[Eki]]),1),INDEX(EğitimVeSeyahatPlanı[],,1),0),MATCH(EğitimVeSeyahatVaryansları[[#Headers],[Eki]],EğitimVeSeyahatPlanı[#Headers],0))-INDEX(EğitimVeSeyahatFiili[],MATCH(INDEX(EğitimVeSeyahatVaryansları[],ROW()-ROW(EğitimVeSeyahatVaryansları[[#Headers],[Eki]]),1),INDEX(EğitimVeSeyahatPlanı[],,1),0),MATCH(EğitimVeSeyahatVaryansları[[#Headers],[Eki]],EğitimVeSeyahatFiili[#Headers],0))","v":{"v":2000,"d":"2,000.00 ₺"}},{"$f":"INDEX(EğitimVeSeyahatPlanı[],MATCH(INDEX(EğitimVeSeyahatVaryansları[],ROW()-ROW(EğitimVeSeyahatVaryansları[[#Headers],[Kas]]),1),INDEX(EğitimVeSeyahatPlanı[],,1),0),MATCH(EğitimVeSeyahatVaryansları[[#Headers],[Kas]],EğitimVeSeyahatPlanı[#Headers],0))-INDEX(EğitimVeSeyahatFiili[],MATCH(INDEX(EğitimVeSeyahatVaryansları[],ROW()-ROW(EğitimVeSeyahatVaryansları[[#Headers],[Kas]]),1),INDEX(EğitimVeSeyahatPlanı[],,1),0),MATCH(EğitimVeSeyahatVaryansları[[#Headers],[Kas]],EğitimVeSeyahatFiili[#Headers],0))","v":{"v":2000,"d":"2,000.00 ₺"}},{"$f":"INDEX(EğitimVeSeyahatPlanı[],MATCH(INDEX(EğitimVeSeyahatVaryansları[],ROW()-ROW(EğitimVeSeyahatVaryansları[[#Headers],[Ara]]),1),INDEX(EğitimVeSeyahatPlanı[],,1),0),MATCH(EğitimVeSeyahatVaryansları[[#Headers],[Ara]],EğitimVeSeyahatPlanı[#Headers],0))-INDEX(EğitimVeSeyahatFiili[],MATCH(INDEX(EğitimVeSeyahatVaryansları[],ROW()-ROW(EğitimVeSeyahatVaryansları[[#Headers],[Ara]]),1),INDEX(EğitimVeSeyahatPlanı[],,1),0),MATCH(EğitimVeSeyahatVaryansları[[#Headers],[Ara]],EğitimVeSeyahatFiili[#Headers],0))","v":{"v":2000,"d":"2,000.00 ₺"}},{"$f":"SUM(EğitimVeSeyahatVaryansları[[#This Row],[Oca]:[Ara]])","v":{"v":13000,"d":"13,000.00 ₺"}}]
[null,"Eğitimle ilgili seyahat maliyetleri",{"$f":"INDEX(EğitimVeSeyahatPlanı[],MATCH(INDEX(EğitimVeSeyahatVaryansları[],ROW()-ROW(EğitimVeSeyahatVaryansları[[#Headers],[Oca]]),1),INDEX(EğitimVeSeyahatPlanı[],,1),0),MATCH(EğitimVeSeyahatVaryansları[[#Headers],[Oca]],EğitimVeSeyahatPlanı[#Headers],0))-INDEX(EğitimVeSeyahatFiili[],MATCH(INDEX(EğitimVeSeyahatVaryansları[],ROW()-ROW(EğitimVeSeyahatVaryansları[[#Headers],[Oca]]),1),INDEX(EğitimVeSeyahatPlanı[],,1),0),MATCH(EğitimVeSeyahatVaryansları[[#Headers],[Oca]],EğitimVeSeyahatFiili[#Headers],0))","v":{"v":800,"d":"800.00 ₺"}},{"$f":"INDEX(EğitimVeSeyahatPlanı[],MATCH(INDEX(EğitimVeSeyahatVaryansları[],ROW()-ROW(EğitimVeSeyahatVaryansları[[#Headers],[Şub]]),1),INDEX(EğitimVeSeyahatPlanı[],,1),0),MATCH(EğitimVeSeyahatVaryansları[[#Headers],[Şub]],EğitimVeSeyahatPlanı[#Headers],0))-INDEX(EğitimVeSeyahatFiili[],MATCH(INDEX(EğitimVeSeyahatVaryansları[],ROW()-ROW(EğitimVeSeyahatVaryansları[[#Headers],[Şub]]),1),INDEX(EğitimVeSeyahatPlanı[],,1),0),MATCH(EğitimVeSeyahatVaryansları[[#Headers],[Şub]],EğitimVeSeyahatFiili[#Headers],0))","v":{"v":-200,"d":"-200.00 ₺"}},{"$f":"INDEX(EğitimVeSeyahatPlanı[],MATCH(INDEX(EğitimVeSeyahatVaryansları[],ROW()-ROW(EğitimVeSeyahatVaryansları[[#Headers],[Mar]]),1),INDEX(EğitimVeSeyahatPlanı[],,1),0),MATCH(EğitimVeSeyahatVaryansları[[#Headers],[Mar]],EğitimVeSeyahatPlanı[#Headers],0))-INDEX(EğitimVeSeyahatFiili[],MATCH(INDEX(EğitimVeSeyahatVaryansları[],ROW()-ROW(EğitimVeSeyahatVaryansları[[#Headers],[Mar]]),1),INDEX(EğitimVeSeyahatPlanı[],,1),0),MATCH(EğitimVeSeyahatVaryansları[[#Headers],[Mar]],EğitimVeSeyahatFiili[#Headers],0))","v":{"v":600,"d":"600.00 ₺"}},{"$f":"INDEX(EğitimVeSeyahatPlanı[],MATCH(INDEX(EğitimVeSeyahatVaryansları[],ROW()-ROW(EğitimVeSeyahatVaryansları[[#Headers],[Nis]]),1),INDEX(EğitimVeSeyahatPlanı[],,1),0),MATCH(EğitimVeSeyahatVaryansları[[#Headers],[Nis]],EğitimVeSeyahatPlanı[#Headers],0))-INDEX(EğitimVeSeyahatFiili[],MATCH(INDEX(EğitimVeSeyahatVaryansları[],ROW()-ROW(EğitimVeSeyahatVaryansları[[#Headers],[Nis]]),1),INDEX(EğitimVeSeyahatPlanı[],,1),0),MATCH(EğitimVeSeyahatVaryansları[[#Headers],[Nis]],EğitimVeSeyahatFiili[#Headers],0))","v":{"v":800,"d":"800.00 ₺"}},{"$f":"INDEX(EğitimVeSeyahatPlanı[],MATCH(INDEX(EğitimVeSeyahatVaryansları[],ROW()-ROW(EğitimVeSeyahatVaryansları[[#Headers],[May]]),1),INDEX(EğitimVeSeyahatPlanı[],,1),0),MATCH(EğitimVeSeyahatVaryansları[[#Headers],[May]],EğitimVeSeyahatPlanı[#Headers],0))-INDEX(EğitimVeSeyahatFiili[],MATCH(INDEX(EğitimVeSeyahatVaryansları[],ROW()-ROW(EğitimVeSeyahatVaryansları[[#Headers],[May]]),1),INDEX(EğitimVeSeyahatPlanı[],,1),0),MATCH(EğitimVeSeyahatVaryansları[[#Headers],[May]],EğitimVeSeyahatFiili[#Headers],0))","v":{"v":1200,"d":"1,200.00 ₺"}},{"$f":"INDEX(EğitimVeSeyahatPlanı[],MATCH(INDEX(EğitimVeSeyahatVaryansları[],ROW()-ROW(EğitimVeSeyahatVaryansları[[#Headers],[Haz]]),1),INDEX(EğitimVeSeyahatPlanı[],,1),0),MATCH(EğitimVeSeyahatVaryansları[[#Headers],[Haz]],EğitimVeSeyahatPlanı[#Headers],0))-INDEX(EğitimVeSeyahatFiili[],MATCH(INDEX(EğitimVeSeyahatVaryansları[],ROW()-ROW(EğitimVeSeyahatVaryansları[[#Headers],[Haz]]),1),INDEX(EğitimVeSeyahatPlanı[],,1),0),MATCH(EğitimVeSeyahatVaryansları[[#Headers],[Haz]],EğitimVeSeyahatFiili[#Headers],0))","v":{"v":-1500,"d":"-1,500.00 ₺"}},{"$f":"INDEX(EğitimVeSeyahatPlanı[],MATCH(INDEX(EğitimVeSeyahatVaryansları[],ROW()-ROW(EğitimVeSeyahatVaryansları[[#Headers],[Tem]]),1),INDEX(EğitimVeSeyahatPlanı[],,1),0),MATCH(EğitimVeSeyahatVaryansları[[#Headers],[Tem]],EğitimVeSeyahatPlanı[#Headers],0))-INDEX(EğitimVeSeyahatFiili[],MATCH(INDEX(EğitimVeSeyahatVaryansları[],ROW()-ROW(EğitimVeSeyahatVaryansları[[#Headers],[Tem]]),1),INDEX(EğitimVeSeyahatPlanı[],,1),0),MATCH(EğitimVeSeyahatVaryansları[[#Headers],[Tem]],EğitimVeSeyahatFiili[#Headers],0))","v":{"v":2000,"d":"2,000.00 ₺"}},{"$f":"INDEX(EğitimVeSeyahatPlanı[],MATCH(INDEX(EğitimVeSeyahatVaryansları[],ROW()-ROW(EğitimVeSeyahatVaryansları[[#Headers],[Ağu]]),1),INDEX(EğitimVeSeyahatPlanı[],,1),0),MATCH(EğitimVeSeyahatVaryansları[[#Headers],[Ağu]],EğitimVeSeyahatPlanı[#Headers],0))-INDEX(EğitimVeSeyahatFiili[],MATCH(INDEX(EğitimVeSeyahatVaryansları[],ROW()-ROW(EğitimVeSeyahatVaryansları[[#Headers],[Ağu]]),1),INDEX(EğitimVeSeyahatPlanı[],,1),0),MATCH(EğitimVeSeyahatVaryansları[[#Headers],[Ağu]],EğitimVeSeyahatFiili[#Headers],0))","v":{"v":2000,"d":"2,000.00 ₺"}},{"$f":"INDEX(EğitimVeSeyahatPlanı[],MATCH(INDEX(EğitimVeSeyahatVaryansları[],ROW()-ROW(EğitimVeSeyahatVaryansları[[#Headers],[Eyl]]),1),INDEX(EğitimVeSeyahatPlanı[],,1),0),MATCH(EğitimVeSeyahatVaryansları[[#Headers],[Eyl]],EğitimVeSeyahatPlanı[#Headers],0))-INDEX(EğitimVeSeyahatFiili[],MATCH(INDEX(EğitimVeSeyahatVaryansları[],ROW()-ROW(EğitimVeSeyahatVaryansları[[#Headers],[Eyl]]),1),INDEX(EğitimVeSeyahatPlanı[],,1),0),MATCH(EğitimVeSeyahatVaryansları[[#Headers],[Eyl]],EğitimVeSeyahatFiili[#Headers],0))","v":{"v":2000,"d":"2,000.00 ₺"}},{"$f":"INDEX(EğitimVeSeyahatPlanı[],MATCH(INDEX(EğitimVeSeyahatVaryansları[],ROW()-ROW(EğitimVeSeyahatVaryansları[[#Headers],[Eki]]),1),INDEX(EğitimVeSeyahatPlanı[],,1),0),MATCH(EğitimVeSeyahatVaryansları[[#Headers],[Eki]],EğitimVeSeyahatPlanı[#Headers],0))-INDEX(EğitimVeSeyahatFiili[],MATCH(INDEX(EğitimVeSeyahatVaryansları[],ROW()-ROW(EğitimVeSeyahatVaryansları[[#Headers],[Eki]]),1),INDEX(EğitimVeSeyahatPlanı[],,1),0),MATCH(EğitimVeSeyahatVaryansları[[#Headers],[Eki]],EğitimVeSeyahatFiili[#Headers],0))","v":{"v":2000,"d":"2,000.00 ₺"}},{"$f":"INDEX(EğitimVeSeyahatPlanı[],MATCH(INDEX(EğitimVeSeyahatVaryansları[],ROW()-ROW(EğitimVeSeyahatVaryansları[[#Headers],[Kas]]),1),INDEX(EğitimVeSeyahatPlanı[],,1),0),MATCH(EğitimVeSeyahatVaryansları[[#Headers],[Kas]],EğitimVeSeyahatPlanı[#Headers],0))-INDEX(EğitimVeSeyahatFiili[],MATCH(INDEX(EğitimVeSeyahatVaryansları[],ROW()-ROW(EğitimVeSeyahatVaryansları[[#Headers],[Kas]]),1),INDEX(EğitimVeSeyahatPlanı[],,1),0),MATCH(EğitimVeSeyahatVaryansları[[#Headers],[Kas]],EğitimVeSeyahatFiili[#Headers],0))","v":{"v":2000,"d":"2,000.00 ₺"}},{"$f":"INDEX(EğitimVeSeyahatPlanı[],MATCH(INDEX(EğitimVeSeyahatVaryansları[],ROW()-ROW(EğitimVeSeyahatVaryansları[[#Headers],[Ara]]),1),INDEX(EğitimVeSeyahatPlanı[],,1),0),MATCH(EğitimVeSeyahatVaryansları[[#Headers],[Ara]],EğitimVeSeyahatPlanı[#Headers],0))-INDEX(EğitimVeSeyahatFiili[],MATCH(INDEX(EğitimVeSeyahatVaryansları[],ROW()-ROW(EğitimVeSeyahatVaryansları[[#Headers],[Ara]]),1),INDEX(EğitimVeSeyahatPlanı[],,1),0),MATCH(EğitimVeSeyahatVaryansları[[#Headers],[Ara]],EğitimVeSeyahatFiili[#Headers],0))","v":{"v":2000,"d":"2,000.00 ₺"}},{"$f":"SUM(EğitimVeSeyahatVaryansları[[#This Row],[Oca]:[Ara]])","v":{"v":13700,"d":"13,700.00 ₺"}}]
[null,"Ara toplam",{"$f":"SUBTOTAL(109,EğitimVeSeyahatVaryansları[Oca])","v":{"v":1200,"d":"1,200.00 ₺"}},{"$f":"SUBTOTAL(109,EğitimVeSeyahatVaryansları[Şub])","v":{"v":-600,"d":"-600.00 ₺"}},{"$f":"SUBTOTAL(109,EğitimVeSeyahatVaryansları[Mar])","v":{"v":1200,"d":"1,200.00 ₺"}},{"$f":"SUBTOTAL(109,EğitimVeSeyahatVaryansları[Nis])","v":{"v":1200,"d":"1,200.00 ₺"}},{"$f":"SUBTOTAL(109,EğitimVeSeyahatVaryansları[May])","v":{"v":2000,"d":"2,000.00 ₺"}},{"$f":"SUBTOTAL(109,EğitimVeSeyahatVaryansları[Haz])","v":{"v":-2300,"d":"-2,300.00 ₺"}},{"$f":"SUBTOTAL(109,EğitimVeSeyahatVaryansları[Tem])","v":{"v":4000,"d":"4,000.00 ₺"}},{"$f":"SUBTOTAL(109,EğitimVeSeyahatVaryansları[Ağu])","v":{"v":4000,"d":"4,000.00 ₺"}},{"$f":"SUBTOTAL(109,EğitimVeSeyahatVaryansları[Eyl])","v":{"v":4000,"d":"4,000.00 ₺"}},{"$f":"SUBTOTAL(109,EğitimVeSeyahatVaryansları[Eki])","v":{"v":4000,"d":"4,000.00 ₺"}},{"$f":"SUBTOTAL(109,EğitimVeSeyahatVaryansları[Kas])","v":{"v":4000,"d":"4,000.00 ₺"}},{"$f":"SUBTOTAL(109,EğitimVeSeyahatVaryansları[Ara])","v":{"v":4000,"d":"4,000.00 ₺"}},{"$f":"SUBTOTAL(109,EğitimVeSeyahatVaryansları[YIL])","v":{"v":26700,"d":"26,700.00 ₺"}}]
[]
["Gider Varyansları, Toplam Gider tablosunda sağdaki hücreden başlayarak otomatik olarak hesaplanır.","TOPLAMLAR","Oca","Şub","Mar","Nis","May","Haz","Tem","Ağu","Eyl","Eki","Kas","Ara","Yıl"]
[null,"Aylık Fiili Giderler",{"$f":"EğitimVeSeyahatVaryansları[[#Totals],[Oca]]+PazarlamaVaryansları[[#Totals],[Oca]]+OfisVaryansları[[#Totals],[Oca]]+ÇalışanVaryansları[[#Totals],[Oca]]","v":{"v":1738,"d":"1,738.00 ₺"}},{"$f":"EğitimVeSeyahatVaryansları[[#Totals],[Şub]]+PazarlamaVaryansları[[#Totals],[Şub]]+OfisVaryansları[[#Totals],[Şub]]+ÇalışanVaryansları[[#Totals],[Şub]]","v":{"v":-984,"d":"-984.00 ₺"}},{"$f":"EğitimVeSeyahatVaryansları[[#Totals],[Mar]]+PazarlamaVaryansları[[#Totals],[Mar]]+OfisVaryansları[[#Totals],[Mar]]+ÇalışanVaryansları[[#Totals],[Mar]]","v":{"v":1255,"d":"1,255.00 ₺"}},{"$f":"EğitimVeSeyahatVaryansları[[#Totals],[Nis]]+PazarlamaVaryansları[[#Totals],[Nis]]+OfisVaryansları[[#Totals],[Nis]]+ÇalışanVaryansları[[#Totals],[Nis]]","v":{"v":301,"d":"301.00 ₺"}},{"$f":"EğitimVeSeyahatVaryansları[[#Totals],[May]]+PazarlamaVaryansları[[#Totals],[May]]+OfisVaryansları[[#Totals],[May]]+ÇalışanVaryansları[[#Totals],[May]]","v":{"v":1440,"d":"1,440.00 ₺"}},{"$f":"EğitimVeSeyahatVaryansları[[#Totals],[Haz]]+PazarlamaVaryansları[[#Totals],[Haz]]+OfisVaryansları[[#Totals],[Haz]]+ÇalışanVaryansları[[#Totals],[Haz]]","v":{"v":-3744,"d":"-3,744.00 ₺"}},{"$f":"EğitimVeSeyahatVaryansları[[#Totals],[Tem]]+PazarlamaVaryansları[[#Totals],[Tem]]+OfisVaryansları[[#Totals],[Tem]]+ÇalışanVaryansları[[#Totals],[Tem]]","v":{"v":134695,"d":"134,695.00 ₺"}},{"$f":"EğitimVeSeyahatVaryansları[[#Totals],[Ağu]]+PazarlamaVaryansları[[#Totals],[Ağu]]+OfisVaryansları[[#Totals],[Ağu]]+ÇalışanVaryansları[[#Totals],[Ağu]]","v":{"v":138918,"d":"138,918.00 ₺"}},{"$f":"EğitimVeSeyahatVaryansları[[#Totals],[Eyl]]+PazarlamaVaryansları[[#Totals],[Eyl]]+OfisVaryansları[[#Totals],[Eyl]]+ÇalışanVaryansları[[#Totals],[Eyl]]","v":{"v":135918,"d":"135,918.00 ₺"}},{"$f":"EğitimVeSeyahatVaryansları[[#Totals],[Eki]]+PazarlamaVaryansları[[#Totals],[Eki]]+OfisVaryansları[[#Totals],[Eki]]+ÇalışanVaryansları[[#Totals],[Eki]]","v":{"v":140918,"d":"140,918.00 ₺"}},{"$f":"EğitimVeSeyahatVaryansları[[#Totals],[Kas]]+PazarlamaVaryansları[[#Totals],[Kas]]+OfisVaryansları[[#Totals],[Kas]]+ÇalışanVaryansları[[#Totals],[Kas]]","v":{"v":136218,"d":"136,218.00 ₺"}},{"$f":"EğitimVeSeyahatVaryansları[[#Totals],[Ara]]+PazarlamaVaryansları[[#Totals],[Ara]]+OfisVaryansları[[#Totals],[Ara]]+ÇalışanVaryansları[[#Totals],[Ara]]","v":{"v":140018,"d":"140,018.00 ₺"}},{"$f":"EğitimVeSeyahatVaryansları[[#Totals],[YIL]]+PazarlamaVaryansları[[#Totals],[YIL]]+OfisVaryansları[[#Totals],[YIL]]+ÇalışanVaryansları[[#Totals],[YIL]]","v":{"v":826691,"d":"826,691.00 ₺"}}]
[null,"TOPLAM Fiili Giderler",{"$f":"SUM($C$36:C36)","v":{"v":1738,"d":"1,738.00 ₺"}},{"$f":"SUM($C$36:D36)","v":{"v":754,"d":"754.00 ₺"}},{"$f":"SUM($C$36:E36)","v":{"v":2009,"d":"2,009.00 ₺"}},{"$f":"SUM($C$36:F36)","v":{"v":2310,"d":"2,310.00 ₺"}},{"$f":"SUM($C$36:G36)","v":{"v":3750,"d":"3,750.00 ₺"}},{"$f":"SUM($C$36:H36)","v":{"v":6,"d":"6.00 ₺"}},{"$f":"SUM($C$36:I36)","v":{"v":134701,"d":"134,701.00 ₺"}},{"$f":"SUM($C$36:J36)","v":{"v":273619,"d":"273,619.00 ₺"}},{"$f":"SUM($C$36:K36)","v":{"v":409537,"d":"409,537.00 ₺"}},{"$f":"SUM($C$36:L36)","v":{"v":550455,"d":"550,455.00 ₺"}},{"$f":"SUM($C$36:M36)","v":{"v":686673,"d":"686,673.00 ₺"}},{"$f":"SUM($C$36:N36)","v":{"v":826691,"d":"826,691.00 ₺"}}]

{"sheet":"GİDER ANALİZİ","index":4,"n_rows":14,"n_cols":16,"rows_kept":14,"merged":[[1,1,2,3],[1,5,1,6],[2,4,2,6],[11,1,11,2],[11,3,11,5],[13,1,36,5]]}
["Yıllık Planlanan ve Fiili Giderler, Gider Varyansları ve Varyans Yüzdesi, bu çalışma sayfasındaki her Gider Kategorisi için otomatik olarak güncelleştirilir. Bu çalışma sayfasının nasıl kullanılacağına yönelik yardımcı yönergeler bu sütundaki hücrelerdedir. Başlamak için aşağı oka basın. ",{"$nulls":5}," ",{"$nulls":8}," "]
["Şirket Adını sağdaki hücrede otomatik olarak güncelleştirilir. F2 hücresine Logoyu girin.",{"$f":"'PLANLANAN GİDERLER'!B2:D3","v":"Şirket Adını"},{"$nulls":3},"Logo yer tutucusu bu hücrededir."]
["Bu çalışma sayfasının başlığı E3 hücresindedir. Sonraki yönerge A5 hücresindedir.",{"$nulls":3},{"$f":"worksheet_title","v":"Ayrıntılı Gider Tahminleri"}]
[]
["Planlanan Giderler, Fiili Giderler, Gider Varyansı ve Varyans Yüzdesi, Analiz tablosunda sağdaki hücreden başlayarak otomatik olarak hesaplanır. Sonraki yönerge A12 hücresindedir.","Gider Kategorisi","Planlanan Giderler","Fiili Giderler","Gider Varyansları","Varyans Yüzdesi"]
[null,"Çalışan Maliyetleri",{"$f":"ÇalışanPlanı[[#Totals],[YIL]]","v":{"v":1355090,"d":"1,355,090.00 ₺"}},{"$f":"ÇalışanFiili[[#Totals],[YIL]]","v":{"v":659130,"d":"659,130.00 ₺"}},{"$f":"C6-D6","v":{"v":695960,"d":"695,960.00 ₺"}},{"$f":"E6/C6","v":{"v":0.5135895032802249,"d":"51%"}}]
[null,{"$f":"'PLANLANAN GİDERLER'!B10","v":"Ofis Maliyetleri"},{"$f":"OfisPlanı[[#Totals],[YIL]]","v":{"v":138740,"d":"138,740.00 ₺"}},{"$f":"OfisFiili[[#Totals],[YIL]]","v":{"v":69350,"d":"69,350.00 ₺"}},{"$f":"C7-D7","v":{"v":69390,"d":"69,390.00 ₺"}},{"$f":"E7/C7","v":{"v":0.5001441545336601,"d":"50%"}}]
[null,{"$f":"'PLANLANAN GİDERLER'!B21","v":"Pazarlama Maliyetleri"},{"$f":"PazarlamaPlanı[[#Totals],[YIL]]","v":{"v":67800,"d":"67,800.00 ₺"}},{"$f":"PazarlamaFiili[[#Totals],[YIL]]","v":{"v":33159,"d":"33,159.00 ₺"}},{"$f":"C8-D8","v":{"v":34641,"d":"34,641.00 ₺"}},{"$f":"E8/C8","v":{"v":0.510929203539823,"d":"51%"}}]
[null,{"$f":"'PLANLANAN GİDERLER'!B30","v":"Eğitim/Seyahat"},{"$f":"EğitimVeSeyahatPlanı[[#Totals],[YIL]]","v":{"v":48000,"d":"48,000.00 ₺"}},{"$f":"EğitimVeSeyahatFiili[[#Totals],[YIL]]","v":{"v":21300,"d":"21,300.00 ₺"}},{"$f":"C9-D9","v":{"v":26700,"d":"26,700.00 ₺"}},{"$f":"E9/C9","v":{"v":0.55625,"d":"56%"}}]
[null,{"$f":"'PLANLANAN GİDERLER'!B35","v":"TOPLAMLAR"},{"$f":"'PLANLANAN GİDERLER'!O36","v":{"v":1609630,"d":"1,609,630.00 ₺"}},{"$f":"'FİİLİ GİDERLER'!O36","v":{"v":782939,"d":"782,939.00 ₺"}},{"$f":"C10-D10","v":{"v":826691,"d":"826,691.00 ₺"}},{"$f":"E10/C10","v":{"v":0.5135907009685455,"d":"51%"}}]
[]
["Planlanan Giderler pasta grafiği sağdaki hücrede ve Fiili Giderler pasta grafiği ise D12 hücresindedir. Sonraki yönerge A14 hücresindedir.","Çeşitli kategorilerdeki planlanan giderleri gösteren pasta grafiği bu hücrededir.",null,"Çeşitli kategorilerde gerçekleşen fiili giderleri gösteren pasta grafiği bu hücrededir."]
[]
["Aylık Giderler’de Planlanan, Fiili ve Varyans gösteren grafik sağdaki hücrededir."]